Directorate,Department,Expenditure Type,Ref.Doc.1,Vendor Name,Expenditure Amount (exc VAT),Payment Date
Assurance,Assurance,Clothing - Uniforms,80010747,EUROSUITS LIMITED,327.50,13/06/2017
Assurance,Assurance,Equipment and Materials Purcha,80010946,HAVEN BISTRO & BAR,"1,521.90",21/06/2017
Assurance,Assurance,Equipment and Materials Purcha,80011016,MICHAELS CIVIC ROBES,28.00,27/06/2017
Assurance,Assurance,Equipment and Materials Purcha,60078868,PRIME PRODUCTION LTD,39.50,02/06/2017
Assurance,Assurance,Equipment and Materials Purcha,60081228,PRIME PRODUCTION LTD,39.50,21/06/2017
Assurance,Assurance,General Office Expenses,40002235,OFFICE DEPOT UK LTD,4.21,05/06/2017
Assurance,Assurance,General Office Expenses,40002244,OFFICE DEPOT UK LTD,0.60,05/06/2017
Assurance,Assurance,General Office Expenses,40002302,OFFICE DEPOT UK LTD,0.20,05/06/2017
Assurance,Assurance,Miscellaneous Expenses,80010505,TRAINING SHIP BROADSWORD,260.00,06/06/2017
Assurance,Assurance,Other Indirect Employee Expens,80010648,LONDON BOROUGH OF HAVERING,110.00,30/06/2017
Assurance,Assurance,Other Indirect Employee Expens,80010421,REDACTED - PERSONAL DATA,33.95,06/06/2017
Assurance,Assurance,Other Indirect Employee Expens,80010458,REDACTED - PERSONAL DATA,500.00,06/06/2017
Assurance,Assurance,Other Indirect Employee Expens,80011039,REDACTED - PERSONAL DATA,200.00,26/06/2017
Assurance,Assurance,Other Indirect Employee Expens,80010796,THE LONDON MAYORS' ASSOCIATION,50.00,13/06/2017
Assurance,Assurance,Other Indirect Employee Expens,EBX0177628,THOMPSONS SOLICITORS,291.67,28/06/2017
Assurance,Assurance,Other Indirect Employee Expens,EBX0174710,WESTCOTEC LIMITED,650.50,13/06/2017
Assurance,Assurance,Professional Services,80010671,04-5 GRAY'S INN SQUARE,"1,000.00",14/06/2017
Assurance,Assurance,Professional Services,60080564,PAKFLATT (UK) LIMITED,"8,230.00",29/06/2017
Assurance,Assurance,Professional Services,60082100,REDACTED - PERSONAL DATA,375.00,28/06/2017
Assurance,Assurance,Professional Services,60080150,SHAW & SONS LIMITED,"3,300.00",20/06/2017
Assurance,Assurance,Rents,80010803,15TH FINCHLEY SCOUT GROUP,400.00,13/06/2017
Assurance,Assurance,Rents,80010801,ARKLEY CLUB,480.00,13/06/2017
Assurance,Assurance,Rents,60081279,AVENUE HOUSE SERVICES LTD,660.00,19/06/2017
Assurance,Assurance,Rents,60081299,BARNET BOROUGH DISTRICT SCOUT COUNCIL,850.00,19/06/2017
Assurance,Assurance,Rents,60082029,BARNET BROOKSIDE METHODIST CHURCH,450.00,27/06/2017
Assurance,Assurance,Rents,60081300,BARNET FC COMMUNITY TRUST,500.00,19/06/2017
Assurance,Assurance,Rents,60081342,BARNET LAWN TENNIS CLUB,750.00,16/06/2017
Assurance,Assurance,Rents,60081339,CENTRAL SQUARE MINYAN,750.00,19/06/2017
Assurance,Assurance,Rents,60081303,CHURCH OF ST MARY MAGDALEN,500.00,16/06/2017
Assurance,Assurance,Rents,60081277,CHURCH OF ST PETER-LE-POER,550.00,19/06/2017
Assurance,Assurance,Rents,80010798,FINCHLEY BAPTIST CHURCH,650.00,13/06/2017
Assurance,Assurance,Rents,60081229,FREEHOLD COMMUNITY ASSOCIATION,700.00,19/06/2017
Assurance,Assurance,Rents,60081250,GRASVENOR AVENUE INFANT SCHOOL (ACA,425.90,19/06/2017
Assurance,Assurance,Rents,60081257,HAMPSTEAD GARDEN SUBURB FELLOWSHIP,600.00,19/06/2017
Assurance,Assurance,Rents,60081223,HINDU CULTURAL SOCIETY,650.00,19/06/2017
Assurance,Assurance,Rents,60081207,HOPE CORNER COMMUNITY CENTRE,500.00,19/06/2017
Assurance,Assurance,Rents,60081241,LYONSDOWN HALL,990.00,19/06/2017
Assurance,Assurance,Rents,60081312,MANOR DRIVE METHODIST CHURCH,600.00,19/06/2017
Assurance,Assurance,Rents,10013772,NEW BARNET COMMUNITY ASSOCIATION,240.00,21/06/2017
Assurance,Assurance,Rents,60081249,PARKFIELD ACADEMY,40.00,19/06/2017
Assurance,Assurance,Rents,60081275,QUEEN ELIZABETHS SCHOOL,42.00,19/06/2017
Assurance,Assurance,Rents,80010792,RAILWAY TERRACES ALLOTMENT SOC,200.00,13/06/2017
Assurance,Assurance,Rents,60081345,REDACTED - PERSONAL DATA,352.00,19/06/2017
Assurance,Assurance,Rents,80010794,REDACTED - PERSONAL DATA,500.00,13/06/2017
Assurance,Assurance,Rents,80010802,REDACTED - PERSONAL DATA,250.00,14/06/2017
Assurance,Assurance,Rents,60081990,ST AGNES CHURCH,750.00,27/06/2017
Assurance,Assurance,Rents,80010790,ST ALPHAGE CHURCH,600.00,13/06/2017
Assurance,Assurance,Rents,60081326,ST MARKS CHURCH BARNET VALE,480.00,16/06/2017
Assurance,Assurance,Rents,80010793,ST PAULS CHURCH MILL HILL,500.00,13/06/2017
Assurance,Assurance,Rents,60081216,ST PAUL'S FINCHLEY PCC,628.00,19/06/2017
Assurance,Assurance,Rents,80010799,ST PHILIP THE APOSTLE,350.00,13/06/2017
Assurance,Assurance,Rents,60081264,ST STEPHENS CHURCH HALL,360.00,19/06/2017
Assurance,Assurance,Rents,60081232,THE ANNUNCIATION CHURCH,660.00,19/06/2017
Assurance,Assurance,Rents,60081325,THE HYDE CHURCHES,790.00,19/06/2017
Assurance,Assurance,Rents,60081321,THE WOODSIDE PARK CLUB,900.00,16/06/2017
Assurance,Assurance,Rents,60081281,TRINITY (METHODIST/URC) CHURCH,918.75,19/06/2017
Assurance,Assurance,Rents,60081217,TRINITY CHURCH CENTRE,800.00,16/06/2017
Assurance,Assurance,Rents,60080596,WATLING COMMUNITY ASSOCIATION,524.00,08/06/2017
Assurance,Assurance,Software Licences & Support,60081970,DEMOCRACY COUNTS LIMITED,"16,000.00",27/06/2017
Assurance,Assurance,Subscriptions,60079657,COMPANIES HOUSE,4.00,02/06/2017
Assurance,Assurance,Training,60080462,CIPFA BUSINESS LIMITED,"5,180.00",07/06/2017
Assurance,Assurance,Training,80010499,LONDON BOROUGH OF BARKING & DA,95.00,01/06/2017
Assurance,Assurance,Training,60081662,WESTMINSTER EDUCATION FORUM,210.00,22/06/2017
Assurance,Assurance,Translation Exp / Interpret,60078954,REDACTED - PERSONAL DATA,235.00,06/06/2017
Assurance,Assurance,Transport Hire Charges,80010423,REDACTED - PERSONAL DATA,10.50,06/06/2017
Assurance,Assurance,Ttl IT & Comms,60079825,HAMILTON RENTALS LTD,"1,844.00",01/06/2017
Central Expenses,Central Expenses,Audit Fee,60080036,BDO LLP,"7,750.00",01/06/2017
Central Expenses,Central Expenses,Audit Fee,60080071,BDO LLP,"21,617.00",01/06/2017
Central Expenses,Central Expenses,Insurance Claims,80010844,ADMIRAL,"4,068.85",16/06/2017
Central Expenses,Central Expenses,Insurance Claims,80010529,ALD LEGAL LTD,"9,640.00",02/06/2017
Central Expenses,Central Expenses,Insurance Claims,80010881,ARMSTRONG SOLICITORS,"3,735.00",20/06/2017
Central Expenses,Central Expenses,Insurance Claims,80010669,BAKERS SOLICITORS,"4,772.50",09/06/2017
Central Expenses,Central Expenses,Insurance Claims,80010941,BAKERS SOLICITORS,192.00,21/06/2017
Central Expenses,Central Expenses,Insurance Claims,60081316,BROWNE JACOBSON SOLS.,"1,045.50",19/06/2017
Central Expenses,Central Expenses,Insurance Claims,60079453,CHARLES DUKES ASSESSORS,60.00,09/06/2017
Central Expenses,Central Expenses,Insurance Claims,80010544,CLEAR LAW LLP,720.00,07/06/2017
Central Expenses,Central Expenses,Insurance Claims,80010530,DWP COMPENSATION RECOVERY UNIT,637.00,02/06/2017
Central Expenses,Central Expenses,Insurance Claims,80010670,DWP COMPENSATION RECOVERY UNIT,647.00,09/06/2017
Central Expenses,Central Expenses,Insurance Claims,80010787,DWP COMPENSATION RECOVERY UNIT,637.00,15/06/2017
Central Expenses,Central Expenses,Insurance Claims,80011170,DWP COMPENSATION RECOVERY UNIT,"4,971.00",29/06/2017
Central Expenses,Central Expenses,Insurance Claims,80010964,GOLDENS SOLICITORS,386.00,22/06/2017
Central Expenses,Central Expenses,Insurance Claims,80010727,JUDGE & PRIESTLY LLP,"1,849.34",14/06/2017
Central Expenses,Central Expenses,Insurance Claims,80010866,JUDGE & PRIESTLY LLP,"1,753.95",20/06/2017
Central Expenses,Central Expenses,Insurance Claims,80011165,LYONS DAVIDSON SOLICITORS,"20,496.00",29/06/2017
Central Expenses,Central Expenses,Insurance Claims,80010500,M & K SOLICITORS,108.00,02/06/2017
Central Expenses,Central Expenses,Insurance Claims,80010868,PD LAW,"5,937.00",20/06/2017
Central Expenses,Central Expenses,Insurance Claims,80010632,PJW LEGAL,"6,925.00",08/06/2017
Central Expenses,Central Expenses,Insurance Claims,80010542,PRINCIPIA LAW,"1,324.25",07/06/2017
Central Expenses,Central Expenses,Insurance Claims,80010726,PRINCIPIA LAW LTD,"8,050.81",14/06/2017
Central Expenses,Central Expenses,Insurance Claims,80010477,REDACTED - PERSONAL DATA,"1,073.65",14/06/2017
Central Expenses,Central Expenses,Insurance Claims,80010496,REDACTED - PERSONAL DATA,900.00,02/06/2017
Central Expenses,Central Expenses,Insurance Claims,80010549,REDACTED - PERSONAL DATA,108.05,07/06/2017
Central Expenses,Central Expenses,Insurance Claims,80010598,REDACTED - PERSONAL DATA,"1,254.12",07/06/2017
Central Expenses,Central Expenses,Insurance Claims,80010618,REDACTED - PERSONAL DATA,"2,000.00",08/06/2017
Central Expenses,Central Expenses,Insurance Claims,80010732,REDACTED - PERSONAL DATA,"1,200.00",14/06/2017
Central Expenses,Central Expenses,Insurance Claims,80010749,REDACTED - PERSONAL DATA,"2,500.00",13/06/2017
Central Expenses,Central Expenses,Insurance Claims,80010753,REDACTED - PERSONAL DATA,303.56,14/06/2017
Central Expenses,Central Expenses,Insurance Claims,80010785,REDACTED - PERSONAL DATA,"17,693.98",15/06/2017
Central Expenses,Central Expenses,Insurance Claims,80010795,REDACTED - PERSONAL DATA,500.00,15/06/2017
Central Expenses,Central Expenses,Insurance Claims,80010800,REDACTED - PERSONAL DATA,100.00,15/06/2017
Central Expenses,Central Expenses,Insurance Claims,80010821,REDACTED - PERSONAL DATA,300.00,16/06/2017
Central Expenses,Central Expenses,Insurance Claims,80010837,REDACTED - PERSONAL DATA,360.00,16/06/2017
Central Expenses,Central Expenses,Insurance Claims,80010840,REDACTED - PERSONAL DATA,"4,000.00",16/06/2017
Central Expenses,Central Expenses,Insurance Claims,80010845,REDACTED - PERSONAL DATA,250.00,16/06/2017
Central Expenses,Central Expenses,Insurance Claims,80010848,REDACTED - PERSONAL DATA,387.10,16/06/2017
Central Expenses,Central Expenses,Insurance Claims,80010870,REDACTED - PERSONAL DATA,916.00,20/06/2017
Central Expenses,Central Expenses,Insurance Claims,80010871,REDACTED - PERSONAL DATA,"3,040.00",20/06/2017
Central Expenses,Central Expenses,Insurance Claims,80010875,REDACTED - PERSONAL DATA,134.34,20/06/2017
Central Expenses,Central Expenses,Insurance Claims,80011067,REDACTED - PERSONAL DATA,"6,000.00",27/06/2017
Central Expenses,Central Expenses,Insurance Claims,80011073,REDACTED - PERSONAL DATA,20.00,27/06/2017
Central Expenses,Central Expenses,Insurance Claims,80011080,REDACTED - PERSONAL DATA,65.00,27/06/2017
Central Expenses,Central Expenses,Insurance Claims,80011153,REDACTED - PERSONAL DATA,"2,000.00",29/06/2017
Central Expenses,Central Expenses,Insurance Claims,80010738,SCOTT REES & CO. SOLICITORS,360.00,14/06/2017
Central Expenses,Central Expenses,Insurance Claims,80010734,SIMPSON MILLAR LLP,"7,709.22",14/06/2017
Central Expenses,Central Expenses,Insurance Claims,80010735,SIMPSON MILLAR LLP,"1,080.00",14/06/2017
Central Expenses,Central Expenses,Insurance Claims,80010862,THORNEYCROFT SOLICITORS,"11,688.00",19/06/2017
Central Expenses,Central Expenses,Insurance Claims,60080256,TREESUBS LTD,"1,035.00",02/06/2017
Central Expenses,Central Expenses,Insurance Claims,60077115,WEIGHTMANS LLP,600.00,05/06/2017
Central Expenses,Central Expenses,Insurance Claims,60077184,WEIGHTMANS LLP,"2,450.00",05/06/2017
Central Expenses,Central Expenses,Insurance Claims,60078822,WEIGHTMANS LLP,"1,487.50",05/06/2017
Central Expenses,Central Expenses,Insurance Claims,60078856,WEIGHTMANS LLP,"2,448.00",12/06/2017
Central Expenses,Central Expenses,Insurance Claims,60079066,WEIGHTMANS LLP,"1,018.00",05/06/2017
Central Expenses,Central Expenses,Insurance Claims,60079703,WEIGHTMANS LLP,600.00,15/06/2017
Central Expenses,Central Expenses,Insurance Claims,60079716,WEIGHTMANS LLP,"1,000.00",15/06/2017
Central Expenses,Central Expenses,Insurance Claims,60079755,WEIGHTMANS LLP,"1,000.00",15/06/2017
Central Expenses,Central Expenses,Insurance Premiums,80011044,JLT SPECIALITY LTD,"3,005.00",26/06/2017
Central Expenses,Central Expenses,Insurance Premiums,80011046,JLT SPECIALITY LTD,"23,664.96",26/06/2017
Central Expenses,Central Expenses,Insurance Premiums,80011048,JLT SPECIALITY LTD,"4,993.20",26/06/2017
Central Expenses,Central Expenses,Insurance Premiums,80011050,JLT SPECIALITY LTD,"2,500.00",26/06/2017
Central Expenses,Central Expenses,Insurance Premiums,80011065,JLT SPECIALITY LTD,192.96,27/06/2017
Central Expenses,Central Expenses,Insurance Premiums,80011066,JLT SPECIALITY LTD,"2,933.48",27/06/2017
Central Expenses,Central Expenses,Interest Bank,30165680,MENORAH HIGH SCHOOL FOR GIRLS,11.00,13/06/2017
Central Expenses,Central Expenses,Other Establishments - Third P,EBX0175343,LEE VALLEY REGIONAL PARK AUTH.,"30,430.52",15/06/2017
Central Expenses,Central Expenses,Other Establishments - Third P,EBX0177354,LONDON PENSIONS FUND AUTHORITY,"49,828.80",27/06/2017
Central Expenses,Central Expenses,Other Establishments - Third P,60078992,TRANSPORT FOR LONDON,"110,817.86",05/06/2017
Commercial,Customer Support Group,Books-CDs-Audio-Video,60078942,SM ELECTRICAL SERVICES,340.00,06/06/2017
Commercial,Customer Support Group,Building Repairs & Maintenance,60080335,AJS LTD,125.44,06/06/2017
Commercial,Customer Support Group,Building Repairs & Maintenance,60080483,AJS LTD,15.00,07/06/2017
Commercial,Customer Support Group,Building Repairs & Maintenance,60081827,AJS LTD,54.88,23/06/2017
Commercial,Customer Support Group,Building Repairs & Maintenance,60080299,APT CONTROLS LTD,519.00,13/06/2017
Commercial,Customer Support Group,Building Repairs & Maintenance,60081967,EARLSWOOD INDUSTRIAL SVCS LTD,650.00,27/06/2017
Commercial,Customer Support Group,Building Repairs & Maintenance,60080414,FRONTIER-PITTS LTD,360.70,23/06/2017
Commercial,Customer Support Group,Building Repairs & Maintenance,60080973,HERTEL (UK) LTD,250.00,14/06/2017
Commercial,Customer Support Group,Building Repairs & Maintenance,60081048,HERTEL (UK) LTD,104.74,14/06/2017
Commercial,Customer Support Group,Building Repairs & Maintenance,60081053,HERTEL (UK) LTD,303.50,14/06/2017
Commercial,Customer Support Group,Building Repairs & Maintenance,60081842,HERTEL (UK) LTD,34.91,26/06/2017
Commercial,Customer Support Group,Building Repairs & Maintenance,60081849,HERTEL (UK) LTD,34.91,27/06/2017
Commercial,Customer Support Group,Building Repairs & Maintenance,60081852,HERTEL (UK) LTD,34.91,27/06/2017
Commercial,Customer Support Group,Building Repairs & Maintenance,60081853,HERTEL (UK) LTD,34.91,27/06/2017
Commercial,Customer Support Group,Building Repairs & Maintenance,60081855,HERTEL (UK) LTD,34.91,26/06/2017
Commercial,Customer Support Group,Building Repairs & Maintenance,60081857,HERTEL (UK) LTD,34.91,26/06/2017
Commercial,Customer Support Group,Building Repairs & Maintenance,60081858,HERTEL (UK) LTD,34.91,26/06/2017
Commercial,Customer Support Group,Building Repairs & Maintenance,60081862,HERTEL (UK) LTD,34.91,29/06/2017
Commercial,Customer Support Group,Building Repairs & Maintenance,60081869,HERTEL (UK) LTD,34.91,27/06/2017
Commercial,Customer Support Group,Building Repairs & Maintenance,60081872,HERTEL (UK) LTD,34.91,26/06/2017
Commercial,Customer Support Group,Building Repairs & Maintenance,60081881,HERTEL (UK) LTD,34.91,27/06/2017
Commercial,Customer Support Group,Building Repairs & Maintenance,60081884,HERTEL (UK) LTD,34.91,27/06/2017
Commercial,Customer Support Group,Building Repairs & Maintenance,60081892,HERTEL (UK) LTD,34.91,27/06/2017
Commercial,Customer Support Group,Building Repairs & Maintenance,60081894,HERTEL (UK) LTD,34.91,26/06/2017
Commercial,Customer Support Group,Building Repairs & Maintenance,60081896,HERTEL (UK) LTD,34.91,27/06/2017
Commercial,Customer Support Group,Building Repairs & Maintenance,60081899,HERTEL (UK) LTD,34.91,27/06/2017
Commercial,Customer Support Group,Building Repairs & Maintenance,60081900,HERTEL (UK) LTD,34.91,26/06/2017
Commercial,Customer Support Group,Building Repairs & Maintenance,60081901,HERTEL (UK) LTD,34.91,26/06/2017
Commercial,Customer Support Group,Building Repairs & Maintenance,60081903,HERTEL (UK) LTD,34.91,26/06/2017
Commercial,Customer Support Group,Building Repairs & Maintenance,60081904,HERTEL (UK) LTD,34.91,26/06/2017
Commercial,Customer Support Group,Building Repairs & Maintenance,60081906,HERTEL (UK) LTD,34.91,26/06/2017
Commercial,Customer Support Group,Building Repairs & Maintenance,60081912,HERTEL (UK) LTD,34.91,26/06/2017
Commercial,Customer Support Group,Building Repairs & Maintenance,60081916,HERTEL (UK) LTD,34.91,26/06/2017
Commercial,Customer Support Group,Building Repairs & Maintenance,60081917,HERTEL (UK) LTD,34.91,26/06/2017
Commercial,Customer Support Group,Building Repairs & Maintenance,60081919,HERTEL (UK) LTD,34.91,26/06/2017
Commercial,Customer Support Group,Building Repairs & Maintenance,60081921,HERTEL (UK) LTD,34.91,26/06/2017
Commercial,Customer Support Group,Building Repairs & Maintenance,60081922,HERTEL (UK) LTD,34.91,26/06/2017
Commercial,Customer Support Group,Building Repairs & Maintenance,60081925,HERTEL (UK) LTD,34.91,26/06/2017
Commercial,Customer Support Group,Building Repairs & Maintenance,60081926,HERTEL (UK) LTD,34.91,26/06/2017
Commercial,Customer Support Group,Building Repairs & Maintenance,60081928,HERTEL (UK) LTD,34.91,29/06/2017
Commercial,Customer Support Group,Building Repairs & Maintenance,60081939,HERTEL (UK) LTD,34.91,26/06/2017
Commercial,Customer Support Group,Building Repairs & Maintenance,60081943,HERTEL (UK) LTD,34.91,26/06/2017
Commercial,Customer Support Group,Building Repairs & Maintenance,60081949,HERTEL (UK) LTD,34.91,26/06/2017
Commercial,Customer Support Group,Building Repairs & Maintenance,60081952,HERTEL (UK) LTD,34.91,29/06/2017
Commercial,Customer Support Group,Building Repairs & Maintenance,60081953,HERTEL (UK) LTD,34.91,26/06/2017
Commercial,Customer Support Group,Building Repairs & Maintenance,60081979,HERTEL (UK) LTD,34.91,29/06/2017
Commercial,Customer Support Group,Building Repairs & Maintenance,60081986,HERTEL (UK) LTD,34.91,27/06/2017
Commercial,Customer Support Group,Building Repairs & Maintenance,60081987,HERTEL (UK) LTD,34.91,27/06/2017
Commercial,Customer Support Group,Building Repairs & Maintenance,60081988,HERTEL (UK) LTD,34.91,27/06/2017
Commercial,Customer Support Group,Building Repairs & Maintenance,60082013,HERTEL (UK) LTD,24.94,29/06/2017
Commercial,Customer Support Group,Building Repairs & Maintenance,60082015,HERTEL (UK) LTD,34.91,27/06/2017
Commercial,Customer Support Group,Building Repairs & Maintenance,60082027,HERTEL (UK) LTD,34.91,27/06/2017
Commercial,Customer Support Group,Building Repairs & Maintenance,60082030,HERTEL (UK) LTD,34.91,27/06/2017
Commercial,Customer Support Group,Building Repairs & Maintenance,60082032,HERTEL (UK) LTD,34.91,27/06/2017
Commercial,Customer Support Group,Building Repairs & Maintenance,60082047,HERTEL (UK) LTD,34.91,27/06/2017
Commercial,Customer Support Group,Building Repairs & Maintenance,60082052,HERTEL (UK) LTD,34.91,27/06/2017
Commercial,Customer Support Group,Building Repairs & Maintenance,60082055,HERTEL (UK) LTD,34.91,27/06/2017
Commercial,Customer Support Group,Building Repairs & Maintenance,60078653,KIRKMAN & JOURDAIN LTD,"30,762.00",22/06/2017
Commercial,Customer Support Group,Building Repairs & Maintenance,60080348,LIFT & ENGINEERING SERVICES LTD,232.00,13/06/2017
Commercial,Customer Support Group,Building Repairs & Maintenance,60080399,LIFT & ENGINEERING SERVICES LTD,66.94,29/06/2017
Commercial,Customer Support Group,Building Repairs & Maintenance,60080403,LIFT & ENGINEERING SERVICES LTD,44.63,29/06/2017
Commercial,Customer Support Group,Building Repairs & Maintenance,60080406,LIFT & ENGINEERING SERVICES LTD,89.25,29/06/2017
Commercial,Customer Support Group,Building Repairs & Maintenance,60080408,LIFT & ENGINEERING SERVICES LTD,66.94,29/06/2017
Commercial,Customer Support Group,Building Repairs & Maintenance,60080495,LIFT & ENGINEERING SERVICES LTD,89.25,29/06/2017
Commercial,Customer Support Group,Building Repairs & Maintenance,60080496,LIFT & ENGINEERING SERVICES LTD,89.25,29/06/2017
Commercial,Customer Support Group,Building Repairs & Maintenance,60080497,LIFT & ENGINEERING SERVICES LTD,44.63,29/06/2017
Commercial,Customer Support Group,Building Repairs & Maintenance,60080511,LIFT & ENGINEERING SERVICES LTD,44.63,29/06/2017
Commercial,Customer Support Group,Building Repairs & Maintenance,60080531,LIFT & ENGINEERING SERVICES LTD,66.94,29/06/2017
Commercial,Customer Support Group,Building Repairs & Maintenance,10013738,OAKRAY LIMITED,"1,917.48",05/06/2017
Commercial,Customer Support Group,Building Repairs & Maintenance,60071535,OAKRAY LIMITED,361.00,19/06/2017
Commercial,Customer Support Group,Building Repairs & Maintenance,60072985,OAKRAY LIMITED,80.00,15/06/2017
Commercial,Customer Support Group,Building Repairs & Maintenance,60072994,OAKRAY LIMITED,80.00,15/06/2017
Commercial,Customer Support Group,Building Repairs & Maintenance,60077830,OAKRAY LIMITED,216.00,02/06/2017
Commercial,Customer Support Group,Building Repairs & Maintenance,60077842,OAKRAY LIMITED,352.00,30/06/2017
Commercial,Customer Support Group,Building Repairs & Maintenance,60077846,OAKRAY LIMITED,527.16,02/06/2017
Commercial,Customer Support Group,Building Repairs & Maintenance,60077868,OAKRAY LIMITED,"2,810.00",02/06/2017
Commercial,Customer Support Group,Building Repairs & Maintenance,60077899,OAKRAY LIMITED,242.66,29/06/2017
Commercial,Customer Support Group,Building Repairs & Maintenance,60077917,OAKRAY LIMITED,96.00,02/06/2017
Commercial,Customer Support Group,Building Repairs & Maintenance,60079157,OAKRAY LIMITED,174.00,05/06/2017
Commercial,Customer Support Group,Building Repairs & Maintenance,60079257,OAKRAY LIMITED,248.70,14/06/2017
Commercial,Customer Support Group,Building Repairs & Maintenance,60080498,OAKRAY LIMITED,206.62,08/06/2017
Commercial,Customer Support Group,Building Repairs & Maintenance,60081093,OAKRAY LIMITED,64.00,29/06/2017
Commercial,Customer Support Group,Building Repairs & Maintenance,60081096,OAKRAY LIMITED,112.00,29/06/2017
Commercial,Customer Support Group,Building Repairs & Maintenance,60081102,OAKRAY LIMITED,112.00,29/06/2017
Commercial,Customer Support Group,Building Repairs & Maintenance,60081138,OAKRAY LIMITED,96.00,30/06/2017
Commercial,Customer Support Group,Building Repairs & Maintenance,60081139,OAKRAY LIMITED,56.00,30/06/2017
Commercial,Customer Support Group,Building Repairs & Maintenance,60081176,OAKRAY LIMITED,128.00,30/06/2017
Commercial,Customer Support Group,Building Repairs & Maintenance,60081180,OAKRAY LIMITED,644.97,30/06/2017
Commercial,Customer Support Group,Building Repairs & Maintenance,60081182,OAKRAY LIMITED,80.00,30/06/2017
Commercial,Customer Support Group,Building Repairs & Maintenance,60081193,OAKRAY LIMITED,"4,628.75",30/06/2017
Commercial,Customer Support Group,Building Repairs & Maintenance,60081204,OAKRAY LIMITED,96.00,30/06/2017
Commercial,Customer Support Group,Building Repairs & Maintenance,60080182,ONLITECH,"20,909.00",05/06/2017
Commercial,Customer Support Group,Building Repairs & Maintenance,60081786,PUBLIC CLOCKS LTD,124.12,23/06/2017
Commercial,Customer Support Group,Building Repairs & Maintenance,60080823,RGE SERVICES,111.60,22/06/2017
Commercial,Customer Support Group,Building Repairs & Maintenance,60080824,RGE SERVICES,62.00,22/06/2017
Commercial,Customer Support Group,Building Repairs & Maintenance,60080832,RGE SERVICES,62.00,22/06/2017
Commercial,Customer Support Group,Building Repairs & Maintenance,60080866,RGE SERVICES,147.01,22/06/2017
Commercial,Customer Support Group,Building Repairs & Maintenance,60080877,RGE SERVICES,62.00,22/06/2017
Commercial,Customer Support Group,Building Repairs & Maintenance,60080882,RGE SERVICES,130.86,13/06/2017
Commercial,Customer Support Group,Building Repairs & Maintenance,60080892,RGE SERVICES,62.00,22/06/2017
Commercial,Customer Support Group,Building Repairs & Maintenance,60080903,RGE SERVICES,62.00,22/06/2017
Commercial,Customer Support Group,Building Repairs & Maintenance,60080906,RGE SERVICES,124.00,22/06/2017
Commercial,Customer Support Group,Building Repairs & Maintenance,60080932,RGE SERVICES,458.44,22/06/2017
Commercial,Customer Support Group,Building Repairs & Maintenance,60080936,RGE SERVICES,415.65,13/06/2017
Commercial,Customer Support Group,Building Repairs & Maintenance,60080943,RGE SERVICES,109.83,22/06/2017
Commercial,Customer Support Group,Building Repairs & Maintenance,60081572,RGE SERVICES,166.73,22/06/2017
Commercial,Customer Support Group,Building Repairs & Maintenance,60081576,RGE SERVICES,166.80,22/06/2017
Commercial,Customer Support Group,Building Repairs & Maintenance,60081604,RGE SERVICES,72.68,22/06/2017
Commercial,Customer Support Group,Building Repairs & Maintenance,60081633,RGE SERVICES,47.03,22/06/2017
Commercial,Customer Support Group,Building Repairs & Maintenance,60081638,RGE SERVICES,47.03,22/06/2017
Commercial,Customer Support Group,Building Repairs & Maintenance,60081640,RGE SERVICES,47.03,22/06/2017
Commercial,Customer Support Group,Building Repairs & Maintenance,60081670,RGE SERVICES,64.13,22/06/2017
Commercial,Customer Support Group,Building Repairs & Maintenance,60081671,RGE SERVICES,136.81,22/06/2017
Commercial,Customer Support Group,Building Repairs & Maintenance,60081679,RGE SERVICES,47.03,22/06/2017
Commercial,Customer Support Group,Building Repairs & Maintenance,60081690,RGE SERVICES,94.06,22/06/2017
Commercial,Customer Support Group,Building Repairs & Maintenance,60081701,RGE SERVICES,213.75,22/06/2017
Commercial,Customer Support Group,Building Repairs & Maintenance,60081707,RGE SERVICES,"1,386.11",22/06/2017
Commercial,Customer Support Group,Building Repairs & Maintenance,60081709,RGE SERVICES,94.05,22/06/2017
Commercial,Customer Support Group,Building Repairs & Maintenance,60081744,RGE SERVICES,110.20,23/06/2017
Commercial,Customer Support Group,Building Repairs & Maintenance,60081868,RGE SERVICES,374.83,26/06/2017
Commercial,Customer Support Group,Building Repairs & Maintenance,60080323,RIBBEX UK LTD,590.38,21/06/2017
Commercial,Customer Support Group,Building Repairs & Maintenance,60029891,S W BRUCE & CO LTD,25.00,14/06/2017
Commercial,Customer Support Group,Building Repairs & Maintenance,60036290,S W BRUCE & CO LTD,52.00,05/06/2017
Commercial,Customer Support Group,Building Repairs & Maintenance,60055179,S W BRUCE & CO LTD,148.99,05/06/2017
Commercial,Customer Support Group,Building Repairs & Maintenance,60081563,S W BRUCE & CO LTD,129.31,22/06/2017
Commercial,Customer Support Group,Cleaning and domestic material,10013753,CHURCHILL CONTRACT SERVICES,658.45,15/06/2017
Commercial,Customer Support Group,Cleaning and domestic material,60069688,CHURCHILL CONTRACT SERVICES,"1,032.37",08/06/2017
Commercial,Customer Support Group,Cleaning and domestic material,60074140,CHURCHILL CONTRACT SERVICES,"11,562.54",08/06/2017
Commercial,Customer Support Group,Cleaning and domestic material,60074149,CHURCHILL CONTRACT SERVICES,"1,032.37",08/06/2017
Commercial,Customer Support Group,Cleaning and domestic material,60074271,CHURCHILL CONTRACT SERVICES,661.80,08/06/2017
Commercial,Customer Support Group,Cleaning and domestic material,60076870,CHURCHILL CONTRACT SERVICES,"1,133.45",08/06/2017
Commercial,Customer Support Group,Cleaning and domestic material,60076885,CHURCHILL CONTRACT SERVICES,294.16,07/06/2017
Commercial,Customer Support Group,Cleaning and domestic material,60078510,CHURCHILL CONTRACT SERVICES,"7,329.82",19/06/2017
Commercial,Customer Support Group,Cleaning and domestic material,60080270,CHURCHILL CONTRACT SERVICES,"11,562.54",29/06/2017
Commercial,Customer Support Group,Cleaning and domestic material,60080333,CHURCHILL CONTRACT SERVICES,"1,133.45",29/06/2017
Commercial,Customer Support Group,Cleaning and domestic material,60080380,CHURCHILL CONTRACT SERVICES,661.80,29/06/2017
Commercial,Customer Support Group,Cleaning and domestic material,60080385,CHURCHILL CONTRACT SERVICES,"1,032.37",29/06/2017
Commercial,Customer Support Group,Cleaning and domestic material,60080461,CHURCHILL CONTRACT SERVICES,658.45,08/06/2017
Commercial,Customer Support Group,Cleaning and domestic material,60080521,CHURCHILL CONTRACT SERVICES,658.45,29/06/2017
Commercial,Customer Support Group,Cleaning and domestic material,60080503,HERTFORDSHIRE COUNTY COUNCIL,434.74,07/06/2017
Commercial,Customer Support Group,Cleaning and domestic material,60080515,HERTFORDSHIRE COUNTY COUNCIL,289.18,07/06/2017
Commercial,Customer Support Group,Cleaning and domestic material,60080454,HERTFORDSHIRE SUPPLIES   COUNTY CO,513.52,08/06/2017
Commercial,Customer Support Group,Cleaning and domestic material,60080463,HERTFORDSHIRE SUPPLIES   COUNTY CO,38.00,07/06/2017
Commercial,Customer Support Group,Cleaning and domestic material,60081982,HERTFORDSHIRE SUPPLIES   COUNTY CO,"1,695.40",27/06/2017
Commercial,Customer Support Group,Cleaning and domestic material,60070941,SUPERCLEAN SERVICES WOTHORPE LTD,602.55,21/06/2017
Commercial,Customer Support Group,Cleaning and domestic material,60081355,SUPERCLEAN SERVICES WOTHORPE LTD,602.55,21/06/2017
Commercial,Customer Support Group,Cleaning and domestic material,60081362,SUPERCLEAN SERVICES WOTHORPE LTD,602.55,21/06/2017
Commercial,Customer Support Group,Cleaning and domestic material,60081385,SUPERCLEAN SERVICES WOTHORPE LTD,602.55,21/06/2017
Commercial,Customer Support Group,Cleaning and domestic material,60081397,SUPERCLEAN SERVICES WOTHORPE LTD,602.55,21/06/2017
Commercial,Customer Support Group,Cleaning and domestic material,60081425,SUPERCLEAN SERVICES WOTHORPE LTD,602.55,21/06/2017
Commercial,Customer Support Group,CSG Services Contract Payment,10013754,CAPITA BUSINESS SERVICES LTD,"(10,000.00)",16/06/2017
Commercial,Customer Support Group,CSG Services Contract Payment,60079411,CAPITA BUSINESS SERVICES LTD,"101,849.28",16/06/2017
Commercial,Customer Support Group,CSG Services Contract Payment,60079766,CAPITA BUSINESS SERVICES LTD,"47,191.50",01/06/2017
Commercial,Customer Support Group,CSG Services Contract Payment,60080487,CAPITA BUSINESS SERVICES LTD,"193,244.00",16/06/2017
Commercial,Customer Support Group,CSG Services Contract Payment,60080526,CAPITA BUSINESS SERVICES LTD,"200,529.00",16/06/2017
Commercial,Customer Support Group,CSG Services Contract Payment,60080891,CAPITA BUSINESS SERVICES LTD,92.52,13/06/2017
Commercial,Customer Support Group,CSG Services Contract Payment,60080960,CAPITA BUSINESS SERVICES LTD,"37,942.36",22/06/2017
Commercial,Customer Support Group,CSG Services Contract Payment,60081004,CAPITA BUSINESS SERVICES LTD,"5,012.00",22/06/2017
Commercial,Customer Support Group,CSG Services Contract Payment,60081080,CAPITA BUSINESS SERVICES LTD,"9,639.45",22/06/2017
Commercial,Customer Support Group,CSG Services Contract Payment,60081149,CAPITA BUSINESS SERVICES LTD,"232,996.27",26/06/2017
Commercial,Customer Support Group,CSG Services Contract Payment,60081159,CAPITA BUSINESS SERVICES LTD,"40,883.50",26/06/2017
Commercial,Customer Support Group,CSG Services Contract Payment,60081514,CAPITA BUSINESS SERVICES LTD,"52,209.67",29/06/2017
Commercial,Customer Support Group,CSG Services Contract Payment,60081546,CAPITA BUSINESS SERVICES LTD,"86,099.24",29/06/2017
Commercial,Customer Support Group,CSG Services Contract Payment,60081554,CAPITA BUSINESS SERVICES LTD,"948,682.65",29/06/2017
Commercial,Customer Support Group,CSG Services Contract Payment,60081617,CAPITA BUSINESS SERVICES LTD,"15,731.50",29/06/2017
Commercial,Customer Support Group,Electricity,10013748,EDF ENERGY CUSTOMERS PLC,"4,242.78",14/06/2017
Commercial,Customer Support Group,Electricity,60078087,E-ON ENERGY,15.73,02/06/2017
Commercial,Customer Support Group,Electricity,60081265,E-ON ENERGY,14.94,23/06/2017
Commercial,Customer Support Group,Electricity,60080319,KENT COUNTY COUNCIL (KCS),479.78,07/06/2017
Commercial,Customer Support Group,Electricity,60080634,KENT COUNTY COUNCIL (KCS),338.15,20/06/2017
Commercial,Customer Support Group,Electricity,60081396,KENT COUNTY COUNCIL (KCS),"5,788.44",29/06/2017
Commercial,Customer Support Group,Electricity,60081761,KENT COUNTY COUNCIL (KCS),285.94,30/06/2017
Commercial,Customer Support Group,Electricity,60081768,KENT COUNTY COUNCIL (KCS),"5,269.68",29/06/2017
Commercial,Customer Support Group,Electricity,60081811,KENT COUNTY COUNCIL (KCS),"5,548.21",30/06/2017
Commercial,Customer Support Group,Electricity,60082053,KENT COUNTY COUNCIL (KCS),266.82,29/06/2017
Commercial,Customer Support Group,Equipment and Materials Purcha,60081983,HERTEL (UK) LTD,34.91,29/06/2017
Commercial,Customer Support Group,Equipment and Materials Purcha,60082037,HERTEL (UK) LTD,34.91,29/06/2017
Commercial,Customer Support Group,Fees and Charges,80010627,REDACTED - PERSONAL DATA,125.00,14/06/2017
Commercial,Customer Support Group,Furniture-Purchase-Repair,60081463,C H MUNDAY LIMITED,"1,120.70",22/06/2017
Commercial,Customer Support Group,Furniture-Purchase-Repair,10013746,OFFICE UPDATE LTD,"1,204.00",13/06/2017
Commercial,Customer Support Group,Furniture-Purchase-Repair,10013743,SCREWFIX DIRECT LTD,166.58,09/06/2017
Commercial,Customer Support Group,Furniture-Purchase-Repair,60079078,SCREWFIX DIRECT LTD,15.00,02/06/2017
Commercial,Customer Support Group,Furniture-Purchase-Repair,10013742,UNIQUE OFFICE SOLUTIONS LTD,24.00,08/06/2017
Commercial,Customer Support Group,Furniture-Purchase-Repair,60080822,UNIQUE OFFICE SOLUTIONS LTD,60.00,13/06/2017
Commercial,Customer Support Group,Furniture-Purchase-Repair,60081795,UNIQUE OFFICE SOLUTIONS LTD,24.00,23/06/2017
Commercial,Customer Support Group,Furniture-Purchase-Repair,60081729,WAGSTAFF INTERIORS GROUP,577.50,27/06/2017
Commercial,Customer Support Group,Gas,60079592,KENT COUNTY COUNCIL (KCS),398.51,05/06/2017
Commercial,Customer Support Group,Gas,60080619,KENT COUNTY COUNCIL (KCS),225.27,09/06/2017
Commercial,Customer Support Group,Gas,60080621,KENT COUNTY COUNCIL (KCS),53.40,09/06/2017
Commercial,Customer Support Group,Gas,60080640,KENT COUNTY COUNCIL (KCS),83.85,09/06/2017
Commercial,Customer Support Group,Gas,60080715,KENT COUNTY COUNCIL (KCS),180.43,09/06/2017
Commercial,Customer Support Group,Gas,60081721,KENT COUNTY COUNCIL (KCS),"2,099.77",30/06/2017
Commercial,Customer Support Group,Gas,60081766,KENT COUNTY COUNCIL (KCS),76.82,30/06/2017
Commercial,Customer Support Group,Gas,60081770,KENT COUNTY COUNCIL (KCS),65.09,30/06/2017
Commercial,Customer Support Group,Gas,60081778,KENT COUNTY COUNCIL (KCS),68.10,30/06/2017
Commercial,Customer Support Group,Gas,60081794,KENT COUNTY COUNCIL (KCS),180.23,30/06/2017
Commercial,Customer Support Group,Gas,60081813,KENT COUNTY COUNCIL (KCS),55.18,30/06/2017
Commercial,Customer Support Group,Gas,60081989,KENT COUNTY COUNCIL (KCS),315.24,30/06/2017
Commercial,Customer Support Group,Gas,10013752,TOTAL GAS & POWER LTD,"1,227.75",15/06/2017
Commercial,Customer Support Group,Other Services,60077058,BLUE 9 SECURITY LIMITED,40.29,07/06/2017
Commercial,Customer Support Group,Other Services,60080678,BLUE 9 SECURITY LIMITED,"18,332.42",09/06/2017
Commercial,Customer Support Group,Other Services,60080696,BLUE 9 SECURITY LIMITED,"11,584.08",09/06/2017
Commercial,Customer Support Group,Other Services,60080709,BLUE 9 SECURITY LIMITED,"5,735.16",09/06/2017
Commercial,Customer Support Group,Other Services,60080718,BLUE 9 SECURITY LIMITED,"22,899.48",09/06/2017
Commercial,Customer Support Group,Other Services,60080886,BLUE 9 SECURITY LIMITED,214.88,14/06/2017
Commercial,Customer Support Group,Other Services,60081230,BLUE 9 SECURITY LIMITED,53.72,19/06/2017
Commercial,Customer Support Group,Other Services,60081283,BLUE 9 SECURITY LIMITED,402.90,19/06/2017
Commercial,Customer Support Group,Other Services,60081360,BLUE 9 SECURITY LIMITED,308.89,20/06/2017
Commercial,Customer Support Group,Other Services,60081411,BLUE 9 SECURITY LIMITED,26.86,20/06/2017
Commercial,Customer Support Group,Other Services,60081419,BLUE 9 SECURITY LIMITED,322.32,20/06/2017
Commercial,Customer Support Group,Other Services,60081781,LEASING PROGRAMMES LIMITED,"1,235.00",29/06/2017
Commercial,Customer Support Group,Postage,20034127,ROYAL MAIL GROUP LIMITED,331.38,14/06/2017
Commercial,Customer Support Group,Postage,20034128,ROYAL MAIL GROUP LIMITED,331.38,14/06/2017
Commercial,Customer Support Group,Postage,20034129,ROYAL MAIL GROUP LIMITED,331.38,14/06/2017
Commercial,Customer Support Group,Postage,60078229,ROYAL MAIL GROUP LIMITED,"3,397.83",02/06/2017
Commercial,Customer Support Group,Postage,60080268,ROYAL MAIL GROUP LIMITED,"3,931.79",05/06/2017
Commercial,Customer Support Group,Postage,60080821,ROYAL MAIL GROUP LIMITED,"5,047.45",13/06/2017
Commercial,Customer Support Group,Postage,60081213,ROYAL MAIL GROUP LIMITED,"4,249.58",19/06/2017
Commercial,Customer Support Group,Postage,60081218,ROYAL MAIL GROUP LIMITED,"4,317.20",19/06/2017
Commercial,Customer Support Group,Professional Services,60080174,ROSSENDALES (COLLECT) LTD,454.58,02/06/2017
Commercial,Customer Support Group,Professional Services,60080201,ROSSENDALES (COLLECT) LTD,976.44,02/06/2017
Commercial,Customer Support Group,Professional Services,60080212,ROSSENDALES (COLLECT) LTD,350.81,02/06/2017
Commercial,Customer Support Group,Professional Services,60080230,ROSSENDALES (COLLECT) LTD,450.54,05/06/2017
Commercial,Customer Support Group,Professional Services,60080241,ROSSENDALES (COLLECT) LTD,376.39,05/06/2017
Commercial,Customer Support Group,Professional Services,60080260,ROSSENDALES (COLLECT) LTD,603.04,05/06/2017
Commercial,Customer Support Group,Professional Services,60082262,ROSSENDALES (COLLECT) LTD,613.63,30/06/2017
Commercial,Customer Support Group,Publications,60080202,SPECTRUM SIGNWRITING LTD,200.00,22/06/2017
Commercial,Customer Support Group,Rents,60079702,CANAL & RIVER TRUST,"2,000.00",14/06/2017
Commercial,Customer Support Group,Rents,10013782,MONTAGU EVANS LLP,"186,250.00",22/06/2017
Commercial,Customer Support Group,Rubbish Collection,60078408,PEARCE RECYCLING CO. LTD,25.00,08/06/2017
Commercial,Customer Support Group,Rubbish Collection,60080291,PEARCE RECYCLING CO. LTD,25.00,29/06/2017
Commercial,Customer Support Group,Rubbish Collection,60080294,PEARCE RECYCLING CO. LTD,25.00,29/06/2017
Commercial,Customer Support Group,Rubbish Collection,60080364,PEARCE RECYCLING CO. LTD,25.00,29/06/2017
Commercial,Customer Support Group,Rubbish Collection,60080838,PEARCE RECYCLING CO. LTD,4.00,29/06/2017
Commercial,Customer Support Group,Rubbish Collection,60080937,PEARCE RECYCLING CO. LTD,7.50,29/06/2017
Commercial,Customer Support Group,Rubbish Collection,60080939,PEARCE RECYCLING CO. LTD,38.00,29/06/2017
Commercial,Customer Support Group,Service Charges,60080637,TOYS R US LIMITED,"5,121.44",09/06/2017
Commercial,Customer Support Group,Subscriptions,80010047,LONDON ENERGY PROJECT,"7,750.00",13/06/2017
Commercial,Customer Support Group,Ttl IT & Comms,60080441,TELEFONICA UK LTD,"1,124.16",08/06/2017
Commercial,Customer Support Group,Ttl IT & Comms,60080482,TELEFONICA UK LTD,60.00,08/06/2017
Commercial,Customer Support Group,Ttl IT & Comms,60080500,TELEFONICA UK LTD,88.37,09/06/2017
Commercial,Customer Support Group,Ttl IT & Comms,60080520,TELEFONICA UK LTD,"13,679.31",12/06/2017
Commercial,Customer Support Group,Ttl IT & Comms,80010145,VODAFONE LTD (BILLS ONLY),"1,556.05",13/06/2017
Commercial,Customer Support Group,Ttl IT & Comms,80010781,VODAFONE LTD (BILLS ONLY),688.70,26/06/2017
Commercial,Customer Support Group,Water Services,60079333,AFFINITY WATER LIMITED,653.72,02/06/2017
Commercial,Customer Support Group,Water Services,60079481,AFFINITY WATER LIMITED,735.36,06/06/2017
Commercial,Customer Support Group,Water Services,60079494,AFFINITY WATER LIMITED,720.18,06/06/2017
Commercial,Customer Support Group,Water Services,60080663,AFFINITY WATER LIMITED,512.22,21/06/2017
Commercial,Customer Support Group,Water Services,60081135,AFFINITY WATER LIMITED,242.74,15/06/2017
Commercial,Customer Support Group,Water Services,60081422,ANGEL SPRINGS LTD,150.00,29/06/2017
Commercial,Customer Support Group,Water Services,60081449,ANGEL SPRINGS LTD,105.00,29/06/2017
Commercial,Customer Support Group,Water Services,60081801,ANGEL SPRINGS LTD,138.00,29/06/2017
Commercial,Customer Support Group,Water Services,60081808,ANGEL SPRINGS LTD,240.00,29/06/2017
Commercial,Customer Support Group,Water Services,60081826,ANGEL SPRINGS LTD,60.00,29/06/2017
Commercial,Customer Support Group,Water Services,60078306,MIDDLESEX UNIVERSITY,173.91,02/06/2017
Commercial,Customer Support Group,Water Services,60078312,MIDDLESEX UNIVERSITY,95.05,02/06/2017
Commercial,Customer Support Group,Water Services,60078331,MIDDLESEX UNIVERSITY,507.59,02/06/2017
Commercial,Customer Support Group,Water Services,60078346,MIDDLESEX UNIVERSITY,334.85,02/06/2017
Commercial,Housing Needs Resources,Other Services,60081599,THE BARNETGROUP LIMITED,"23,800.61",22/06/2017
Commercial,Housing Needs Resources,Other Services,60081652,THE BARNETGROUP LIMITED,"12,642.54",22/06/2017
Commercial,Housing Needs Resources,Private Contractors - Third Pa,10013785,THE BARNETGROUP LIMITED,"1,606,351.40",23/06/2017
Commercial,Housing Needs Resources,Private Contractors - Third Pa,60081686,THE BARNETGROUP LIMITED,"1,853,222.33",22/06/2017
Commercial,HRA,Consultants Fees,60079000,PRIORITY ESTATES PROJECT LTD,"2,339.97",07/06/2017
Commercial,HRA,Consultants Fees,60082154,PRIORITY ESTATES PROJECT LTD,"1,746.25",29/06/2017
Commercial,HRA,Consultants Fees,60078846,TROWERS & HAMLINS,"6,942.15",02/06/2017
Commercial,HRA,Consultants Fees,60081519,TROWERS & HAMLINS,"4,616.60",26/06/2017
Commercial,HRA,Other Services,60081171,THE BARNETGROUP LIMITED,"189,741.00",19/06/2017
Commercial,HRA,Other Services,60081620,THE BARNETGROUP LIMITED,"2,048,526.26",22/06/2017
Commercial,HRA,Water Services,60079959,AFFINITY WATER LIMITED,"803,084.13",08/06/2017
Commercial,Parking & Infrastructure,Electricity,60080222,LIGHTING REALITY LIMITED,460.00,20/06/2017
Commercial,Parking & Infrastructure,Equipment and Materials Purcha,60079347,ALLEN CONCRETE LTD,900.00,13/06/2017
Commercial,Parking & Infrastructure,Equipment and Materials Purcha,60080422,GREENHAM TRADING LIMITED,382.33,29/06/2017
Commercial,Parking & Infrastructure,Equipment and Materials Purcha,60081177,KLOECKNER METALS UK,65.70,15/06/2017
Commercial,Parking & Infrastructure,Equipment and Materials Purcha,60081190,KLOECKNER METALS UK,191.58,21/06/2017
Commercial,Parking & Infrastructure,Equipment and Materials Purcha,60080994,LAFARGE TARMAC TRADING LIMITED,121.02,22/06/2017
Commercial,Parking & Infrastructure,Equipment and Materials Purcha,60081006,LAFARGE TARMAC TRADING LIMITED,126.88,15/06/2017
Commercial,Parking & Infrastructure,Equipment and Materials Purcha,60081008,LAFARGE TARMAC TRADING LIMITED,103.46,15/06/2017
Commercial,Parking & Infrastructure,Equipment and Materials Purcha,60081017,LAFARGE TARMAC TRADING LIMITED,122.98,26/06/2017
Commercial,Parking & Infrastructure,Equipment and Materials Purcha,60081027,LAFARGE TARMAC TRADING LIMITED,119.07,20/06/2017
Commercial,Parking & Infrastructure,Equipment and Materials Purcha,60081041,LAFARGE TARMAC TRADING LIMITED,95.65,15/06/2017
Commercial,Parking & Infrastructure,Equipment and Materials Purcha,60081042,LAFARGE TARMAC TRADING LIMITED,97.60,29/06/2017
Commercial,Parking & Infrastructure,Equipment and Materials Purcha,60081043,LAFARGE TARMAC TRADING LIMITED,109.31,15/06/2017
Commercial,Parking & Infrastructure,Equipment and Materials Purcha,60081047,LAFARGE TARMAC TRADING LIMITED,169.82,15/06/2017
Commercial,Parking & Infrastructure,Equipment and Materials Purcha,60081066,LAFARGE TARMAC TRADING LIMITED,124.93,22/06/2017
Commercial,Parking & Infrastructure,Equipment and Materials Purcha,60081832,WM SMITH & SONS LIMITED,"1,783.61",23/06/2017
Commercial,Parking & Infrastructure,Miscellaneous Expenses,60081372,NSL LTD,"1,113.90",21/06/2017
Commercial,Parking & Infrastructure,Other Services,60081014,LONDON COUNCILS,"1,500.00",21/06/2017
Commercial,Parking & Infrastructure,Other Services,60081357,NSL LTD,"1,818.00",20/06/2017
Commercial,Parking & Infrastructure,Other Services,60081574,NSL LTD,"2,443.95",23/06/2017
Commercial,Parking & Infrastructure,Other Services,60078285,PARKEON LIMITED,700.95,21/06/2017
Commercial,Parking & Infrastructure,Other Services,60078928,PARKEON LIMITED,"7,620.00",21/06/2017
Commercial,Parking & Infrastructure,Other Services,60079794,PARKEON LIMITED,810.00,20/06/2017
Commercial,Parking & Infrastructure,Other Services,60079845,PARKEON LIMITED,"2,236.08",20/06/2017
Commercial,Parking & Infrastructure,Parking Permit Fees,80011127,REDACTED - PERSONAL DATA,10.00,30/06/2017
Commercial,Parking & Infrastructure,Professional Services,60081390,NSL LTD,"287,741.39",21/06/2017
Commercial,Parking & Infrastructure,Professional Services,60081431,NSL LTD,159.00,21/06/2017
Commercial,Parking & Infrastructure,Professional Services,60081437,NSL LTD,"40,289.39",21/06/2017
Commercial,Parking & Infrastructure,Professional Services,60081456,NSL LTD,"5,403.91",21/06/2017
Commercial,Parking & Infrastructure,Software Licences & Support,60081450,NSL LTD,"7,881.10",20/06/2017
Commercial,Parking & Infrastructure,Software Licences & Support,60081542,NSL LTD,"29,752.64",22/06/2017
Commercial,Parking & Infrastructure,Software Licences & Support,60081627,NSL LTD,"8,898.41",23/06/2017
Commercial,Parking & Infrastructure,Software Licences & Support,60081787,NSL LTD,"34,692.06",23/06/2017
Commercial,Public Health,Health authorities - Third Par,60079818,LONDON BOROUGH OF HARROW,"2,640,300.00",02/06/2017
Commercial,Regional Enterprise,Advertising,60077572,TMP (UK) LTD,198.51,06/06/2017
Commercial,Regional Enterprise,Advertising,60077598,TMP (UK) LTD,108.51,06/06/2017
Commercial,Regional Enterprise,Advertising,60077603,TMP (UK) LTD,112.08,06/06/2017
Commercial,Regional Enterprise,Advertising,60077760,TMP (UK) LTD,32.08,06/06/2017
Commercial,Regional Enterprise,Advertising,60077762,TMP (UK) LTD,28.51,06/06/2017
Commercial,Regional Enterprise,Advertising,60080170,TMP (UK) LTD,151.28,06/06/2017
Commercial,Regional Enterprise,Advertising,60080187,TMP (UK) LTD,112.08,06/06/2017
Commercial,Regional Enterprise,Advertising,60080226,TMP (UK) LTD,108.51,06/06/2017
Commercial,Regional Enterprise,Advertising,60080240,TMP (UK) LTD,112.08,06/06/2017
Commercial,Regional Enterprise,Advertising,60080828,TMP (UK) LTD,165.54,23/06/2017
Commercial,Regional Enterprise,Advertising,60080829,TMP (UK) LTD,32.08,23/06/2017
Commercial,Regional Enterprise,Advertising,60080855,TMP (UK) LTD,32.08,26/06/2017
Commercial,Regional Enterprise,Advertising,60080863,TMP (UK) LTD,212.77,23/06/2017
Commercial,Regional Enterprise,Advertising,60080878,TMP (UK) LTD,28.51,23/06/2017
Commercial,Regional Enterprise,Advertising,60080952,TMP (UK) LTD,32.08,23/06/2017
Commercial,Regional Enterprise,Advertising,60082111,TMP (UK) LTD,112.08,29/06/2017
Commercial,Regional Enterprise,Building Repairs & Maintenance,60080464,AMWELL CONSTRUCTION LTD,187.50,07/06/2017
Commercial,Regional Enterprise,Building Repairs & Maintenance,80010873,DP BUILDERS DISABLED ADAPTATIONS,"2,800.00",20/06/2017
Commercial,Regional Enterprise,Building Repairs & Maintenance,60074297,S W BRUCE & CO LTD,"2,015.17",14/06/2017
Commercial,Regional Enterprise,Cleaning and domestic material,60080361,CHURCHILL CONTRACT SERVICES,488.56,29/06/2017
Commercial,Regional Enterprise,Consultants Fees,60074090,BIOTOPE LTD,638.74,01/06/2017
Commercial,Regional Enterprise,Consultants Fees,60079635,CONWAY AECOM LTD,"6,729.49",14/06/2017
Commercial,Regional Enterprise,Consultants Fees,10013797,EVERSHEDS LLP,12.00,27/06/2017
Commercial,Regional Enterprise,Consultants Fees,60079680,EVERSHEDS LLP,"83,745.26",07/06/2017
Commercial,Regional Enterprise,Consultants Fees,60079137,NETWORK RAIL INFRASTRUCTURE LTD,"55,262.22",06/06/2017
Commercial,Regional Enterprise,Consultants Fees,60079158,NETWORK RAIL INFRASTRUCTURE LTD,"759,545.50",20/06/2017
Commercial,Regional Enterprise,Consultants Fees,60079994,NORTH LONDON WASTE AUTHORITY,"53,568.58",02/06/2017
Commercial,Regional Enterprise,Electricity,10013776,BARNET LIGHTING SERVICES LTD,"8,879.27",27/06/2017
Commercial,Regional Enterprise,Grant Payments,80011055,ACCESS & AUTOMATION LTD,"2,770.00",29/06/2017
Commercial,Regional Enterprise,Grant Payments,80010613,AMWELL CONSTRUCTION LTD,"3,983.00",07/06/2017
Commercial,Regional Enterprise,Grant Payments,80010718,AMWELL CONSTRUCTION LTD,"5,719.00",13/06/2017
Commercial,Regional Enterprise,Grant Payments,80010990,AMWELL CONSTRUCTION LTD,"3,722.59",23/06/2017
Commercial,Regional Enterprise,Grant Payments,80010568,ARTHUR J. FERRYMAN ASSOCIATES,"1,175.40",06/06/2017
Commercial,Regional Enterprise,Grant Payments,80010646,ARTHUR J. FERRYMAN ASSOCIATES,"1,039.60",08/06/2017
Commercial,Regional Enterprise,Grant Payments,80010650,ARTHUR J. FERRYMAN ASSOCIATES,"3,673.68",16/06/2017
Commercial,Regional Enterprise,Grant Payments,80010831,ARTHUR J. FERRYMAN ASSOCIATES,"1,017.00",16/06/2017
Commercial,Regional Enterprise,Grant Payments,80010652,B G BUILDING SOLUTIONS LTD,"34,432.05",14/06/2017
Commercial,Regional Enterprise,Grant Payments,80010596,DOLPHIN MOBILITY LTD.,"2,090.00",07/06/2017
Commercial,Regional Enterprise,Grant Payments,80010662,DOLPHIN MOBILITY LTD.,"5,505.00",12/06/2017
Commercial,Regional Enterprise,Grant Payments,80010830,DOLPHIN MOBILITY LTD.,"22,535.00",16/06/2017
Commercial,Regional Enterprise,Grant Payments,80010416,DP BUILDERS DISABLED ADAPTATIONS,"4,630.00",01/06/2017
Commercial,Regional Enterprise,Grant Payments,80010584,DP BUILDERS DISABLED ADAPTATIONS,"7,382.00",09/06/2017
Commercial,Regional Enterprise,Grant Payments,80010636,DP BUILDERS DISABLED ADAPTATIONS,890.00,15/06/2017
Commercial,Regional Enterprise,Grant Payments,80011191,GHYLLSIDE HEALTHCARE,"3,376.00",30/06/2017
Commercial,Regional Enterprise,Grant Payments,80010588,H D PROPERTY SERVICES LTD,525.00,06/06/2017
Commercial,Regional Enterprise,Grant Payments,80010693,H D PROPERTY SERVICES LTD,"2,763.60",12/06/2017
Commercial,Regional Enterprise,Grant Payments,80010783,H D PROPERTY SERVICES LTD,"4,543.00",15/06/2017
Commercial,Regional Enterprise,Grant Payments,80010900,H D PROPERTY SERVICES LTD,"1,953.00",20/06/2017
Commercial,Regional Enterprise,Grant Payments,80010984,H D PROPERTY SERVICES LTD,"5,379.00",23/06/2017
Commercial,Regional Enterprise,Grant Payments,80011101,H D PROPERTY SERVICES LTD,"5,123.00",28/06/2017
Commercial,Regional Enterprise,Grant Payments,80010393,MCP PROPERTY SERVICES LTD,"1,821.75",01/06/2017
Commercial,Regional Enterprise,Grant Payments,80010784,OCTA CONSTRUCTION LTD,"4,295.00",15/06/2017
Commercial,Regional Enterprise,Grant Payments,80010143,REDACTED - PERSONAL DATA,"8,663.30",07/06/2017
Commercial,Regional Enterprise,Grant Payments,80010595,REDACTED - PERSONAL DATA,"6,051.00",07/06/2017
Commercial,Regional Enterprise,Grant Payments,80010829,REDACTED - PERSONAL DATA,"18,633.20",16/06/2017
Commercial,Regional Enterprise,Grant Payments,80011166,REDACTED - PERSONAL DATA,"5,410.00",29/06/2017
Commercial,Regional Enterprise,Grant Payments,80011197,REDACTED - PERSONAL DATA,"11,481.00",30/06/2017
Commercial,Regional Enterprise,Grant Payments,80010545,SOUTH HERTFORDSHIRE,"8,500.00",05/06/2017
Commercial,Regional Enterprise,Grant Payments,80010551,SOUTH HERTFORDSHIRE,"5,646.00",05/06/2017
Commercial,Regional Enterprise,Grant Payments,80010557,SOUTH HERTFORDSHIRE,"3,165.58",05/06/2017
Commercial,Regional Enterprise,Grant Payments,80010562,SOUTH HERTFORDSHIRE,"4,976.00",06/06/2017
Commercial,Regional Enterprise,Grant Payments,80010743,SOUTH HERTFORDSHIRE,"5,060.00",13/06/2017
Commercial,Regional Enterprise,Grant Payments,80011167,STANNAH STAIRLIFTS LTD,229.00,29/06/2017
Commercial,Regional Enterprise,Grant Payments,60080046,THE BARNETGROUP LIMITED,"113,448.03",01/06/2017
Commercial,Regional Enterprise,Grant Payments,80010017,TOTAL HYGIENE LIMITED,594.00,01/06/2017
Commercial,Regional Enterprise,Legal and Court Fees,80010754,FORSTERS LLP,"27,453.75",15/06/2017
Commercial,Regional Enterprise,Legal and Court Fees,80011077,REDACTED - PERSONAL DATA,200.00,27/06/2017
Commercial,Regional Enterprise,Other Services,60079901,AFFINITY WATER LIMITED,44.57,22/06/2017
Commercial,Regional Enterprise,Other Services,60080804,AFFINITY WATER LIMITED,22.24,23/06/2017
Commercial,Regional Enterprise,Other Services,60080811,AFFINITY WATER LIMITED,25.95,23/06/2017
Commercial,Regional Enterprise,Other Services,10013775,BARNET LIGHTING SERVICES LTD,"2,769.18",21/06/2017
Commercial,Regional Enterprise,Other Services,10013777,BARNET LIGHTING SERVICES LTD,"9,912.50",21/06/2017
Commercial,Regional Enterprise,Other Services,10013778,BARNET LIGHTING SERVICES LTD,"1,611.55",21/06/2017
Commercial,Regional Enterprise,Other Services,10013780,BARNET LIGHTING SERVICES LTD,260.00,21/06/2017
Commercial,Regional Enterprise,Other Services,10013781,BARNET LIGHTING SERVICES LTD,"3,745.72",27/06/2017
Commercial,Regional Enterprise,Other Services,60082191,BARNET LIGHTING SERVICES LTD,212.41,29/06/2017
Commercial,Regional Enterprise,Other Services,60079656,BLUE 9 SECURITY LIMITED,"15,383.16",07/06/2017
Commercial,Regional Enterprise,Other Services,60079958,BLUE 9 SECURITY LIMITED,"23,168.16",07/06/2017
Commercial,Regional Enterprise,Other Services,60080075,BLUE 9 SECURITY LIMITED,"20,521.26",07/06/2017
Commercial,Regional Enterprise,Other Services,10013740,CONWAY AECOM LTD,"193,726.99",08/06/2017
Commercial,Regional Enterprise,Other Services,10013741,CONWAY AECOM LTD,"45,035.11",08/06/2017
Commercial,Regional Enterprise,Other Services,10013790,CONWAY AECOM LTD,67.14,26/06/2017
Commercial,Regional Enterprise,Other Services,10013791,CONWAY AECOM LTD,"93,976.04",26/06/2017
Commercial,Regional Enterprise,Other Services,10013792,CONWAY AECOM LTD,93.09,26/06/2017
Commercial,Regional Enterprise,Other Services,10013793,CONWAY AECOM LTD,549.61,26/06/2017
Commercial,Regional Enterprise,Other Services,10013794,CONWAY AECOM LTD,345.29,26/06/2017
Commercial,Regional Enterprise,Other Services,10013795,CONWAY AECOM LTD,"11,574.95",26/06/2017
Commercial,Regional Enterprise,Other Services,60052820,CONWAY AECOM LTD,"2,234.94",22/06/2017
Commercial,Regional Enterprise,Other Services,60052950,CONWAY AECOM LTD,"4,721.61",22/06/2017
Commercial,Regional Enterprise,Other Services,60055054,CONWAY AECOM LTD,"12,744.85",05/06/2017
Commercial,Regional Enterprise,Other Services,60055805,CONWAY AECOM LTD,"5,283.10",05/06/2017
Commercial,Regional Enterprise,Other Services,60055808,CONWAY AECOM LTD,628.85,26/06/2017
Commercial,Regional Enterprise,Other Services,60055817,CONWAY AECOM LTD,"2,947.81",22/06/2017
Commercial,Regional Enterprise,Other Services,60055828,CONWAY AECOM LTD,"3,394.79",22/06/2017
Commercial,Regional Enterprise,Other Services,60055832,CONWAY AECOM LTD,"2,225.20",22/06/2017
Commercial,Regional Enterprise,Other Services,60055848,CONWAY AECOM LTD,"4,783.17",22/06/2017
Commercial,Regional Enterprise,Other Services,60057786,CONWAY AECOM LTD,876.77,05/06/2017
Commercial,Regional Enterprise,Other Services,60058051,CONWAY AECOM LTD,"24,860.64",06/06/2017
Commercial,Regional Enterprise,Other Services,60058061,CONWAY AECOM LTD,"4,406.54",22/06/2017
Commercial,Regional Enterprise,Other Services,60058091,CONWAY AECOM LTD,"3,847.66",05/06/2017
Commercial,Regional Enterprise,Other Services,60074784,CONWAY AECOM LTD,"1,454.89",22/06/2017
Commercial,Regional Enterprise,Other Services,60074800,CONWAY AECOM LTD,531.72,26/06/2017
Commercial,Regional Enterprise,Other Services,60074849,CONWAY AECOM LTD,"8,131.79",26/06/2017
Commercial,Regional Enterprise,Other Services,60074870,CONWAY AECOM LTD,"1,259.28",26/06/2017
Commercial,Regional Enterprise,Other Services,60076944,CONWAY AECOM LTD,"15,374.59",26/06/2017
Commercial,Regional Enterprise,Other Services,60077014,CONWAY AECOM LTD,124.28,26/06/2017
Commercial,Regional Enterprise,Other Services,60079724,CONWAY AECOM LTD,"5,449.70",14/06/2017
Commercial,Regional Enterprise,Other Services,60079910,CONWAY AECOM LTD,930.14,07/06/2017
Commercial,Regional Enterprise,Other Services,60079980,CONWAY AECOM LTD,"23,876.40",23/06/2017
Commercial,Regional Enterprise,Other Services,60080636,CONWAY AECOM LTD,"38,766.31",28/06/2017
Commercial,Regional Enterprise,Other Services,60080651,CONWAY AECOM LTD,"8,734.00",23/06/2017
Commercial,Regional Enterprise,Other Services,60080661,CONWAY AECOM LTD,"19,954.00",23/06/2017
Commercial,Regional Enterprise,Other Services,60080664,CONWAY AECOM LTD,"45,195.89",28/06/2017
Commercial,Regional Enterprise,Other Services,60080712,CONWAY AECOM LTD,"33,898.00",23/06/2017
Commercial,Regional Enterprise,Other Services,60080714,CONWAY AECOM LTD,"52,710.00",23/06/2017
Commercial,Regional Enterprise,Other Services,60080727,CONWAY AECOM LTD,39.26,21/06/2017
Commercial,Regional Enterprise,Other Services,60080729,CONWAY AECOM LTD,629.20,19/06/2017
Commercial,Regional Enterprise,Other Services,60080733,CONWAY AECOM LTD,40.33,22/06/2017
Commercial,Regional Enterprise,Other Services,60080736,CONWAY AECOM LTD,117.29,22/06/2017
Commercial,Regional Enterprise,Other Services,60080748,CONWAY AECOM LTD,"10,058.01",21/06/2017
Commercial,Regional Enterprise,Other Services,60080754,CONWAY AECOM LTD,39.60,22/06/2017
Commercial,Regional Enterprise,Other Services,60080758,CONWAY AECOM LTD,14.85,22/06/2017
Commercial,Regional Enterprise,Other Services,60080762,CONWAY AECOM LTD,"18,812.45",29/06/2017
Commercial,Regional Enterprise,Other Services,60080768,CONWAY AECOM LTD,39.26,22/06/2017
Commercial,Regional Enterprise,Other Services,60080777,CONWAY AECOM LTD,35.57,22/06/2017
Commercial,Regional Enterprise,Other Services,60080779,CONWAY AECOM LTD,39.97,22/06/2017
Commercial,Regional Enterprise,Other Services,60080783,CONWAY AECOM LTD,39.26,22/06/2017
Commercial,Regional Enterprise,Other Services,60080803,CONWAY AECOM LTD,40.66,22/06/2017
Commercial,Regional Enterprise,Other Services,60080806,CONWAY AECOM LTD,"1,349.28",19/06/2017
Commercial,Regional Enterprise,Other Services,60080808,CONWAY AECOM LTD,39.97,21/06/2017
Commercial,Regional Enterprise,Other Services,60080812,CONWAY AECOM LTD,39.26,21/06/2017
Commercial,Regional Enterprise,Other Services,60080849,CONWAY AECOM LTD,"8,775.33",22/06/2017
Commercial,Regional Enterprise,Other Services,60080859,CONWAY AECOM LTD,324.84,13/06/2017
Commercial,Regional Enterprise,Other Services,60080864,CONWAY AECOM LTD,"24,195.81",13/06/2017
Commercial,Regional Enterprise,Other Services,60080880,CONWAY AECOM LTD,849.29,13/06/2017
Commercial,Regional Enterprise,Other Services,60080909,CONWAY AECOM LTD,"54,398.62",13/06/2017
Commercial,Regional Enterprise,Other Services,60080923,CONWAY AECOM LTD,"218,937.51",13/06/2017
Commercial,Regional Enterprise,Other Services,60080927,CONWAY AECOM LTD,"2,601.19",13/06/2017
Commercial,Regional Enterprise,Other Services,60080954,CONWAY AECOM LTD,"2,342.96",15/06/2017
Commercial,Regional Enterprise,Other Services,60080961,CONWAY AECOM LTD,"5,994.18",15/06/2017
Commercial,Regional Enterprise,Other Services,60080965,CONWAY AECOM LTD,295.15,15/06/2017
Commercial,Regional Enterprise,Other Services,60080966,CONWAY AECOM LTD,344.34,15/06/2017
Commercial,Regional Enterprise,Other Services,60080968,CONWAY AECOM LTD,"1,382.08",15/06/2017
Commercial,Regional Enterprise,Other Services,60080979,CONWAY AECOM LTD,34.06,14/06/2017
Commercial,Regional Enterprise,Other Services,60080980,CONWAY AECOM LTD,"2,464.48",15/06/2017
Commercial,Regional Enterprise,Other Services,60080981,CONWAY AECOM LTD,302.72,15/06/2017
Commercial,Regional Enterprise,Other Services,60080990,CONWAY AECOM LTD,674.64,15/06/2017
Commercial,Regional Enterprise,Other Services,60080991,CONWAY AECOM LTD,303.59,15/06/2017
Commercial,Regional Enterprise,Other Services,60080995,CONWAY AECOM LTD,378.97,15/06/2017
Commercial,Regional Enterprise,Other Services,60080997,CONWAY AECOM LTD,"2,371.43",15/06/2017
Commercial,Regional Enterprise,Other Services,60080999,CONWAY AECOM LTD,"2,016.87",15/06/2017
Commercial,Regional Enterprise,Other Services,60081009,CONWAY AECOM LTD,"3,597.91",15/06/2017
Commercial,Regional Enterprise,Other Services,60081010,CONWAY AECOM LTD,788.24,14/06/2017
Commercial,Regional Enterprise,Other Services,60081020,CONWAY AECOM LTD,"27,478.84",23/06/2017
Commercial,Regional Enterprise,Other Services,60081025,CONWAY AECOM LTD,861.05,15/06/2017
Commercial,Regional Enterprise,Other Services,60081030,CONWAY AECOM LTD,"43,155.11",14/06/2017
Commercial,Regional Enterprise,Other Services,60081033,CONWAY AECOM LTD,590.30,15/06/2017
Commercial,Regional Enterprise,Other Services,60081037,CONWAY AECOM LTD,"1,298.68",14/06/2017
Commercial,Regional Enterprise,Other Services,60081054,CONWAY AECOM LTD,"4,979.33",22/06/2017
Commercial,Regional Enterprise,Other Services,60081056,CONWAY AECOM LTD,"1,285.78",15/06/2017
Commercial,Regional Enterprise,Other Services,60081057,CONWAY AECOM LTD,"3,399.17",15/06/2017
Commercial,Regional Enterprise,Other Services,60081063,CONWAY AECOM LTD,184.40,15/06/2017
Commercial,Regional Enterprise,Other Services,60081064,CONWAY AECOM LTD,"1,048.76",15/06/2017
Commercial,Regional Enterprise,Other Services,60081067,CONWAY AECOM LTD,"3,107.80",15/06/2017
Commercial,Regional Enterprise,Other Services,60081077,CONWAY AECOM LTD,"1,734.75",15/06/2017
Commercial,Regional Enterprise,Other Services,60081089,CONWAY AECOM LTD,"21,165.24",22/06/2017
Commercial,Regional Enterprise,Other Services,60081092,CONWAY AECOM LTD,"38,800.00",21/06/2017
Commercial,Regional Enterprise,Other Services,60081094,CONWAY AECOM LTD,"2,471.62",22/06/2017
Commercial,Regional Enterprise,Other Services,60081095,CONWAY AECOM LTD,506.40,15/06/2017
Commercial,Regional Enterprise,Other Services,60081123,CONWAY AECOM LTD,15.65,22/06/2017
Commercial,Regional Enterprise,Other Services,60081129,CONWAY AECOM LTD,"3,221.83",22/06/2017
Commercial,Regional Enterprise,Other Services,60081144,CONWAY AECOM LTD,"26,647.38",29/06/2017
Commercial,Regional Enterprise,Other Services,60081155,CONWAY AECOM LTD,"4,000.00",21/06/2017
Commercial,Regional Enterprise,Other Services,60081165,CONWAY AECOM LTD,"35,000.00",15/06/2017
Commercial,Regional Enterprise,Other Services,60081174,CONWAY AECOM LTD,506.40,15/06/2017
Commercial,Regional Enterprise,Other Services,60081184,CONWAY AECOM LTD,"5,150.18",22/06/2017
Commercial,Regional Enterprise,Other Services,60081247,CONWAY AECOM LTD,19.31,19/06/2017
Commercial,Regional Enterprise,Other Services,60081278,CONWAY AECOM LTD,"24,000.00",27/06/2017
Commercial,Regional Enterprise,Other Services,60081285,CONWAY AECOM LTD,"11,726.53",29/06/2017
Commercial,Regional Enterprise,Other Services,60081297,CONWAY AECOM LTD,"23,215.30",27/06/2017
Commercial,Regional Enterprise,Other Services,60081451,CONWAY AECOM LTD,78.72,22/06/2017
Commercial,Regional Enterprise,Other Services,60081464,CONWAY AECOM LTD,"23,500.00",22/06/2017
Commercial,Regional Enterprise,Other Services,60081468,CONWAY AECOM LTD,"10,165.34",27/06/2017
Commercial,Regional Enterprise,Other Services,60081478,CONWAY AECOM LTD,"1,107.58",22/06/2017
Commercial,Regional Enterprise,Other Services,60081479,CONWAY AECOM LTD,"115,000.00",22/06/2017
Commercial,Regional Enterprise,Other Services,60081503,CONWAY AECOM LTD,685.75,27/06/2017
Commercial,Regional Enterprise,Other Services,60081513,CONWAY AECOM LTD,451.96,27/06/2017
Commercial,Regional Enterprise,Other Services,60081569,CONWAY AECOM LTD,"31,228.95",29/06/2017
Commercial,Regional Enterprise,Other Services,60081597,CONWAY AECOM LTD,"2,205.65",22/06/2017
Commercial,Regional Enterprise,Other Services,60081681,CONWAY AECOM LTD,"7,176.13",22/06/2017
Commercial,Regional Enterprise,Other Services,60081779,CONWAY AECOM LTD,"11,873.95",27/06/2017
Commercial,Regional Enterprise,Other Services,60082110,CONWAY AECOM LTD,"4,940.07",29/06/2017
Commercial,Regional Enterprise,Other Services,60082114,CONWAY AECOM LTD,"12,280.55",29/06/2017
Commercial,Regional Enterprise,Other Services,60082116,CONWAY AECOM LTD,192.08,29/06/2017
Commercial,Regional Enterprise,Other Services,60082124,CONWAY AECOM LTD,"3,786.72",29/06/2017
Commercial,Regional Enterprise,Other Services,60082126,CONWAY AECOM LTD,"53,392.00",29/06/2017
Commercial,Regional Enterprise,Other Services,60082144,CONWAY AECOM LTD,"3,712.58",29/06/2017
Commercial,Regional Enterprise,Other Services,60082146,CONWAY AECOM LTD,164.64,29/06/2017
Commercial,Regional Enterprise,Other Services,60082151,CONWAY AECOM LTD,576.24,29/06/2017
Commercial,Regional Enterprise,Other Services,60082162,CONWAY AECOM LTD,274.40,29/06/2017
Commercial,Regional Enterprise,Other Services,60082170,CONWAY AECOM LTD,659.23,29/06/2017
Commercial,Regional Enterprise,Other Services,60082183,CONWAY AECOM LTD,"1,893.36",29/06/2017
Commercial,Regional Enterprise,Other Services,60082187,CONWAY AECOM LTD,"3,915.03",29/06/2017
Commercial,Regional Enterprise,Other Services,60082194,CONWAY AECOM LTD,219.52,29/06/2017
Commercial,Regional Enterprise,Other Services,60082211,CONWAY AECOM LTD,219.52,29/06/2017
Commercial,Regional Enterprise,Other Services,60082230,CONWAY AECOM LTD,411.60,29/06/2017
Commercial,Regional Enterprise,Other Services,60082240,CONWAY AECOM LTD,411.60,29/06/2017
Commercial,Regional Enterprise,Other Services,10013802,CYCLE CONFIDENT LTD,195.00,29/06/2017
Commercial,Regional Enterprise,Other Services,60078944,CYCLE CONFIDENT LTD,"2,080.00",01/06/2017
Commercial,Regional Enterprise,Other Services,60079632,CYCLE CONFIDENT LTD,937.65,05/06/2017
Commercial,Regional Enterprise,Other Services,60080827,CYCLE CONFIDENT LTD,"20,127.86",29/06/2017
Commercial,Regional Enterprise,Other Services,60081538,ETZ CHAIM JEWISH PRIMARY SCHOOL,400.00,23/06/2017
Commercial,Regional Enterprise,Other Services,60079039,KENT COUNTY COUNCIL,35.74,02/06/2017
Commercial,Regional Enterprise,Other Services,60079051,KENT COUNTY COUNCIL,40.52,02/06/2017
Commercial,Regional Enterprise,Other Services,60079081,KENT COUNTY COUNCIL,17.42,02/06/2017
Commercial,Regional Enterprise,Other Services,60079118,KENT COUNTY COUNCIL,30.30,02/06/2017
Commercial,Regional Enterprise,Other Services,60079459,KENT COUNTY COUNCIL (KCS),11.38,02/06/2017
Commercial,Regional Enterprise,Other Services,60079461,KENT COUNTY COUNCIL (KCS),38.05,02/06/2017
Commercial,Regional Enterprise,Other Services,60079464,KENT COUNTY COUNCIL (KCS),52.90,02/06/2017
Commercial,Regional Enterprise,Other Services,60079513,LONDON & ESSEX NEWSPAPERS LTD,250.00,29/06/2017
Commercial,Regional Enterprise,Other Services,60079565,LONDON & ESSEX NEWSPAPERS LTD,250.00,29/06/2017
Commercial,Regional Enterprise,Other Services,60079357,LONDON BOROUGH OF HARROW,"2,080.00",02/06/2017
Commercial,Regional Enterprise,Other Services,60078412,LONDON BUSES SERVICES LIMITED,"2,069.95",02/06/2017
Commercial,Regional Enterprise,Other Services,60082139,MOTT MACDONALD LTD/CAMBRIDGE EDUCATION,"1,300.00",29/06/2017
Commercial,Regional Enterprise,Other Services,60080076,RM COUNTRYSIDE SERVICES LTD,175.00,01/06/2017
Commercial,Regional Enterprise,Other Services,60082166,RM COUNTRYSIDE SERVICES LTD,"1,304.00",29/06/2017
Commercial,Regional Enterprise,Other Services,60079706,ROAD SAFETY GB,350.00,15/06/2017
Commercial,Regional Enterprise,Professional Services,10013779,BARNET LIGHTING SERVICES LTD,"84,171.32",21/06/2017
Commercial,Regional Enterprise,Professional Services,60045675,OPENVIEW SECURITY SOLUTIONS LTD,"(268,548.31)",26/06/2017
Commercial,Regional Enterprise,Professional Services,60069686,OPENVIEW SECURITY SOLUTIONS LTD,"33,354.10",26/06/2017
Commercial,Regional Enterprise,Professional Services,60069687,OPENVIEW SECURITY SOLUTIONS LTD,"24,989.56",26/06/2017
Commercial,Regional Enterprise,Professional Services,60073028,OPENVIEW SECURITY SOLUTIONS LTD,"12,603.98",26/06/2017
Commercial,Regional Enterprise,Professional Services,60073983,OPENVIEW SECURITY SOLUTIONS LTD,"25,946.83",26/06/2017
Commercial,Regional Enterprise,Professional Services,60074978,OPENVIEW SECURITY SOLUTIONS LTD,"30,753.42",26/06/2017
Commercial,Regional Enterprise,Professional Services,60075284,OPENVIEW SECURITY SOLUTIONS LTD,"12,494.78",26/06/2017
Commercial,Regional Enterprise,Professional Services,60075300,OPENVIEW SECURITY SOLUTIONS LTD,"15,557.95",26/06/2017
Commercial,Regional Enterprise,Professional Services,60075584,OPENVIEW SECURITY SOLUTIONS LTD,"15,956.36",26/06/2017
Commercial,Regional Enterprise,Professional Services,60075586,OPENVIEW SECURITY SOLUTIONS LTD,"20,927.05",26/06/2017
Commercial,Regional Enterprise,Professional Services,60075630,OPENVIEW SECURITY SOLUTIONS LTD,"12,494.78",26/06/2017
Commercial,Regional Enterprise,Professional Services,60081545,OPENVIEW SECURITY SOLUTIONS LTD,"103,744.90",26/06/2017
Commercial,Regional Enterprise,Professional Services,60081382,PUBLIC ANALYST SCIENTIFIC SERVS. LT,52.43,27/06/2017
Commercial,Regional Enterprise,RE Services Contract Payment,60080852,RE (REGIONAL ENTERPRISE) LIMITED,"22,179.95",28/06/2017
Commercial,Regional Enterprise,RE Services Contract Payment,60080918,RE (REGIONAL ENTERPRISE) LIMITED,"22,900.41",28/06/2017
Commercial,Regional Enterprise,RE Services Contract Payment,60081377,RE (REGIONAL ENTERPRISE) LIMITED,"25,288.43",28/06/2017
Commercial,Regional Enterprise,RE Services Contract Payment,60081383,RE (REGIONAL ENTERPRISE) LIMITED,"17,603.42",28/06/2017
Commercial,Regional Enterprise,RE Services Contract Payment,60081393,RE (REGIONAL ENTERPRISE) LIMITED,"35,592.47",28/06/2017
Commercial,Regional Enterprise,RE Services Contract Payment,60081395,RE (REGIONAL ENTERPRISE) LIMITED,"14,094.57",28/06/2017
Commercial,Regional Enterprise,RE Services Contract Payment,60081406,RE (REGIONAL ENTERPRISE) LIMITED,"41,094.86",28/06/2017
Commercial,Regional Enterprise,RE Services Contract Payment,60081736,RE (REGIONAL ENTERPRISE) LIMITED,"4,213,754.00",28/06/2017
Commercial,Regional Enterprise,RE Services Contract Payment,60081783,RE (REGIONAL ENTERPRISE) LIMITED,"26,082.97",28/06/2017
Commercial,Regional Enterprise,RE Services Contract Payment,60081788,RE (REGIONAL ENTERPRISE) LIMITED,"21,221.93",28/06/2017
Commissioning,Commissioning,Agency/Interim Hays,60077380,SUE HILL RECRUITMENT & SERVICES LTD,951.19,01/06/2017
Commissioning,Commissioning,Agency/Interim Hays,60077434,SUE HILL RECRUITMENT & SERVICES LTD,938.16,02/06/2017
Commissioning,Commissioning,Agency/Interim Hays,60078663,SUE HILL RECRUITMENT & SERVICES LTD,899.07,01/06/2017
Commissioning,Commissioning,Agency/Interim Hays,60079207,SUE HILL RECRUITMENT & SERVICES LTD,501.66,08/06/2017
Commissioning,Commissioning,Agency/Interim Hays,60079774,SUE HILL RECRUITMENT & SERVICES LTD,938.16,15/06/2017
Commissioning,Commissioning,Agency/Interim Hays,60080040,SUE HILL RECRUITMENT & SERVICES LTD,742.71,22/06/2017
Commissioning,Commissioning,Agency/Interim Hays,60080410,SUE HILL RECRUITMENT & SERVICES LTD,938.16,29/06/2017
Commissioning,Commissioning,Building Repairs & Maintenance,60079165,CONWAY AECOM LTD,"1,152.87",07/06/2017
Commissioning,Commissioning,Building Repairs & Maintenance,60080623,RM COUNTRYSIDE SERVICES LTD,"1,280.00",21/06/2017
Commissioning,Commissioning,Building Repairs & Maintenance,60078716,S W BRUCE & CO LTD,361.20,01/06/2017
Commissioning,Commissioning,Building Repairs & Maintenance,60079562,S W BRUCE & CO LTD,441.50,14/06/2017
Commissioning,Commissioning,Building Repairs & Maintenance,60080432,S W BRUCE & CO LTD,"53,321.65",15/06/2017
Commissioning,Commissioning,Capital Construction and Works,60081784,CLEVELAND SITESAFE LTD,"25,737.62",29/06/2017
Commissioning,Commissioning,COMMUNICATION REAL,60081646,REDACTED - PERSONAL DATA,300.00,23/06/2017
Commissioning,Commissioning,Conference Expenses,60077548,OCEAN MEDIA GROUP LIMITED,"1,780.00",12/06/2017
Commissioning,Commissioning,Consultants Fees,80010852,AMEO PROFESSIONAL SERVICES LTD,"15,000.00",16/06/2017
Commissioning,Commissioning,Consultants Fees,80010960,CO-OP LEGAL SERVICES LTD,291.67,22/06/2017
Commissioning,Commissioning,Consultants Fees,60077663,FMG CONSULTING LTD,"3,565.33",30/06/2017
Commissioning,Commissioning,Consultants Fees,10013801,GALLIFORD TRY,"821,327.67",28/06/2017
Commissioning,Commissioning,Consultants Fees,60079025,LEIDOS INNOVATIONS UK LTD,"10,519.00",06/06/2017
Commissioning,Commissioning,Consultants Fees,60080556,LEIDOS INNOVATIONS UK LTD,"3,707.00",29/06/2017
Commissioning,Commissioning,Consultants Fees,80010600,LONDON SPORT,80.00,06/06/2017
Commissioning,Commissioning,Consultants Fees,60081535,WILLMOTT DIXON CONSTRUCTION LTD,"1,745,139.00",22/06/2017
Commissioning,Commissioning,Employee Expenses,60081205,CAPITA BUSINESS SERVICES LTD,"3,928.00",27/06/2017
Commissioning,Commissioning,Equipment and Materials Purcha,60075382,CLIKAPAD LTD,"2,553.25",07/06/2017
Commissioning,Commissioning,Equipment and Materials Purcha,10013750,OCS GROUP UK LIMITED,"46,521.00",14/06/2017
Commissioning,Commissioning,Equipment and Materials Purcha,60079940,OCS GROUP UK LIMITED,"136,925.00",21/06/2017
Commissioning,Commissioning,General Office Expenses,40002318,OFFICE DEPOT UK LTD,17.74,14/06/2017
Commissioning,Commissioning,Grant Payments,80010823,ACTION ON HEARING LOSS,"2,400.00",26/06/2017
Commissioning,Commissioning,Grant Payments,80011138,BARNET BOWLS CLUB,"5,000.00",29/06/2017
Commissioning,Commissioning,Grant Payments,80010043,BROADFIELDS ACADEMY,"3,915.00",06/06/2017
Commissioning,Commissioning,Grant Payments,80011139,M&M METAL WORKS (EURO) LTD,"1,830.00",29/06/2017
Commissioning,Commissioning,Grant Payments,80010805,PERSIAN ADVICE BUREAU,"5,000.00",30/06/2017
Commissioning,Commissioning,Grant Payments,80010905,PHOENIX CANOE CLUB LIMITED,"5,000.00",20/06/2017
Commissioning,Commissioning,Grant Payments,80011015,ST PETER'S BOURNE MC,"2,500.00",26/06/2017
Commissioning,Commissioning,Health authorities - Third Par,60080694,REDACTED - PERSONAL DATA,25.00,26/06/2017
Commissioning,Commissioning,Miscellaneous Expenses,60079522,ALARM,125.00,15/06/2017
Commissioning,Commissioning,Miscellaneous Expenses,60082044,C I P F A,750.00,27/06/2017
Commissioning,Commissioning,Other Agencies - Third Party P,20034175,FAMILY FUND TRADING LTD,"50,000.00",20/06/2017
Commissioning,Commissioning,Other Agencies - Third Party P,60080467,FAMILY FUND TRADING LTD,187.00,16/06/2017
Commissioning,Commissioning,Other Agencies - Third Party P,60081253,FAMILY FUND TRADING LTD,104.00,26/06/2017
Commissioning,Commissioning,Other Services,60080559,BLUE 9 SECURITY LIMITED,"2,101.96",09/06/2017
Commissioning,Commissioning,Other Services,60080572,BLUE 9 SECURITY LIMITED,"2,179.80",09/06/2017
Commissioning,Commissioning,Other Services,60080600,BLUE 9 SECURITY LIMITED,"2,016.32",12/06/2017
Commissioning,Commissioning,Other Services,60055108,CONWAY AECOM LTD,"8,206.76",05/06/2017
Commissioning,Commissioning,Other Services,60081225,CONWAY AECOM LTD,"1,443.31",27/06/2017
Commissioning,Commissioning,Other Services,60081227,CONWAY AECOM LTD,79.36,22/06/2017
Commissioning,Commissioning,Other Services,60081290,CONWAY AECOM LTD,68.55,22/06/2017
Commissioning,Commissioning,Other Services,60081338,CONWAY AECOM LTD,72.42,27/06/2017
Commissioning,Commissioning,Other Services,60081347,CONWAY AECOM LTD,19.10,22/06/2017
Commissioning,Commissioning,Other Services,60081435,CONWAY AECOM LTD,41.37,22/06/2017
Commissioning,Commissioning,Other Services,60079072,HARROW GREEN LTD,"1,296.00",29/06/2017
Commissioning,Commissioning,Other Services,60079098,HARROW GREEN LTD,60.48,29/06/2017
Commissioning,Commissioning,Other Services,80010697,LEAFSTORM LTD,"9,890.94",12/06/2017
Commissioning,Commissioning,Other Services,80010518,MAYOR OF THE LBB BENEVOLENT FUND,"7,496.00",02/06/2017
Commissioning,Commissioning,Other Services,EBX0178139,NORTH LONDON WASTE AUTHORITY,"872,077.00",30/06/2017
Commissioning,Commissioning,Other Services,60080558,PELL FRISCHMAN CONSULTING ENGINEERS LTD,"7,608.80",29/06/2017
Commissioning,Commissioning,Other Services,60082119,PELL FRISCHMAN CONSULTING ENGINEERS LTD,"1,121.10",29/06/2017
Commissioning,Commissioning,Other Services,60079956,REDACTED - PERSONAL DATA,680.00,22/06/2017
Commissioning,Commissioning,Other Services,80010940,REDACTED - PERSONAL DATA,23.00,21/06/2017
Commissioning,Commissioning,Other Services,60080563,TRAFFIC SURVEY PARTNERS (TSP) LTD,265.00,08/06/2017
Commissioning,Commissioning,Private Contractors - Third Pa,60080883,GREENWICH LEISURE LTD,"105,118.49",13/06/2017
Commissioning,Commissioning,Professional Services,60079550,EJH TRAINING SERVICES LTD,"2,434.12",14/06/2017
Commissioning,Commissioning,Professional Services,60078381,ESSEX COUNTY COUNCIL,"32,427.50",14/06/2017
Commissioning,Commissioning,Professional Services,60081720,FMG CONSULTING LTD,"2,089.86",29/06/2017
Commissioning,Commissioning,Professional Services,10013755,GENERAL DYNAMICS INFORMATION TECHNOLOGY,"5,040.84",16/06/2017
Commissioning,Commissioning,Professional Services,60080086,GET INVOLVED,65.12,02/06/2017
Commissioning,Commissioning,Professional Services,60082269,HBINFO LTD,399.00,30/06/2017
Commissioning,Commissioning,Professional Services,10013789,ROSSENDALES (COLLECT) LTD,961.04,23/06/2017
Commissioning,Commissioning,Professional Services,60075561,TRACEY HILL TRAINING & CONSULTANCY LTD,"4,700.39",05/06/2017
Commissioning,Commissioning,Professional Services,60078384,TRACEY HILL TRAINING & CONSULTANCY LTD,"3,668.18",05/06/2017
Commissioning,Commissioning,Professional Services,60080611,TRACEY HILL TRAINING & CONSULTANCY LTD,"2,432.30",29/06/2017
Commissioning,Commissioning,Publications,60080066,SOLACE ENTERPRISES LTD,467.00,01/06/2017
Commissioning,Commissioning,Stationery,40002245,OFFICE DEPOT UK LTD,0.14,05/06/2017
Commissioning,Commissioning,Training,60081258,CAPITA BUSINESS SERVICES LTD,"1,860.00",27/06/2017
Commissioning,Commissioning,Training,10013798,HEMSLEY FRASER GROUP LTD,434.25,27/06/2017
Commissioning,Commissioning,Training,60082169,SOLACE ENTERPRISES LTD,595.00,29/06/2017
Commissioning,Commissioning,Ttl IT & Comms,60074540,STOR-A FILE LTD,902.18,14/06/2017
Commissioning,Commissioning,Ttl IT & Comms,60077226,STOR-A FILE LTD,"16,174.51",14/06/2017
Commissioning,Commissioning,Ttl IT & Comms,60080561,STOR-A FILE LTD,627.37,29/06/2017
Corporate Accounting,Corporate Accounting,Consultants Fees,60075681,THE PLANNING INSPECTORATE,"2,041.20",05/06/2017
Corporate Accounting,Corporate Accounting,Other Agencies - Third Party P,60081593,THE BARNETGROUP LIMITED,"91,666.67",22/06/2017
Corporate Accounting,Corporate Accounting,Other Agencies - Third Party P,60081693,THE BARNETGROUP LIMITED,"4,000,000.00",22/06/2017
Corporate Accounting,Corporate Accounting,Other Local Authorities - Thir,EBX0174571,GREATER LONDON AUTHORITY,"3,856,742.82",09/06/2017
Corporate Accounting,Corporate Accounting,Other Local Authorities - Thir,EBX0177499,GREATER LONDON AUTHORITY,"4,014,752.61",28/06/2017
Corporate Accounting,Corporate Accounting,Other Transfer Payments to Soc,60079712,CITIBANK NA LONDON,800.00,12/06/2017
Corporate Accounting,Corporate Accounting,Other Transfer Payments to Soc,60081534,CITIBANK NA LONDON,57.90,30/06/2017
Corporate Accounting,Corporate Accounting,Other Transfer Payments to Soc,60081589,CITIBANK NA LONDON,57.90,30/06/2017
Corporate Accounting,Corporate Accounting,Refunds,80010186,MOTT MACDONALD LTD/CAMBRIDGE EDUCATION,432.00,05/06/2017
Corporate Accounting,Corporate Accounting,Refunds,80010187,MOTT MACDONALD LTD/CAMBRIDGE EDUCATION,36.00,05/06/2017
Corporate Accounting,Corporate Accounting,Refunds,80010353,MOTT MACDONALD LTD/CAMBRIDGE EDUCATION,60.00,05/06/2017
Corporate Accounting,Corporate Accounting,Refunds,80010397,MOTT MACDONALD LTD/CAMBRIDGE EDUCATION,"6,426.00",05/06/2017
Corporate Accounting,Corporate Accounting,Refunds,80010398,MOTT MACDONALD LTD/CAMBRIDGE EDUCATION,"14,837.66",05/06/2017
Corporate Accounting,Corporate Accounting,Refunds,80010399,MOTT MACDONALD LTD/CAMBRIDGE EDUCATION,"9,761.32",05/06/2017
Corporate Accounting,Corporate Accounting,Refunds,80010400,MOTT MACDONALD LTD/CAMBRIDGE EDUCATION,"8,820.82",05/06/2017
Corporate Accounting,Corporate Accounting,Refunds,80010401,MOTT MACDONALD LTD/CAMBRIDGE EDUCATION,"12,349.14",05/06/2017
Corporate Accounting,Corporate Accounting,Refunds,80010402,MOTT MACDONALD LTD/CAMBRIDGE EDUCATION,"6,104.47",05/06/2017
Corporate Accounting,Corporate Accounting,Refunds,80010403,MOTT MACDONALD LTD/CAMBRIDGE EDUCATION,"1,814.40",05/06/2017
Corporate Accounting,Corporate Accounting,Refunds,80010420,MOTT MACDONALD LTD/CAMBRIDGE EDUCATION,300.00,05/06/2017
Corporate Accounting,Corporate Accounting,Refunds,80010541,MOTT MACDONALD LTD/CAMBRIDGE EDUCATION,720.00,29/06/2017
Corporate Accounting,Corporate Accounting,Refunds,80010654,NLI SCHOOL LTD,273.45,09/06/2017
Corporate Accounting,Corporate Accounting,Refunds,80010456,REDACTED - PERSONAL DATA,60.00,02/06/2017
Corporate Accounting,Corporate Accounting,Refunds,80010457,REDACTED - PERSONAL DATA,180.00,02/06/2017
Delivery Units,Adults and Communities,Building Repairs & Maintenance,60081909,HERTEL (UK) LTD,34.91,26/06/2017
Delivery Units,Adults and Communities,Building Repairs & Maintenance,60081932,HERTEL (UK) LTD,34.91,26/06/2017
Delivery Units,Adults and Communities,Building Repairs & Maintenance,60082043,HERTEL (UK) LTD,34.91,27/06/2017
Delivery Units,Adults and Communities,Building Repairs & Maintenance,60082045,HERTEL (UK) LTD,34.91,27/06/2017
Delivery Units,Adults and Communities,Building Repairs & Maintenance,60081101,OAKRAY LIMITED,120.29,29/06/2017
Delivery Units,Adults and Communities,Building Repairs & Maintenance,60081113,OAKRAY LIMITED,56.00,29/06/2017
Delivery Units,Adults and Communities,Building Repairs & Maintenance,60080928,RGE SERVICES,27.87,22/06/2017
Delivery Units,Adults and Communities,Building Repairs & Maintenance,60081609,RGE SERVICES,72.68,22/06/2017
Delivery Units,Adults and Communities,Building Repairs & Maintenance,60081612,RGE SERVICES,72.68,22/06/2017
Delivery Units,Adults and Communities,Cleaning and domestic material,60074150,CHURCHILL CONTRACT SERVICES,377.81,08/06/2017
Delivery Units,Adults and Communities,Cleaning and domestic material,60074260,CHURCHILL CONTRACT SERVICES,391.37,08/06/2017
Delivery Units,Adults and Communities,Direct Transfer Payments to So,90002547,CITIBANK NA LONDON,26.20,12/06/2017
Delivery Units,Adults and Communities,Direct Transfer Payments to So,90004922,CITIBANK NA LONDON,"2,389.41",22/06/2017
Delivery Units,Adults and Communities,Direct Transfer Payments to So,90004927,CITIBANK NA LONDON,301.20,22/06/2017
Delivery Units,Adults and Communities,Direct Transfer Payments to So,90004932,CITIBANK NA LONDON,144.23,22/06/2017
Delivery Units,Adults and Communities,Direct Transfer Payments to So,90004933,CITIBANK NA LONDON,138.49,22/06/2017
Delivery Units,Adults and Communities,Direct Transfer Payments to So,90004937,CITIBANK NA LONDON,372.01,22/06/2017
Delivery Units,Adults and Communities,Direct Transfer Payments to So,90004939,CITIBANK NA LONDON,192.00,22/06/2017
Delivery Units,Adults and Communities,Direct Transfer Payments to So,90004944,CITIBANK NA LONDON,350.81,22/06/2017
Delivery Units,Adults and Communities,Direct Transfer Payments to So,90004945,CITIBANK NA LONDON,70.00,22/06/2017
Delivery Units,Adults and Communities,Direct Transfer Payments to So,90004947,CITIBANK NA LONDON,144.23,22/06/2017
Delivery Units,Adults and Communities,Direct Transfer Payments to So,90004950,CITIBANK NA LONDON,280.00,22/06/2017
Delivery Units,Adults and Communities,Direct Transfer Payments to So,90005129,CITIBANK NA LONDON,480.79,22/06/2017
Delivery Units,Adults and Communities,Direct Transfer Payments to So,90005130,CITIBANK NA LONDON,"1,494.48",22/06/2017
Delivery Units,Adults and Communities,Direct Transfer Payments to So,90005134,CITIBANK NA LONDON,92.32,22/06/2017
Delivery Units,Adults and Communities,Direct Transfer Payments to So,90005137,CITIBANK NA LONDON,469.20,22/06/2017
Delivery Units,Adults and Communities,Direct Transfer Payments to So,90005138,CITIBANK NA LONDON,453.84,22/06/2017
Delivery Units,Adults and Communities,Direct Transfer Payments to So,90005144,CITIBANK NA LONDON,966.84,22/06/2017
Delivery Units,Adults and Communities,Direct Transfer Payments to So,90005147,CITIBANK NA LONDON,384.64,22/06/2017
Delivery Units,Adults and Communities,Direct Transfer Payments to So,90005162,CITIBANK NA LONDON,26.84,22/06/2017
Delivery Units,Adults and Communities,Direct Transfer Payments to So,90005172,CITIBANK NA LONDON,336.00,22/06/2017
Delivery Units,Adults and Communities,Direct Transfer Payments to So,90005179,CITIBANK NA LONDON,"1,316.00",22/06/2017
Delivery Units,Adults and Communities,Direct Transfer Payments to So,90005340,CITIBANK NA LONDON,184.60,23/06/2017
Delivery Units,Adults and Communities,Direct Transfer Payments to So,90005491,CITIBANK NA LONDON,186.48,26/06/2017
Delivery Units,Adults and Communities,Direct Transfer Payments to So,90005493,CITIBANK NA LONDON,462.00,26/06/2017
Delivery Units,Adults and Communities,Direct Transfer Payments to So,90005494,CITIBANK NA LONDON,454.33,26/06/2017
Delivery Units,Adults and Communities,Direct Transfer Payments to So,90005495,CITIBANK NA LONDON,754.77,26/06/2017
Delivery Units,Adults and Communities,Direct Transfer Payments to So,90005768,CITIBANK NA LONDON,531.80,27/06/2017
Delivery Units,Adults and Communities,Direct Transfer Payments to So,90005770,CITIBANK NA LONDON,192.00,27/06/2017
Delivery Units,Adults and Communities,Direct Transfer Payments to So,90005771,CITIBANK NA LONDON,520.52,27/06/2017
Delivery Units,Adults and Communities,Direct Transfer Payments to So,30165609,REDACTED - PERSONAL DATA,"1,302.01",09/06/2017
Delivery Units,Adults and Communities,Direct Transfer Payments to So,30165696,REDACTED - PERSONAL DATA,"2,374.93",13/06/2017
Delivery Units,Adults and Communities,Direct Transfer Payments to So,30165867,REDACTED - PERSONAL DATA,"1,271.20",15/06/2017
Delivery Units,Adults and Communities,Direct Transfer Payments to So,30165868,REDACTED - PERSONAL DATA,709.46,15/06/2017
Delivery Units,Adults and Communities,Direct Transfer Payments to So,30165869,REDACTED - PERSONAL DATA,"1,856.16",15/06/2017
Delivery Units,Adults and Communities,Direct Transfer Payments to So,80010597,REDACTED - PERSONAL DATA,"4,243.05",08/06/2017
Delivery Units,Adults and Communities,Direct Transfer Payments to So,90001575,REDACTED - PERSONAL DATA,392.00,15/06/2017
Delivery Units,Adults and Communities,Direct Transfer Payments to So,90002518,REDACTED - PERSONAL DATA,697.15,01/06/2017
Delivery Units,Adults and Communities,Direct Transfer Payments to So,90002543,REDACTED - PERSONAL DATA,"5,320.00",01/06/2017
Delivery Units,Adults and Communities,Direct Transfer Payments to So,90002545,REDACTED - PERSONAL DATA,"1,650.68",01/06/2017
Delivery Units,Adults and Communities,Direct Transfer Payments to So,90002546,REDACTED - PERSONAL DATA,"1,579.99",01/06/2017
Delivery Units,Adults and Communities,Direct Transfer Payments to So,90002548,REDACTED - PERSONAL DATA,552.01,01/06/2017
Delivery Units,Adults and Communities,Direct Transfer Payments to So,90002549,REDACTED - PERSONAL DATA,444.29,01/06/2017
Delivery Units,Adults and Communities,Direct Transfer Payments to So,90002552,REDACTED - PERSONAL DATA,581.28,01/06/2017
Delivery Units,Adults and Communities,Direct Transfer Payments to So,90002553,REDACTED - PERSONAL DATA,324.17,01/06/2017
Delivery Units,Adults and Communities,Direct Transfer Payments to So,90002556,REDACTED - PERSONAL DATA,"1,708.00",01/06/2017
Delivery Units,Adults and Communities,Direct Transfer Payments to So,90002557,REDACTED - PERSONAL DATA,170.04,01/06/2017
Delivery Units,Adults and Communities,Direct Transfer Payments to So,90002580,REDACTED - PERSONAL DATA,"1,202.00",01/06/2017
Delivery Units,Adults and Communities,Direct Transfer Payments to So,90002620,REDACTED - PERSONAL DATA,519.68,02/06/2017
Delivery Units,Adults and Communities,Direct Transfer Payments to So,90002631,REDACTED - PERSONAL DATA,"1,086.63",02/06/2017
Delivery Units,Adults and Communities,Direct Transfer Payments to So,90002635,REDACTED - PERSONAL DATA,360.57,02/06/2017
Delivery Units,Adults and Communities,Direct Transfer Payments to So,90003121,REDACTED - PERSONAL DATA,"3,839.90",09/06/2017
Delivery Units,Adults and Communities,Direct Transfer Payments to So,90003515,REDACTED - PERSONAL DATA,241.40,13/06/2017
Delivery Units,Adults and Communities,Direct Transfer Payments to So,90004336,REDACTED - PERSONAL DATA,536.00,20/06/2017
Delivery Units,Adults and Communities,Direct Transfer Payments to So,90004337,REDACTED - PERSONAL DATA,286.00,20/06/2017
Delivery Units,Adults and Communities,Direct Transfer Payments to So,90004338,REDACTED - PERSONAL DATA,420.00,20/06/2017
Delivery Units,Adults and Communities,Direct Transfer Payments to So,90004341,REDACTED - PERSONAL DATA,775.04,20/06/2017
Delivery Units,Adults and Communities,Direct Transfer Payments to So,90004343,REDACTED - PERSONAL DATA,80.00,20/06/2017
Delivery Units,Adults and Communities,Direct Transfer Payments to So,90004345,REDACTED - PERSONAL DATA,292.21,20/06/2017
Delivery Units,Adults and Communities,Direct Transfer Payments to So,90004350,REDACTED - PERSONAL DATA,709.16,20/06/2017
Delivery Units,Adults and Communities,Direct Transfer Payments to So,90004352,REDACTED - PERSONAL DATA,232.01,20/06/2017
Delivery Units,Adults and Communities,Direct Transfer Payments to So,90004353,REDACTED - PERSONAL DATA,480.09,20/06/2017
Delivery Units,Adults and Communities,Direct Transfer Payments to So,90004365,REDACTED - PERSONAL DATA,202.00,20/06/2017
Delivery Units,Adults and Communities,Direct Transfer Payments to So,90004366,REDACTED - PERSONAL DATA,649.07,20/06/2017
Delivery Units,Adults and Communities,Direct Transfer Payments to So,90004372,REDACTED - PERSONAL DATA,"1,312.48",20/06/2017
Delivery Units,Adults and Communities,Direct Transfer Payments to So,90004376,REDACTED - PERSONAL DATA,"1,673.44",20/06/2017
Delivery Units,Adults and Communities,Direct Transfer Payments to So,90004377,REDACTED - PERSONAL DATA,168.28,20/06/2017
Delivery Units,Adults and Communities,Direct Transfer Payments to So,90004378,REDACTED - PERSONAL DATA,440.00,20/06/2017
Delivery Units,Adults and Communities,Direct Transfer Payments to So,90004384,REDACTED - PERSONAL DATA,160.00,20/06/2017
Delivery Units,Adults and Communities,Direct Transfer Payments to So,90004390,REDACTED - PERSONAL DATA,560.00,20/06/2017
Delivery Units,Adults and Communities,Direct Transfer Payments to So,90004392,REDACTED - PERSONAL DATA,347.20,20/06/2017
Delivery Units,Adults and Communities,Direct Transfer Payments to So,90004393,REDACTED - PERSONAL DATA,144.23,20/06/2017
Delivery Units,Adults and Communities,Direct Transfer Payments to So,90004401,REDACTED - PERSONAL DATA,757.12,20/06/2017
Delivery Units,Adults and Communities,Direct Transfer Payments to So,90004402,REDACTED - PERSONAL DATA,"1,063.72",20/06/2017
Delivery Units,Adults and Communities,Direct Transfer Payments to So,90004404,REDACTED - PERSONAL DATA,"1,346.24",20/06/2017
Delivery Units,Adults and Communities,Direct Transfer Payments to So,90004406,REDACTED - PERSONAL DATA,"2,240.00",20/06/2017
Delivery Units,Adults and Communities,Direct Transfer Payments to So,90004407,REDACTED - PERSONAL DATA,732.04,20/06/2017
Delivery Units,Adults and Communities,Direct Transfer Payments to So,90004408,REDACTED - PERSONAL DATA,946.40,20/06/2017
Delivery Units,Adults and Communities,Direct Transfer Payments to So,90004410,REDACTED - PERSONAL DATA,360.00,20/06/2017
Delivery Units,Adults and Communities,Direct Transfer Payments to So,90004412,REDACTED - PERSONAL DATA,"1,344.00",20/06/2017
Delivery Units,Adults and Communities,Direct Transfer Payments to So,90004415,REDACTED - PERSONAL DATA,"1,512.00",20/06/2017
Delivery Units,Adults and Communities,Direct Transfer Payments to So,90004418,REDACTED - PERSONAL DATA,336.00,20/06/2017
Delivery Units,Adults and Communities,Direct Transfer Payments to So,90004424,REDACTED - PERSONAL DATA,294.00,20/06/2017
Delivery Units,Adults and Communities,Direct Transfer Payments to So,90004428,REDACTED - PERSONAL DATA,124.01,20/06/2017
Delivery Units,Adults and Communities,Direct Transfer Payments to So,90004429,REDACTED - PERSONAL DATA,"1,983.32",20/06/2017
Delivery Units,Adults and Communities,Direct Transfer Payments to So,90004430,REDACTED - PERSONAL DATA,"3,172.99",20/06/2017
Delivery Units,Adults and Communities,Direct Transfer Payments to So,90004431,REDACTED - PERSONAL DATA,"1,550.84",20/06/2017
Delivery Units,Adults and Communities,Direct Transfer Payments to So,90004436,REDACTED - PERSONAL DATA,501.76,20/06/2017
Delivery Units,Adults and Communities,Direct Transfer Payments to So,90004437,REDACTED - PERSONAL DATA,263.68,20/06/2017
Delivery Units,Adults and Communities,Direct Transfer Payments to So,90004438,REDACTED - PERSONAL DATA,218.24,20/06/2017
Delivery Units,Adults and Communities,Direct Transfer Payments to So,90004442,REDACTED - PERSONAL DATA,610.60,20/06/2017
Delivery Units,Adults and Communities,Direct Transfer Payments to So,90004443,REDACTED - PERSONAL DATA,442.88,20/06/2017
Delivery Units,Adults and Communities,Direct Transfer Payments to So,90004446,REDACTED - PERSONAL DATA,756.00,20/06/2017
Delivery Units,Adults and Communities,Direct Transfer Payments to So,90004447,REDACTED - PERSONAL DATA,"2,298.44",20/06/2017
Delivery Units,Adults and Communities,Direct Transfer Payments to So,90004448,REDACTED - PERSONAL DATA,235.20,20/06/2017
Delivery Units,Adults and Communities,Direct Transfer Payments to So,90004449,REDACTED - PERSONAL DATA,"2,092.97",20/06/2017
Delivery Units,Adults and Communities,Direct Transfer Payments to So,90004450,REDACTED - PERSONAL DATA,"1,009.68",20/06/2017
Delivery Units,Adults and Communities,Direct Transfer Payments to So,90004452,REDACTED - PERSONAL DATA,"1,092.00",20/06/2017
Delivery Units,Adults and Communities,Direct Transfer Payments to So,90004453,REDACTED - PERSONAL DATA,"2,000.01",20/06/2017
Delivery Units,Adults and Communities,Direct Transfer Payments to So,90004454,REDACTED - PERSONAL DATA,"1,092.00",20/06/2017
Delivery Units,Adults and Communities,Direct Transfer Payments to So,90004455,REDACTED - PERSONAL DATA,352.36,20/06/2017
Delivery Units,Adults and Communities,Direct Transfer Payments to So,90004456,REDACTED - PERSONAL DATA,280.00,20/06/2017
Delivery Units,Adults and Communities,Direct Transfer Payments to So,90004457,REDACTED - PERSONAL DATA,"1,143.80",20/06/2017
Delivery Units,Adults and Communities,Direct Transfer Payments to So,90004476,REDACTED - PERSONAL DATA,488.44,21/06/2017
Delivery Units,Adults and Communities,Direct Transfer Payments to So,90004496,REDACTED - PERSONAL DATA,228.37,21/06/2017
Delivery Units,Adults and Communities,Direct Transfer Payments to So,90004500,REDACTED - PERSONAL DATA,349.13,21/06/2017
Delivery Units,Adults and Communities,Direct Transfer Payments to So,90004510,REDACTED - PERSONAL DATA,519.99,21/06/2017
Delivery Units,Adults and Communities,Direct Transfer Payments to So,90004522,REDACTED - PERSONAL DATA,478.64,21/06/2017
Delivery Units,Adults and Communities,Direct Transfer Payments to So,90004524,REDACTED - PERSONAL DATA,640.00,21/06/2017
Delivery Units,Adults and Communities,Direct Transfer Payments to So,90004538,REDACTED - PERSONAL DATA,288.48,21/06/2017
Delivery Units,Adults and Communities,Direct Transfer Payments to So,90004545,REDACTED - PERSONAL DATA,142.13,21/06/2017
Delivery Units,Adults and Communities,Direct Transfer Payments to So,90004547,REDACTED - PERSONAL DATA,336.56,21/06/2017
Delivery Units,Adults and Communities,Direct Transfer Payments to So,90004548,REDACTED - PERSONAL DATA,708.01,21/06/2017
Delivery Units,Adults and Communities,Direct Transfer Payments to So,90004550,REDACTED - PERSONAL DATA,"2,003.40",21/06/2017
Delivery Units,Adults and Communities,Direct Transfer Payments to So,90004555,REDACTED - PERSONAL DATA,"1,359.99",21/06/2017
Delivery Units,Adults and Communities,Direct Transfer Payments to So,90004556,REDACTED - PERSONAL DATA,837.68,21/06/2017
Delivery Units,Adults and Communities,Direct Transfer Payments to So,90004559,REDACTED - PERSONAL DATA,780.92,21/06/2017
Delivery Units,Adults and Communities,Direct Transfer Payments to So,90004571,REDACTED - PERSONAL DATA,521.39,21/06/2017
Delivery Units,Adults and Communities,Direct Transfer Payments to So,90004576,REDACTED - PERSONAL DATA,628.01,21/06/2017
Delivery Units,Adults and Communities,Direct Transfer Payments to So,90004580,REDACTED - PERSONAL DATA,"1,803.68",21/06/2017
Delivery Units,Adults and Communities,Direct Transfer Payments to So,90004581,REDACTED - PERSONAL DATA,"1,525.44",21/06/2017
Delivery Units,Adults and Communities,Direct Transfer Payments to So,90004589,REDACTED - PERSONAL DATA,407.99,21/06/2017
Delivery Units,Adults and Communities,Direct Transfer Payments to So,90004594,REDACTED - PERSONAL DATA,528.89,21/06/2017
Delivery Units,Adults and Communities,Direct Transfer Payments to So,90004595,REDACTED - PERSONAL DATA,354.23,21/06/2017
Delivery Units,Adults and Communities,Direct Transfer Payments to So,90004596,REDACTED - PERSONAL DATA,355.77,21/06/2017
Delivery Units,Adults and Communities,Direct Transfer Payments to So,90004602,REDACTED - PERSONAL DATA,770.40,21/06/2017
Delivery Units,Adults and Communities,Direct Transfer Payments to So,90004603,REDACTED - PERSONAL DATA,408.69,21/06/2017
Delivery Units,Adults and Communities,Direct Transfer Payments to So,90004609,REDACTED - PERSONAL DATA,"1,309.00",21/06/2017
Delivery Units,Adults and Communities,Direct Transfer Payments to So,90004610,REDACTED - PERSONAL DATA,362.49,21/06/2017
Delivery Units,Adults and Communities,Direct Transfer Payments to So,90004615,REDACTED - PERSONAL DATA,799.99,21/06/2017
Delivery Units,Adults and Communities,Direct Transfer Payments to So,90004623,REDACTED - PERSONAL DATA,"1,187.20",21/06/2017
Delivery Units,Adults and Communities,Direct Transfer Payments to So,90004626,REDACTED - PERSONAL DATA,"1,025.95",21/06/2017
Delivery Units,Adults and Communities,Direct Transfer Payments to So,90004627,REDACTED - PERSONAL DATA,"1,495.68",21/06/2017
Delivery Units,Adults and Communities,Direct Transfer Payments to So,90004628,REDACTED - PERSONAL DATA,144.23,21/06/2017
Delivery Units,Adults and Communities,Direct Transfer Payments to So,90004637,REDACTED - PERSONAL DATA,650.00,21/06/2017
Delivery Units,Adults and Communities,Direct Transfer Payments to So,90004638,REDACTED - PERSONAL DATA,288.09,21/06/2017
Delivery Units,Adults and Communities,Direct Transfer Payments to So,90004640,REDACTED - PERSONAL DATA,519.99,21/06/2017
Delivery Units,Adults and Communities,Direct Transfer Payments to So,90004647,REDACTED - PERSONAL DATA,659.99,21/06/2017
Delivery Units,Adults and Communities,Direct Transfer Payments to So,90004657,REDACTED - PERSONAL DATA,455.20,21/06/2017
Delivery Units,Adults and Communities,Direct Transfer Payments to So,90004658,REDACTED - PERSONAL DATA,360.61,21/06/2017
Delivery Units,Adults and Communities,Direct Transfer Payments to So,90004661,REDACTED - PERSONAL DATA,120.01,21/06/2017
Delivery Units,Adults and Communities,Direct Transfer Payments to So,90004662,REDACTED - PERSONAL DATA,952.00,21/06/2017
Delivery Units,Adults and Communities,Direct Transfer Payments to So,90004671,REDACTED - PERSONAL DATA,170.04,21/06/2017
Delivery Units,Adults and Communities,Direct Transfer Payments to So,90004672,REDACTED - PERSONAL DATA,596.85,21/06/2017
Delivery Units,Adults and Communities,Direct Transfer Payments to So,90004673,REDACTED - PERSONAL DATA,"2,066.01",21/06/2017
Delivery Units,Adults and Communities,Direct Transfer Payments to So,90004676,REDACTED - PERSONAL DATA,"1,869.00",21/06/2017
Delivery Units,Adults and Communities,Direct Transfer Payments to So,90004678,REDACTED - PERSONAL DATA,192.33,21/06/2017
Delivery Units,Adults and Communities,Direct Transfer Payments to So,90004682,REDACTED - PERSONAL DATA,"1,185.32",21/06/2017
Delivery Units,Adults and Communities,Direct Transfer Payments to So,90004691,REDACTED - PERSONAL DATA,456.76,21/06/2017
Delivery Units,Adults and Communities,Direct Transfer Payments to So,90004699,REDACTED - PERSONAL DATA,576.41,21/06/2017
Delivery Units,Adults and Communities,Direct Transfer Payments to So,90004710,REDACTED - PERSONAL DATA,925.40,21/06/2017
Delivery Units,Adults and Communities,Direct Transfer Payments to So,90004730,REDACTED - PERSONAL DATA,187.01,21/06/2017
Delivery Units,Adults and Communities,Direct Transfer Payments to So,90004731,REDACTED - PERSONAL DATA,785.12,21/06/2017
Delivery Units,Adults and Communities,Direct Transfer Payments to So,90004741,REDACTED - PERSONAL DATA,673.12,21/06/2017
Delivery Units,Adults and Communities,Direct Transfer Payments to So,90004742,REDACTED - PERSONAL DATA,485.83,21/06/2017
Delivery Units,Adults and Communities,Direct Transfer Payments to So,90004745,REDACTED - PERSONAL DATA,264.44,21/06/2017
Delivery Units,Adults and Communities,Direct Transfer Payments to So,90004746,REDACTED - PERSONAL DATA,502.40,21/06/2017
Delivery Units,Adults and Communities,Direct Transfer Payments to So,90004749,REDACTED - PERSONAL DATA,202.19,21/06/2017
Delivery Units,Adults and Communities,Direct Transfer Payments to So,90004750,REDACTED - PERSONAL DATA,"1,216.96",21/06/2017
Delivery Units,Adults and Communities,Direct Transfer Payments to So,90004752,REDACTED - PERSONAL DATA,264.07,21/06/2017
Delivery Units,Adults and Communities,Direct Transfer Payments to So,90004756,REDACTED - PERSONAL DATA,"2,184.03",21/06/2017
Delivery Units,Adults and Communities,Direct Transfer Payments to So,90004764,REDACTED - PERSONAL DATA,"1,161.92",21/06/2017
Delivery Units,Adults and Communities,Direct Transfer Payments to So,90004766,REDACTED - PERSONAL DATA,"3,584.00",21/06/2017
Delivery Units,Adults and Communities,Direct Transfer Payments to So,90004768,REDACTED - PERSONAL DATA,305.45,21/06/2017
Delivery Units,Adults and Communities,Direct Transfer Payments to So,90004769,REDACTED - PERSONAL DATA,"1,791.33",21/06/2017
Delivery Units,Adults and Communities,Direct Transfer Payments to So,90004772,REDACTED - PERSONAL DATA,615.13,21/06/2017
Delivery Units,Adults and Communities,Direct Transfer Payments to So,90004773,REDACTED - PERSONAL DATA,"1,974.28",21/06/2017
Delivery Units,Adults and Communities,Direct Transfer Payments to So,90004775,REDACTED - PERSONAL DATA,439.91,21/06/2017
Delivery Units,Adults and Communities,Direct Transfer Payments to So,90004776,REDACTED - PERSONAL DATA,"1,545.49",21/06/2017
Delivery Units,Adults and Communities,Direct Transfer Payments to So,90004777,REDACTED - PERSONAL DATA,"1,020.01",21/06/2017
Delivery Units,Adults and Communities,Direct Transfer Payments to So,90004780,REDACTED - PERSONAL DATA,709.21,21/06/2017
Delivery Units,Adults and Communities,Direct Transfer Payments to So,90004783,REDACTED - PERSONAL DATA,721.20,21/06/2017
Delivery Units,Adults and Communities,Direct Transfer Payments to So,90004784,REDACTED - PERSONAL DATA,636.56,21/06/2017
Delivery Units,Adults and Communities,Direct Transfer Payments to So,90004786,REDACTED - PERSONAL DATA,"1,924.00",21/06/2017
Delivery Units,Adults and Communities,Direct Transfer Payments to So,90004787,REDACTED - PERSONAL DATA,528.89,21/06/2017
Delivery Units,Adults and Communities,Direct Transfer Payments to So,90004788,REDACTED - PERSONAL DATA,"2,112.01",21/06/2017
Delivery Units,Adults and Communities,Direct Transfer Payments to So,90004793,REDACTED - PERSONAL DATA,601.00,21/06/2017
Delivery Units,Adults and Communities,Direct Transfer Payments to So,90004794,REDACTED - PERSONAL DATA,696.67,21/06/2017
Delivery Units,Adults and Communities,Direct Transfer Payments to So,90004796,REDACTED - PERSONAL DATA,"1,346.24",21/06/2017
Delivery Units,Adults and Communities,Direct Transfer Payments to So,90004798,REDACTED - PERSONAL DATA,384.72,21/06/2017
Delivery Units,Adults and Communities,Direct Transfer Payments to So,90004810,REDACTED - PERSONAL DATA,312.51,21/06/2017
Delivery Units,Adults and Communities,Direct Transfer Payments to So,90004811,REDACTED - PERSONAL DATA,"1,153.91",21/06/2017
Delivery Units,Adults and Communities,Direct Transfer Payments to So,90004817,REDACTED - PERSONAL DATA,926.69,21/06/2017
Delivery Units,Adults and Communities,Direct Transfer Payments to So,90004821,REDACTED - PERSONAL DATA,336.56,21/06/2017
Delivery Units,Adults and Communities,Direct Transfer Payments to So,90004822,REDACTED - PERSONAL DATA,975.36,21/06/2017
Delivery Units,Adults and Communities,Direct Transfer Payments to So,90004828,REDACTED - PERSONAL DATA,840.00,21/06/2017
Delivery Units,Adults and Communities,Direct Transfer Payments to So,90004835,REDACTED - PERSONAL DATA,840.00,21/06/2017
Delivery Units,Adults and Communities,Direct Transfer Payments to So,90004836,REDACTED - PERSONAL DATA,"1,312.64",21/06/2017
Delivery Units,Adults and Communities,Direct Transfer Payments to So,90004839,REDACTED - PERSONAL DATA,400.01,21/06/2017
Delivery Units,Adults and Communities,Direct Transfer Payments to So,90004842,REDACTED - PERSONAL DATA,588.25,21/06/2017
Delivery Units,Adults and Communities,Direct Transfer Payments to So,90004845,REDACTED - PERSONAL DATA,"3,444.00",21/06/2017
Delivery Units,Adults and Communities,Direct Transfer Payments to So,90004846,REDACTED - PERSONAL DATA,480.79,21/06/2017
Delivery Units,Adults and Communities,Direct Transfer Payments to So,90004849,REDACTED - PERSONAL DATA,"1,184.99",21/06/2017
Delivery Units,Adults and Communities,Direct Transfer Payments to So,90004850,REDACTED - PERSONAL DATA,451.92,21/06/2017
Delivery Units,Adults and Communities,Direct Transfer Payments to So,90004853,REDACTED - PERSONAL DATA,"5,320.00",21/06/2017
Delivery Units,Adults and Communities,Direct Transfer Payments to So,90004854,REDACTED - PERSONAL DATA,504.00,21/06/2017
Delivery Units,Adults and Communities,Direct Transfer Payments to So,90004856,REDACTED - PERSONAL DATA,623.20,21/06/2017
Delivery Units,Adults and Communities,Direct Transfer Payments to So,90004861,REDACTED - PERSONAL DATA,120.01,21/06/2017
Delivery Units,Adults and Communities,Direct Transfer Payments to So,90004866,REDACTED - PERSONAL DATA,775.04,21/06/2017
Delivery Units,Adults and Communities,Direct Transfer Payments to So,90004867,REDACTED - PERSONAL DATA,384.00,21/06/2017
Delivery Units,Adults and Communities,Direct Transfer Payments to So,90004868,REDACTED - PERSONAL DATA,347.20,21/06/2017
Delivery Units,Adults and Communities,Direct Transfer Payments to So,90004871,REDACTED - PERSONAL DATA,"2,291.52",21/06/2017
Delivery Units,Adults and Communities,Direct Transfer Payments to So,90004874,REDACTED - PERSONAL DATA,207.60,21/06/2017
Delivery Units,Adults and Communities,Direct Transfer Payments to So,90004877,REDACTED - PERSONAL DATA,"2,686.01",21/06/2017
Delivery Units,Adults and Communities,Direct Transfer Payments to So,90004880,REDACTED - PERSONAL DATA,840.00,21/06/2017
Delivery Units,Adults and Communities,Direct Transfer Payments to So,90004884,REDACTED - PERSONAL DATA,"1,090.35",21/06/2017
Delivery Units,Adults and Communities,Direct Transfer Payments to So,90004885,REDACTED - PERSONAL DATA,350.84,21/06/2017
Delivery Units,Adults and Communities,Direct Transfer Payments to So,90004907,REDACTED - PERSONAL DATA,228.00,22/06/2017
Delivery Units,Adults and Communities,Direct Transfer Payments to So,90004915,REDACTED - PERSONAL DATA,"1,084.80",22/06/2017
Delivery Units,Adults and Communities,Direct Transfer Payments to So,90004918,REDACTED - PERSONAL DATA,395.39,22/06/2017
Delivery Units,Adults and Communities,Direct Transfer Payments to So,90004920,REDACTED - PERSONAL DATA,604.41,22/06/2017
Delivery Units,Adults and Communities,Direct Transfer Payments to So,90004923,REDACTED - PERSONAL DATA,"1,162.56",22/06/2017
Delivery Units,Adults and Communities,Direct Transfer Payments to So,90004925,REDACTED - PERSONAL DATA,"1,009.68",22/06/2017
Delivery Units,Adults and Communities,Direct Transfer Payments to So,90004926,REDACTED - PERSONAL DATA,"1,009.68",22/06/2017
Delivery Units,Adults and Communities,Direct Transfer Payments to So,90004936,REDACTED - PERSONAL DATA,368.00,22/06/2017
Delivery Units,Adults and Communities,Direct Transfer Payments to So,90004942,REDACTED - PERSONAL DATA,384.00,22/06/2017
Delivery Units,Adults and Communities,Direct Transfer Payments to So,90004943,REDACTED - PERSONAL DATA,"2,852.68",22/06/2017
Delivery Units,Adults and Communities,Direct Transfer Payments to So,90004948,REDACTED - PERSONAL DATA,"2,645.44",22/06/2017
Delivery Units,Adults and Communities,Direct Transfer Payments to So,90004949,REDACTED - PERSONAL DATA,687.12,22/06/2017
Delivery Units,Adults and Communities,Direct Transfer Payments to So,90005023,REDACTED - PERSONAL DATA,48.08,22/06/2017
Delivery Units,Adults and Communities,Direct Transfer Payments to So,90005041,REDACTED - PERSONAL DATA,405.64,22/06/2017
Delivery Units,Adults and Communities,Direct Transfer Payments to So,90005042,REDACTED - PERSONAL DATA,288.48,22/06/2017
Delivery Units,Adults and Communities,Direct Transfer Payments to So,90005057,REDACTED - PERSONAL DATA,106.60,22/06/2017
Delivery Units,Adults and Communities,Direct Transfer Payments to So,90005060,REDACTED - PERSONAL DATA,348.49,22/06/2017
Delivery Units,Adults and Communities,Direct Transfer Payments to So,90005064,REDACTED - PERSONAL DATA,"1,353.04",22/06/2017
Delivery Units,Adults and Communities,Direct Transfer Payments to So,90005072,REDACTED - PERSONAL DATA,156.17,22/06/2017
Delivery Units,Adults and Communities,Direct Transfer Payments to So,90005076,REDACTED - PERSONAL DATA,"1,203.04",22/06/2017
Delivery Units,Adults and Communities,Direct Transfer Payments to So,90005080,REDACTED - PERSONAL DATA,480.79,22/06/2017
Delivery Units,Adults and Communities,Direct Transfer Payments to So,90005082,REDACTED - PERSONAL DATA,392.00,22/06/2017
Delivery Units,Adults and Communities,Direct Transfer Payments to So,90005083,REDACTED - PERSONAL DATA,"1,708.00",22/06/2017
Delivery Units,Adults and Communities,Direct Transfer Payments to So,90005085,REDACTED - PERSONAL DATA,670.01,22/06/2017
Delivery Units,Adults and Communities,Direct Transfer Payments to So,90005096,REDACTED - PERSONAL DATA,667.55,22/06/2017
Delivery Units,Adults and Communities,Direct Transfer Payments to So,90005102,REDACTED - PERSONAL DATA,424.40,22/06/2017
Delivery Units,Adults and Communities,Direct Transfer Payments to So,90005111,REDACTED - PERSONAL DATA,851.20,22/06/2017
Delivery Units,Adults and Communities,Direct Transfer Payments to So,90005115,REDACTED - PERSONAL DATA,"1,266.80",22/06/2017
Delivery Units,Adults and Communities,Direct Transfer Payments to So,90005122,REDACTED - PERSONAL DATA,"1,009.68",22/06/2017
Delivery Units,Adults and Communities,Direct Transfer Payments to So,90005141,REDACTED - PERSONAL DATA,572.35,22/06/2017
Delivery Units,Adults and Communities,Direct Transfer Payments to So,90005143,REDACTED - PERSONAL DATA,368.00,22/06/2017
Delivery Units,Adults and Communities,Direct Transfer Payments to So,90005148,REDACTED - PERSONAL DATA,"1,514.52",22/06/2017
Delivery Units,Adults and Communities,Direct Transfer Payments to So,90005159,REDACTED - PERSONAL DATA,"1,104.01",22/06/2017
Delivery Units,Adults and Communities,Direct Transfer Payments to So,90005165,REDACTED - PERSONAL DATA,"1,744.00",22/06/2017
Delivery Units,Adults and Communities,Direct Transfer Payments to So,90005168,REDACTED - PERSONAL DATA,451.76,22/06/2017
Delivery Units,Adults and Communities,Direct Transfer Payments to So,90005169,REDACTED - PERSONAL DATA,"1,104.01",22/06/2017
Delivery Units,Adults and Communities,Direct Transfer Payments to So,90005170,REDACTED - PERSONAL DATA,588.96,22/06/2017
Delivery Units,Adults and Communities,Direct Transfer Payments to So,90005176,REDACTED - PERSONAL DATA,448.00,22/06/2017
Delivery Units,Adults and Communities,Direct Transfer Payments to So,90005177,REDACTED - PERSONAL DATA,"1,389.12",22/06/2017
Delivery Units,Adults and Communities,Direct Transfer Payments to So,90005305,REDACTED - PERSONAL DATA,997.76,23/06/2017
Delivery Units,Adults and Communities,Direct Transfer Payments to So,90005329,REDACTED - PERSONAL DATA,235.40,23/06/2017
Delivery Units,Adults and Communities,Direct Transfer Payments to So,90005355,REDACTED - PERSONAL DATA,"2,976.01",23/06/2017
Delivery Units,Adults and Communities,Direct Transfer Payments to So,90005356,REDACTED - PERSONAL DATA,409.08,23/06/2017
Delivery Units,Adults and Communities,Direct Transfer Payments to So,90005360,REDACTED - PERSONAL DATA,"1,580.01",23/06/2017
Delivery Units,Adults and Communities,Direct Transfer Payments to So,90005364,REDACTED - PERSONAL DATA,581.28,23/06/2017
Delivery Units,Adults and Communities,Direct Transfer Payments to So,90005368,REDACTED - PERSONAL DATA,470.40,23/06/2017
Delivery Units,Adults and Communities,Direct Transfer Payments to So,90005369,REDACTED - PERSONAL DATA,728.00,23/06/2017
Delivery Units,Adults and Communities,Direct Transfer Payments to So,90005485,REDACTED - PERSONAL DATA,539.87,26/06/2017
Delivery Units,Adults and Communities,Direct Transfer Payments to So,90005489,REDACTED - PERSONAL DATA,840.00,26/06/2017
Delivery Units,Adults and Communities,Direct Transfer Payments to So,90005490,REDACTED - PERSONAL DATA,192.33,26/06/2017
Delivery Units,Adults and Communities,Direct Transfer Payments to So,90005501,REDACTED - PERSONAL DATA,271.60,26/06/2017
Delivery Units,Adults and Communities,Direct Transfer Payments to So,90005513,REDACTED - PERSONAL DATA,697.17,26/06/2017
Delivery Units,Adults and Communities,Direct Transfer Payments to So,90005523,REDACTED - PERSONAL DATA,231.40,26/06/2017
Delivery Units,Adults and Communities,Direct Transfer Payments to So,90005716,REDACTED - PERSONAL DATA,144.23,27/06/2017
Delivery Units,Adults and Communities,Direct Transfer Payments to So,90005734,REDACTED - PERSONAL DATA,552.00,27/06/2017
Delivery Units,Adults and Communities,Direct Transfer Payments to So,90005738,REDACTED - PERSONAL DATA,"2,106.00",27/06/2017
Delivery Units,Adults and Communities,Direct Transfer Payments to So,90005740,REDACTED - PERSONAL DATA,917.80,27/06/2017
Delivery Units,Adults and Communities,Direct Transfer Payments to So,90005746,REDACTED - PERSONAL DATA,288.48,27/06/2017
Delivery Units,Adults and Communities,Direct Transfer Payments to So,90005749,REDACTED - PERSONAL DATA,587.76,27/06/2017
Delivery Units,Adults and Communities,Direct Transfer Payments to So,90005767,REDACTED - PERSONAL DATA,384.64,27/06/2017
Delivery Units,Adults and Communities,Direct Transfer Payments to So,90005773,REDACTED - PERSONAL DATA,"2,200.00",27/06/2017
Delivery Units,Adults and Communities,Direct Transfer Payments to So,90005774,REDACTED - PERSONAL DATA,740.32,27/06/2017
Delivery Units,Adults and Communities,Direct Transfer Payments to So,90005775,REDACTED - PERSONAL DATA,759.36,27/06/2017
Delivery Units,Adults and Communities,Direct Transfer Payments to So,90005776,REDACTED - PERSONAL DATA,384.00,27/06/2017
Delivery Units,Adults and Communities,Direct Transfer Payments to So,90005779,REDACTED - PERSONAL DATA,728.00,27/06/2017
Delivery Units,Adults and Communities,Direct Transfer Payments to So,90005780,REDACTED - PERSONAL DATA,328.00,27/06/2017
Delivery Units,Adults and Communities,Direct Transfer Payments to So,90005785,REDACTED - PERSONAL DATA,"2,613.20",27/06/2017
Delivery Units,Adults and Communities,Direct Transfer Payments to So,90006697,REDACTED - PERSONAL DATA,"8,119.59",30/06/2017
Delivery Units,Adults and Communities,Direct Transfer Payments to So,90006748,REDACTED - PERSONAL DATA,279.00,30/06/2017
Delivery Units,Adults and Communities,Direct Transfer Payments to So,90006749,REDACTED - PERSONAL DATA,279.00,30/06/2017
Delivery Units,Adults and Communities,Equipment and Materials Purcha,60080145,MEDEQUIP ASSISTIVE TECHNOLOGY LTD,"208,897.58",08/06/2017
Delivery Units,Adults and Communities,Equipment and Materials Purcha,60081619,MEDEQUIP ASSISTIVE TECHNOLOGY LTD,803.35,22/06/2017
Delivery Units,Adults and Communities,Equipment and Materials Purcha,60081657,MEDEQUIP ASSISTIVE TECHNOLOGY LTD,"264,232.35",22/06/2017
Delivery Units,Adults and Communities,Equipment and Materials Purcha,60081698,MEDEQUIP ASSISTIVE TECHNOLOGY LTD,616.80,22/06/2017
Delivery Units,Adults and Communities,Equipment and Materials Purcha,60081580,OAKLEIGH PHARMACY,"1,626.24",23/06/2017
Delivery Units,Adults and Communities,Fees and Charges,90002570,CITIBANK NA LONDON,(49.78),12/06/2017
Delivery Units,Adults and Communities,Fees and Charges,90005373,CITIBANK NA LONDON,(82.01),23/06/2017
Delivery Units,Adults and Communities,Fees and Charges,80010580,REDACTED - PERSONAL DATA,171.87,02/06/2017
Delivery Units,Adults and Communities,Fees and Charges,80010712,REDACTED - PERSONAL DATA,"3,814.06",13/06/2017
Delivery Units,Adults and Communities,Fees and Charges,90001790,REDACTED - PERSONAL DATA,(175.35),01/06/2017
Delivery Units,Adults and Communities,Fees and Charges,90001878,REDACTED - PERSONAL DATA,(52.19),16/06/2017
Delivery Units,Adults and Communities,Fees and Charges,90002544,REDACTED - PERSONAL DATA,(72.13),22/06/2017
Delivery Units,Adults and Communities,Fees and Charges,90002559,REDACTED - PERSONAL DATA,(257.87),01/06/2017
Delivery Units,Adults and Communities,Fees and Charges,90002560,REDACTED - PERSONAL DATA,(71.52),01/06/2017
Delivery Units,Adults and Communities,Fees and Charges,90002561,REDACTED - PERSONAL DATA,(109.07),01/06/2017
Delivery Units,Adults and Communities,Fees and Charges,90002563,REDACTED - PERSONAL DATA,(45.42),01/06/2017
Delivery Units,Adults and Communities,Fees and Charges,90002564,REDACTED - PERSONAL DATA,(140.22),01/06/2017
Delivery Units,Adults and Communities,Fees and Charges,90002565,REDACTED - PERSONAL DATA,(275.45),01/06/2017
Delivery Units,Adults and Communities,Fees and Charges,90002566,REDACTED - PERSONAL DATA,(81.29),01/06/2017
Delivery Units,Adults and Communities,Fees and Charges,90002567,REDACTED - PERSONAL DATA,(3.47),01/06/2017
Delivery Units,Adults and Communities,Fees and Charges,90002568,REDACTED - PERSONAL DATA,(175.98),01/06/2017
Delivery Units,Adults and Communities,Fees and Charges,90002569,REDACTED - PERSONAL DATA,(162.42),01/06/2017
Delivery Units,Adults and Communities,Fees and Charges,90002571,REDACTED - PERSONAL DATA,(195.86),01/06/2017
Delivery Units,Adults and Communities,Fees and Charges,90002572,REDACTED - PERSONAL DATA,(155.44),01/06/2017
Delivery Units,Adults and Communities,Fees and Charges,90002573,REDACTED - PERSONAL DATA,(10.83),01/06/2017
Delivery Units,Adults and Communities,Fees and Charges,90002574,REDACTED - PERSONAL DATA,(196.18),01/06/2017
Delivery Units,Adults and Communities,Fees and Charges,90002575,REDACTED - PERSONAL DATA,(165.02),05/06/2017
Delivery Units,Adults and Communities,Fees and Charges,90002576,REDACTED - PERSONAL DATA,(38.37),01/06/2017
Delivery Units,Adults and Communities,Fees and Charges,90002577,REDACTED - PERSONAL DATA,(236.16),01/06/2017
Delivery Units,Adults and Communities,Fees and Charges,90002578,REDACTED - PERSONAL DATA,(103.70),01/06/2017
Delivery Units,Adults and Communities,Fees and Charges,90002628,REDACTED - PERSONAL DATA,(143.82),23/06/2017
Delivery Units,Adults and Communities,Fees and Charges,90002629,REDACTED - PERSONAL DATA,(76.68),23/06/2017
Delivery Units,Adults and Communities,Fees and Charges,90002638,REDACTED - PERSONAL DATA,(137.18),02/06/2017
Delivery Units,Adults and Communities,Fees and Charges,90002640,REDACTED - PERSONAL DATA,(58.19),23/06/2017
Delivery Units,Adults and Communities,Fees and Charges,90004952,REDACTED - PERSONAL DATA,(245.20),22/06/2017
Delivery Units,Adults and Communities,Fees and Charges,90004954,REDACTED - PERSONAL DATA,(57.96),22/06/2017
Delivery Units,Adults and Communities,Fees and Charges,90004955,REDACTED - PERSONAL DATA,(23.21),22/06/2017
Delivery Units,Adults and Communities,Fees and Charges,90004956,REDACTED - PERSONAL DATA,(79.04),22/06/2017
Delivery Units,Adults and Communities,Fees and Charges,90004957,REDACTED - PERSONAL DATA,(138.80),22/06/2017
Delivery Units,Adults and Communities,Fees and Charges,90004958,REDACTED - PERSONAL DATA,(208.32),22/06/2017
Delivery Units,Adults and Communities,Fees and Charges,90004959,REDACTED - PERSONAL DATA,(168.68),22/06/2017
Delivery Units,Adults and Communities,Fees and Charges,90005086,REDACTED - PERSONAL DATA,(82.12),22/06/2017
Delivery Units,Adults and Communities,Fees and Charges,90005087,REDACTED - PERSONAL DATA,(183.99),22/06/2017
Delivery Units,Adults and Communities,Fees and Charges,90005180,REDACTED - PERSONAL DATA,(320.52),22/06/2017
Delivery Units,Adults and Communities,Fees and Charges,90005181,REDACTED - PERSONAL DATA,(228.79),22/06/2017
Delivery Units,Adults and Communities,Fees and Charges,90005182,REDACTED - PERSONAL DATA,(288.80),22/06/2017
Delivery Units,Adults and Communities,Fees and Charges,90005183,REDACTED - PERSONAL DATA,(181.00),22/06/2017
Delivery Units,Adults and Communities,Fees and Charges,90005184,REDACTED - PERSONAL DATA,(228.79),22/06/2017
Delivery Units,Adults and Communities,Fees and Charges,90005186,REDACTED - PERSONAL DATA,(304.81),22/06/2017
Delivery Units,Adults and Communities,Fees and Charges,90005187,REDACTED - PERSONAL DATA,(21.12),22/06/2017
Delivery Units,Adults and Communities,Fees and Charges,90005189,REDACTED - PERSONAL DATA,(114.60),22/06/2017
Delivery Units,Adults and Communities,Fees and Charges,90005190,REDACTED - PERSONAL DATA,(119.96),22/06/2017
Delivery Units,Adults and Communities,Fees and Charges,90005191,REDACTED - PERSONAL DATA,(66.00),22/06/2017
Delivery Units,Adults and Communities,Fees and Charges,90005370,REDACTED - PERSONAL DATA,(179.65),23/06/2017
Delivery Units,Adults and Communities,Fees and Charges,90005371,REDACTED - PERSONAL DATA,(230.97),23/06/2017
Delivery Units,Adults and Communities,Fees and Charges,90005372,REDACTED - PERSONAL DATA,(288.80),23/06/2017
Delivery Units,Adults and Communities,Fees and Charges,90005374,REDACTED - PERSONAL DATA,(58.21),23/06/2017
Delivery Units,Adults and Communities,Fees and Charges,90005375,REDACTED - PERSONAL DATA,(228.68),23/06/2017
Delivery Units,Adults and Communities,Fees and Charges,90005376,REDACTED - PERSONAL DATA,(271.80),23/06/2017
Delivery Units,Adults and Communities,Fees and Charges,90005377,REDACTED - PERSONAL DATA,(170.80),23/06/2017
Delivery Units,Adults and Communities,Fees and Charges,90005496,REDACTED - PERSONAL DATA,(74.79),26/06/2017
Delivery Units,Adults and Communities,Fees and Charges,90005497,REDACTED - PERSONAL DATA,(63.84),26/06/2017
Delivery Units,Adults and Communities,Fees and Charges,90005526,REDACTED - PERSONAL DATA,(186.81),26/06/2017
Delivery Units,Adults and Communities,Fees and Charges,90005744,REDACTED - PERSONAL DATA,(63.20),27/06/2017
Delivery Units,Adults and Communities,Fees and Charges,90005745,REDACTED - PERSONAL DATA,(273.81),27/06/2017
Delivery Units,Adults and Communities,Food Costs,60081108,MULLER MILK & INGREDIENTS,1.65,23/06/2017
Delivery Units,Adults and Communities,Food Costs,60081118,MULLER MILK & INGREDIENTS,1.65,16/06/2017
Delivery Units,Adults and Communities,Food Costs,60081136,MULLER MILK & INGREDIENTS,1.65,23/06/2017
Delivery Units,Adults and Communities,Food Costs,60081137,MULLER MILK & INGREDIENTS,1.65,16/06/2017
Delivery Units,Adults and Communities,Food Costs,60081181,MULLER MILK & INGREDIENTS,1.65,16/06/2017
Delivery Units,Adults and Communities,Food Costs,60081526,MULLER MILK & INGREDIENTS,1.65,30/06/2017
Delivery Units,Adults and Communities,Gas,60081192,KENT COUNTY COUNCIL (KCS),253.22,15/06/2017
Delivery Units,Adults and Communities,General Office Expenses,40002234,OFFICE DEPOT UK LTD,50.52,05/06/2017
Delivery Units,Adults and Communities,General Office Expenses,40002241,OFFICE DEPOT UK LTD,31.44,05/06/2017
Delivery Units,Adults and Communities,General Office Expenses,40002255,OFFICE DEPOT UK LTD,137.17,05/06/2017
Delivery Units,Adults and Communities,Non Education Staff GPay,60079244,CENTRAL LONDONCOMMUNITY HEALTHCARE,"88,097.00",12/06/2017
Delivery Units,Adults and Communities,Other Agencies - Third Party P,90003741,AARANDALE LODGE,"2,600.00",16/06/2017
Delivery Units,Adults and Communities,Other Agencies - Third Party P,90003737,AARON COURT CARE HOME,"2,144.91",16/06/2017
Delivery Units,Adults and Communities,Other Agencies - Third Party P,90003704,ABBEY RAVENSCROFT PARK NURSING HOME,"3,150.00",16/06/2017
Delivery Units,Adults and Communities,Other Agencies - Third Party P,90003705,ABBEY RAVENSCROFT PARK NURSING HOME,"2,698.37",16/06/2017
Delivery Units,Adults and Communities,Other Agencies - Third Party P,90003706,ABBEY RAVENSCROFT PARK NURSING HOME,"2,698.37",16/06/2017
Delivery Units,Adults and Communities,Other Agencies - Third Party P,90003707,ABBEY RAVENSCROFT PARK NURSING HOME,"2,698.37",16/06/2017
Delivery Units,Adults and Communities,Other Agencies - Third Party P,90003708,ABBEY RAVENSCROFT PARK NURSING HOME,"3,150.00",16/06/2017
Delivery Units,Adults and Communities,Other Agencies - Third Party P,90003709,ABBEY RAVENSCROFT PARK NURSING HOME,"3,150.00",16/06/2017
Delivery Units,Adults and Communities,Other Agencies - Third Party P,90003710,ABBEY RAVENSCROFT PARK NURSING HOME,"3,150.00",16/06/2017
Delivery Units,Adults and Communities,Other Agencies - Third Party P,90003711,ABBEY RAVENSCROFT PARK NURSING HOME,"2,698.37",16/06/2017
Delivery Units,Adults and Communities,Other Agencies - Third Party P,90003712,ABBEY RAVENSCROFT PARK NURSING HOME,"2,698.37",16/06/2017
Delivery Units,Adults and Communities,Other Agencies - Third Party P,90003713,ABBEY RAVENSCROFT PARK NURSING HOME,"3,150.00",16/06/2017
Delivery Units,Adults and Communities,Other Agencies - Third Party P,90003714,ABBEY RAVENSCROFT PARK NURSING HOME,"3,150.00",16/06/2017
Delivery Units,Adults and Communities,Other Agencies - Third Party P,90003715,ABBEY RAVENSCROFT PARK NURSING HOME,"2,698.37",16/06/2017
Delivery Units,Adults and Communities,Other Agencies - Third Party P,90003716,ABBEY RAVENSCROFT PARK NURSING HOME,"3,150.00",16/06/2017
Delivery Units,Adults and Communities,Other Agencies - Third Party P,90003717,ABBEY RAVENSCROFT PARK NURSING HOME,"2,698.37",16/06/2017
Delivery Units,Adults and Communities,Other Agencies - Third Party P,90003718,ABBEY RAVENSCROFT PARK NURSING HOME,"2,436.39",16/06/2017
Delivery Units,Adults and Communities,Other Agencies - Third Party P,90003719,ABBEY RAVENSCROFT PARK NURSING HOME,"3,000.00",16/06/2017
Delivery Units,Adults and Communities,Other Agencies - Third Party P,90003720,ABBEY RAVENSCROFT PARK NURSING HOME,"3,214.29",16/06/2017
Delivery Units,Adults and Communities,Other Agencies - Third Party P,90006321,ABOUT ME CARE & SUPPORT LTD,"1,365.84",30/06/2017
Delivery Units,Adults and Communities,Other Agencies - Third Party P,30165610,ACER HEALTHCARE OPERATIONS LTD,165.85,09/06/2017
Delivery Units,Adults and Communities,Other Agencies - Third Party P,30165611,ACER HEALTHCARE OPERATIONS LTD,165.85,09/06/2017
Delivery Units,Adults and Communities,Other Agencies - Third Party P,30165612,ACER HEALTHCARE OPERATIONS LTD,156.00,09/06/2017
Delivery Units,Adults and Communities,Other Agencies - Third Party P,30165613,ACER HEALTHCARE OPERATIONS LTD,165.85,09/06/2017
Delivery Units,Adults and Communities,Other Agencies - Third Party P,30165614,ACER HEALTHCARE OPERATIONS LTD,198.14,09/06/2017
Delivery Units,Adults and Communities,Other Agencies - Third Party P,30165615,ACER HEALTHCARE OPERATIONS LTD,198.14,09/06/2017
Delivery Units,Adults and Communities,Other Agencies - Third Party P,30165616,ACER HEALTHCARE OPERATIONS LTD,198.14,09/06/2017
Delivery Units,Adults and Communities,Other Agencies - Third Party P,30165617,ACER HEALTHCARE OPERATIONS LTD,154.69,09/06/2017
Delivery Units,Adults and Communities,Other Agencies - Third Party P,30165618,ACER HEALTHCARE OPERATIONS LTD,257.14,09/06/2017
Delivery Units,Adults and Communities,Other Agencies - Third Party P,30165692,AGUDAS ISRAEL HOUSING ASSCTN LTD,203.50,13/06/2017
Delivery Units,Adults and Communities,Other Agencies - Third Party P,30165693,AGUDAS ISRAEL HOUSING ASSCTN LTD,312.50,13/06/2017
Delivery Units,Adults and Communities,Other Agencies - Third Party P,30165694,AGUDAS ISRAEL HOUSING ASSCTN LTD,176.57,13/06/2017
Delivery Units,Adults and Communities,Other Agencies - Third Party P,90003508,AGUDAS ISRAEL HOUSING ASSCTN LTD,"2,849.00",14/06/2017
Delivery Units,Adults and Communities,Other Agencies - Third Party P,90003509,AGUDAS ISRAEL HOUSING ASSCTN LTD,"2,472.00",14/06/2017
Delivery Units,Adults and Communities,Other Agencies - Third Party P,90003510,AGUDAS ISRAEL HOUSING ASSCTN LTD,"2,736.86",15/06/2017
Delivery Units,Adults and Communities,Other Agencies - Third Party P,90003511,AGUDAS ISRAEL HOUSING ASSCTN LTD,"3,154.25",15/06/2017
Delivery Units,Adults and Communities,Other Agencies - Third Party P,90003634,ALDWYCK HOUSING GROUP,"2,176.89",14/06/2017
Delivery Units,Adults and Communities,Other Agencies - Third Party P,90003635,ALDWYCK HOUSING GROUP,"2,176.89",14/06/2017
Delivery Units,Adults and Communities,Other Agencies - Third Party P,90003686,ALEXANDRA HOUSE (RUNWOOD HOMES),"2,262.69",16/06/2017
Delivery Units,Adults and Communities,Other Agencies - Third Party P,90006466,ALL ABOUT CARE,"1,647.96",30/06/2017
Delivery Units,Adults and Communities,Other Agencies - Third Party P,90006467,ALL ABOUT CARE,"1,594.80",30/06/2017
Delivery Units,Adults and Communities,Other Agencies - Third Party P,90002581,ALLIED HEALTHCARE LTD,65.40,02/06/2017
Delivery Units,Adults and Communities,Other Agencies - Third Party P,90002582,ALLIED HEALTHCARE LTD,244.16,02/06/2017
Delivery Units,Adults and Communities,Other Agencies - Third Party P,90002583,ALLIED HEALTHCARE LTD,320.46,02/06/2017
Delivery Units,Adults and Communities,Other Agencies - Third Party P,90002584,ALLIED HEALTHCARE LTD,71.94,02/06/2017
Delivery Units,Adults and Communities,Other Agencies - Third Party P,90002585,ALLIED HEALTHCARE LTD,34.88,02/06/2017
Delivery Units,Adults and Communities,Other Agencies - Third Party P,90002586,ALLIED HEALTHCARE LTD,244.16,02/06/2017
Delivery Units,Adults and Communities,Other Agencies - Third Party P,90002587,ALLIED HEALTHCARE LTD,209.28,02/06/2017
Delivery Units,Adults and Communities,Other Agencies - Third Party P,90002588,ALLIED HEALTHCARE LTD,45.78,02/06/2017
Delivery Units,Adults and Communities,Other Agencies - Third Party P,90002589,ALLIED HEALTHCARE LTD,87.20,02/06/2017
Delivery Units,Adults and Communities,Other Agencies - Third Party P,90002590,ALLIED HEALTHCARE LTD,196.20,02/06/2017
Delivery Units,Adults and Communities,Other Agencies - Third Party P,90002591,ALLIED HEALTHCARE LTD,87.20,02/06/2017
Delivery Units,Adults and Communities,Other Agencies - Third Party P,90002592,ALLIED HEALTHCARE LTD,98.10,02/06/2017
Delivery Units,Adults and Communities,Other Agencies - Third Party P,90002593,ALLIED HEALTHCARE LTD,98.10,02/06/2017
Delivery Units,Adults and Communities,Other Agencies - Third Party P,90002594,ALLIED HEALTHCARE LTD,82.84,02/06/2017
Delivery Units,Adults and Communities,Other Agencies - Third Party P,90002595,ALLIED HEALTHCARE LTD,283.40,02/06/2017
Delivery Units,Adults and Communities,Other Agencies - Third Party P,90002596,ALLIED HEALTHCARE LTD,178.76,02/06/2017
Delivery Units,Adults and Communities,Other Agencies - Third Party P,90002597,ALLIED HEALTHCARE LTD,61.04,02/06/2017
Delivery Units,Adults and Communities,Other Agencies - Third Party P,90002598,ALLIED HEALTHCARE LTD,13.08,02/06/2017
Delivery Units,Adults and Communities,Other Agencies - Third Party P,90002599,ALLIED HEALTHCARE LTD,156.96,02/06/2017
Delivery Units,Adults and Communities,Other Agencies - Third Party P,90002600,ALLIED HEALTHCARE LTD,8.72,02/06/2017
Delivery Units,Adults and Communities,Other Agencies - Third Party P,90002601,ALLIED HEALTHCARE LTD,148.24,02/06/2017
Delivery Units,Adults and Communities,Other Agencies - Third Party P,90002602,ALLIED HEALTHCARE LTD,65.40,02/06/2017
Delivery Units,Adults and Communities,Other Agencies - Third Party P,90002603,ALLIED HEALTHCARE LTD,95.92,02/06/2017
Delivery Units,Adults and Communities,Other Agencies - Third Party P,90002604,ALLIED HEALTHCARE LTD,91.56,02/06/2017
Delivery Units,Adults and Communities,Other Agencies - Third Party P,90002605,ALLIED HEALTHCARE LTD,34.88,02/06/2017
Delivery Units,Adults and Communities,Other Agencies - Third Party P,90002606,ALLIED HEALTHCARE LTD,130.80,02/06/2017
Delivery Units,Adults and Communities,Other Agencies - Third Party P,90002607,ALLIED HEALTHCARE LTD,78.48,02/06/2017
Delivery Units,Adults and Communities,Other Agencies - Third Party P,90002608,ALLIED HEALTHCARE LTD,165.68,02/06/2017
Delivery Units,Adults and Communities,Other Agencies - Third Party P,90002609,ALLIED HEALTHCARE LTD,167.86,02/06/2017
Delivery Units,Adults and Communities,Other Agencies - Third Party P,90002610,ALLIED HEALTHCARE LTD,183.12,02/06/2017
Delivery Units,Adults and Communities,Other Agencies - Third Party P,90002611,ALLIED HEALTHCARE LTD,34.88,02/06/2017
Delivery Units,Adults and Communities,Other Agencies - Third Party P,90002612,ALLIED HEALTHCARE LTD,259.42,02/06/2017
Delivery Units,Adults and Communities,Other Agencies - Third Party P,90003370,ALLIED HEALTHCARE LTD,244.16,09/06/2017
Delivery Units,Adults and Communities,Other Agencies - Third Party P,90003371,ALLIED HEALTHCARE LTD,933.04,09/06/2017
Delivery Units,Adults and Communities,Other Agencies - Third Party P,90003372,ALLIED HEALTHCARE LTD,305.20,09/06/2017
Delivery Units,Adults and Communities,Other Agencies - Third Party P,90003373,ALLIED HEALTHCARE LTD,17.44,09/06/2017
Delivery Units,Adults and Communities,Other Agencies - Third Party P,90003374,ALLIED HEALTHCARE LTD,305.20,09/06/2017
Delivery Units,Adults and Communities,Other Agencies - Third Party P,90003375,ALLIED HEALTHCARE LTD,204.92,09/06/2017
Delivery Units,Adults and Communities,Other Agencies - Third Party P,90003376,ALLIED HEALTHCARE LTD,213.64,09/06/2017
Delivery Units,Adults and Communities,Other Agencies - Third Party P,90003377,ALLIED HEALTHCARE LTD,183.12,09/06/2017
Delivery Units,Adults and Communities,Other Agencies - Third Party P,90003378,ALLIED HEALTHCARE LTD,226.72,09/06/2017
Delivery Units,Adults and Communities,Other Agencies - Third Party P,90003379,ALLIED HEALTHCARE LTD,39.24,09/06/2017
Delivery Units,Adults and Communities,Other Agencies - Third Party P,90003380,ALLIED HEALTHCARE LTD,91.56,09/06/2017
Delivery Units,Adults and Communities,Other Agencies - Third Party P,90003381,ALLIED HEALTHCARE LTD,91.56,09/06/2017
Delivery Units,Adults and Communities,Other Agencies - Third Party P,90003382,ALLIED HEALTHCARE LTD,366.24,09/06/2017
Delivery Units,Adults and Communities,Other Agencies - Third Party P,90003383,ALLIED HEALTHCARE LTD,488.32,09/06/2017
Delivery Units,Adults and Communities,Other Agencies - Third Party P,90003384,ALLIED HEALTHCARE LTD,305.20,09/06/2017
Delivery Units,Adults and Communities,Other Agencies - Third Party P,90003385,ALLIED HEALTHCARE LTD,91.56,09/06/2017
Delivery Units,Adults and Communities,Other Agencies - Third Party P,90003386,ALLIED HEALTHCARE LTD,122.08,09/06/2017
Delivery Units,Adults and Communities,Other Agencies - Third Party P,90003387,ALLIED HEALTHCARE LTD,213.64,09/06/2017
Delivery Units,Adults and Communities,Other Agencies - Third Party P,90003388,ALLIED HEALTHCARE LTD,213.64,09/06/2017
Delivery Units,Adults and Communities,Other Agencies - Third Party P,90003389,ALLIED HEALTHCARE LTD,183.12,09/06/2017
Delivery Units,Adults and Communities,Other Agencies - Third Party P,90003390,ALLIED HEALTHCARE LTD,488.32,09/06/2017
Delivery Units,Adults and Communities,Other Agencies - Third Party P,90003391,ALLIED HEALTHCARE LTD,113.36,09/06/2017
Delivery Units,Adults and Communities,Other Agencies - Third Party P,90003392,ALLIED HEALTHCARE LTD,122.08,09/06/2017
Delivery Units,Adults and Communities,Other Agencies - Third Party P,90003393,ALLIED HEALTHCARE LTD,91.56,09/06/2017
Delivery Units,Adults and Communities,Other Agencies - Third Party P,90003394,ALLIED HEALTHCARE LTD,61.04,09/06/2017
Delivery Units,Adults and Communities,Other Agencies - Third Party P,90003395,ALLIED HEALTHCARE LTD,122.08,09/06/2017
Delivery Units,Adults and Communities,Other Agencies - Third Party P,90003396,ALLIED HEALTHCARE LTD,91.56,09/06/2017
Delivery Units,Adults and Communities,Other Agencies - Third Party P,90003397,ALLIED HEALTHCARE LTD,122.08,09/06/2017
Delivery Units,Adults and Communities,Other Agencies - Third Party P,90003398,ALLIED HEALTHCARE LTD,87.20,09/06/2017
Delivery Units,Adults and Communities,Other Agencies - Third Party P,90003399,ALLIED HEALTHCARE LTD,292.12,09/06/2017
Delivery Units,Adults and Communities,Other Agencies - Third Party P,90003400,ALLIED HEALTHCARE LTD,427.28,09/06/2017
Delivery Units,Adults and Communities,Other Agencies - Third Party P,90003401,ALLIED HEALTHCARE LTD,213.64,09/06/2017
Delivery Units,Adults and Communities,Other Agencies - Third Party P,30165922,AN DIANDAN HOUSE,"17,592.57",20/06/2017
Delivery Units,Adults and Communities,Other Agencies - Third Party P,90003978,AN DIANDAN HOUSE,"1,353.27",16/06/2017
Delivery Units,Adults and Communities,Other Agencies - Third Party P,90003979,AN DIANDAN HOUSE,"18,945.84",16/06/2017
Delivery Units,Adults and Communities,Other Agencies - Third Party P,90006391,AN DIANDAN HOUSE,"18,945.84",30/06/2017
Delivery Units,Adults and Communities,Other Agencies - Third Party P,90006392,AN DIANDAN HOUSE,"18,945.84",30/06/2017
Delivery Units,Adults and Communities,Other Agencies - Third Party P,90003580,ANASTASIA LODGE,"2,800.00",14/06/2017
Delivery Units,Adults and Communities,Other Agencies - Third Party P,90003581,ANASTASIA LODGE,"3,000.00",14/06/2017
Delivery Units,Adults and Communities,Other Agencies - Third Party P,90004102,ANASTASIA LODGE,"3,000.00",19/06/2017
Delivery Units,Adults and Communities,Other Agencies - Third Party P,90004104,ANASTASIA LODGE,"2,800.00",19/06/2017
Delivery Units,Adults and Communities,Other Agencies - Third Party P,90002964,APPLE TREE COURT CARE HOME,"2,184.04",09/06/2017
Delivery Units,Adults and Communities,Other Agencies - Third Party P,90002965,APPLE TREE COURT CARE HOME,"2,321.92",09/06/2017
Delivery Units,Adults and Communities,Other Agencies - Third Party P,90002966,APPLE TREE COURT CARE HOME,"2,321.92",09/06/2017
Delivery Units,Adults and Communities,Other Agencies - Third Party P,90002967,APPLE TREE COURT CARE HOME,"2,321.92",09/06/2017
Delivery Units,Adults and Communities,Other Agencies - Third Party P,90002968,APPLE TREE COURT CARE HOME,"3,600.00",09/06/2017
Delivery Units,Adults and Communities,Other Agencies - Third Party P,90002969,APPLE TREE COURT CARE HOME,"2,165.68",09/06/2017
Delivery Units,Adults and Communities,Other Agencies - Third Party P,90002970,APPLE TREE COURT CARE HOME,"2,774.00",09/06/2017
Delivery Units,Adults and Communities,Other Agencies - Third Party P,90002971,APPLE TREE COURT CARE HOME,"2,774.00",09/06/2017
Delivery Units,Adults and Communities,Other Agencies - Third Party P,90002972,APPLE TREE COURT CARE HOME,"2,774.00",09/06/2017
Delivery Units,Adults and Communities,Other Agencies - Third Party P,90002973,APPLE TREE COURT CARE HOME,"2,397.72",09/06/2017
Delivery Units,Adults and Communities,Other Agencies - Third Party P,90002974,APPLE TREE COURT CARE HOME,"3,985.71",09/06/2017
Delivery Units,Adults and Communities,Other Agencies - Third Party P,90002975,APPLE TREE COURT CARE HOME,"2,570.70",09/06/2017
Delivery Units,Adults and Communities,Other Agencies - Third Party P,90002976,APPLE TREE COURT CARE HOME,"2,570.70",09/06/2017
Delivery Units,Adults and Communities,Other Agencies - Third Party P,90002977,APPLE TREE COURT CARE HOME,"2,418.04",09/06/2017
Delivery Units,Adults and Communities,Other Agencies - Third Party P,90002978,APPLE TREE COURT CARE HOME,"2,570.70",09/06/2017
Delivery Units,Adults and Communities,Other Agencies - Third Party P,90002979,APPLE TREE COURT CARE HOME,"4,867.38",09/06/2017
Delivery Units,Adults and Communities,Other Agencies - Third Party P,90002729,AREA 51 EDUCATION LTD,553.00,05/06/2017
Delivery Units,Adults and Communities,Other Agencies - Third Party P,90002730,AREA 51 EDUCATION LTD,"1,501.00",05/06/2017
Delivery Units,Adults and Communities,Other Agencies - Third Party P,90002731,AREA 51 EDUCATION LTD,869.00,05/06/2017
Delivery Units,Adults and Communities,Other Agencies - Third Party P,90002732,AREA 51 EDUCATION LTD,553.00,05/06/2017
Delivery Units,Adults and Communities,Other Agencies - Third Party P,90005447,ASH COURT CARE CENTRE,"2,978.36",29/06/2017
Delivery Units,Adults and Communities,Other Agencies - Third Party P,90003691,ASHFIELDS RESIDENTIAL CARE HOME,"2,448.78",16/06/2017
Delivery Units,Adults and Communities,Other Agencies - Third Party P,90003692,ASHFIELDS RESIDENTIAL CARE HOME,"2,657.14",16/06/2017
Delivery Units,Adults and Communities,Other Agencies - Third Party P,90003693,ASHFIELDS RESIDENTIAL CARE HOME,"2,448.78",16/06/2017
Delivery Units,Adults and Communities,Other Agencies - Third Party P,90003694,ASHFIELDS RESIDENTIAL CARE HOME,"2,448.78",16/06/2017
Delivery Units,Adults and Communities,Other Agencies - Third Party P,90003695,ASHFIELDS RESIDENTIAL CARE HOME,"2,448.78",16/06/2017
Delivery Units,Adults and Communities,Other Agencies - Third Party P,90003696,ASHFIELDS RESIDENTIAL CARE HOME,"2,448.78",16/06/2017
Delivery Units,Adults and Communities,Other Agencies - Third Party P,90003094,ASHGALE HOUSE,"3,379.88",09/06/2017
Delivery Units,Adults and Communities,Other Agencies - Third Party P,90004283,ASHTON LODGE CARE CENTRE,"3,162.86",20/06/2017
Delivery Units,Adults and Communities,Other Agencies - Third Party P,90004284,ASHTON LODGE CARE CENTRE,"2,369.79",20/06/2017
Delivery Units,Adults and Communities,Other Agencies - Third Party P,90004285,ASHTON LODGE CARE CENTRE,"2,369.79",20/06/2017
Delivery Units,Adults and Communities,Other Agencies - Third Party P,90004286,ASHTON LODGE CARE CENTRE,"2,320.37",20/06/2017
Delivery Units,Adults and Communities,Other Agencies - Third Party P,90004287,ASHTON LODGE CARE CENTRE,"2,785.71",20/06/2017
Delivery Units,Adults and Communities,Other Agencies - Third Party P,90004288,ASHTON LODGE CARE CENTRE,"2,973.21",20/06/2017
Delivery Units,Adults and Communities,Other Agencies - Third Party P,90004289,ASHTON LODGE CARE CENTRE,"3,214.29",20/06/2017
Delivery Units,Adults and Communities,Other Agencies - Third Party P,90004290,ASHTON LODGE CARE CENTRE,"2,973.21",20/06/2017
Delivery Units,Adults and Communities,Other Agencies - Third Party P,90004291,ASHTON LODGE CARE CENTRE,"2,320.37",20/06/2017
Delivery Units,Adults and Communities,Other Agencies - Third Party P,90004292,ASHTON LODGE CARE CENTRE,"2,369.79",20/06/2017
Delivery Units,Adults and Communities,Other Agencies - Third Party P,90004293,ASHTON LODGE CARE CENTRE,"2,571.43",20/06/2017
Delivery Units,Adults and Communities,Other Agencies - Third Party P,90004294,ASHTON LODGE CARE CENTRE,"2,320.37",20/06/2017
Delivery Units,Adults and Communities,Other Agencies - Third Party P,90004295,ASHTON LODGE CARE CENTRE,"2,569.89",20/06/2017
Delivery Units,Adults and Communities,Other Agencies - Third Party P,90004296,ASHTON LODGE CARE CENTRE,"3,214.29",20/06/2017
Delivery Units,Adults and Communities,Other Agencies - Third Party P,90004297,ASHTON LODGE CARE CENTRE,"2,698.37",20/06/2017
Delivery Units,Adults and Communities,Other Agencies - Third Party P,90004299,ASHTON LODGE CARE CENTRE,"2,569.89",20/06/2017
Delivery Units,Adults and Communities,Other Agencies - Third Party P,90004300,ASHTON LODGE CARE CENTRE,"3,428.57",20/06/2017
Delivery Units,Adults and Communities,Other Agencies - Third Party P,90006193,ASHTON LODGE CARE CENTRE,(411.49),28/06/2017
Delivery Units,Adults and Communities,Other Agencies - Third Party P,90006194,ASHTON LODGE CARE CENTRE,"(1,285.71)",28/06/2017
Delivery Units,Adults and Communities,Other Agencies - Third Party P,90005448,ASPEN VILLAGES LTD,"2,144.91",23/06/2017
Delivery Units,Adults and Communities,Other Agencies - Third Party P,90005449,ASPEN VILLAGES LTD,"4,714.29",23/06/2017
Delivery Units,Adults and Communities,Other Agencies - Third Party P,90005450,ASPEN VILLAGES LTD,"3,214.29",23/06/2017
Delivery Units,Adults and Communities,Other Agencies - Third Party P,90005451,ASPEN VILLAGES LTD,"3,428.57",23/06/2017
Delivery Units,Adults and Communities,Other Agencies - Third Party P,90005452,ASPEN VILLAGES LTD,"5,785.71",23/06/2017
Delivery Units,Adults and Communities,Other Agencies - Third Party P,90005453,ASPEN VILLAGES LTD,"2,340.04",23/06/2017
Delivery Units,Adults and Communities,Other Agencies - Third Party P,90005454,ASPEN VILLAGES LTD,"4,714.29",23/06/2017
Delivery Units,Adults and Communities,Other Agencies - Third Party P,90005455,ASPEN VILLAGES LTD,"4,071.43",23/06/2017
Delivery Units,Adults and Communities,Other Agencies - Third Party P,90005456,ASPEN VILLAGES LTD,"4,714.29",23/06/2017
Delivery Units,Adults and Communities,Other Agencies - Third Party P,90006214,ASPEN VILLAGES LTD,"4,871.43",28/06/2017
Delivery Units,Adults and Communities,Other Agencies - Third Party P,90003582,AUTUMN GARDENS,"3,160.00",14/06/2017
Delivery Units,Adults and Communities,Other Agencies - Third Party P,90003583,AUTUMN GARDENS,"2,880.00",14/06/2017
Delivery Units,Adults and Communities,Other Agencies - Third Party P,90003584,AUTUMN GARDENS,"2,184.04",14/06/2017
Delivery Units,Adults and Communities,Other Agencies - Third Party P,90003585,AUTUMN GARDENS,"4,800.00",14/06/2017
Delivery Units,Adults and Communities,Other Agencies - Third Party P,90003586,AUTUMN GARDENS,"2,800.00",14/06/2017
Delivery Units,Adults and Communities,Other Agencies - Third Party P,90003587,AUTUMN GARDENS,"1,542.86",14/06/2017
Delivery Units,Adults and Communities,Other Agencies - Third Party P,90004097,AUTUMN GARDENS,"2,800.00",19/06/2017
Delivery Units,Adults and Communities,Other Agencies - Third Party P,90004098,AUTUMN GARDENS,"2,880.00",19/06/2017
Delivery Units,Adults and Communities,Other Agencies - Third Party P,90004099,AUTUMN GARDENS,"4,800.00",19/06/2017
Delivery Units,Adults and Communities,Other Agencies - Third Party P,90004100,AUTUMN GARDENS,"4,800.00",19/06/2017
Delivery Units,Adults and Communities,Other Agencies - Third Party P,90004101,AUTUMN GARDENS,"2,184.04",19/06/2017
Delivery Units,Adults and Communities,Other Agencies - Third Party P,90004103,AUTUMN GARDENS,"3,160.00",19/06/2017
Delivery Units,Adults and Communities,Other Agencies - Third Party P,90003621,B & M CARE,"2,176.89",14/06/2017
Delivery Units,Adults and Communities,Other Agencies - Third Party P,90003622,B & M CARE,"2,369.79",14/06/2017
Delivery Units,Adults and Communities,Other Agencies - Third Party P,90003623,B & M CARE,"2,369.79",14/06/2017
Delivery Units,Adults and Communities,Other Agencies - Third Party P,90003624,B & M CARE,"3,642.86",14/06/2017
Delivery Units,Adults and Communities,Other Agencies - Third Party P,90003625,B & M CARE,"3,642.86",14/06/2017
Delivery Units,Adults and Communities,Other Agencies - Third Party P,90006688,BARNET CARERS CENTRE,79.15,30/06/2017
Delivery Units,Adults and Communities,Other Agencies - Third Party P,90006689,BARNET CARERS CENTRE,656.50,30/06/2017
Delivery Units,Adults and Communities,Other Agencies - Third Party P,90006690,BARNET CARERS CENTRE,87.90,30/06/2017
Delivery Units,Adults and Communities,Other Agencies - Third Party P,90006691,BARNET CARERS CENTRE,342.84,30/06/2017
Delivery Units,Adults and Communities,Other Agencies - Third Party P,90006692,BARNET CARERS CENTRE,316.57,30/06/2017
Delivery Units,Adults and Communities,Other Agencies - Third Party P,90006693,BARNET CARERS CENTRE,328.25,30/06/2017
Delivery Units,Adults and Communities,Other Agencies - Third Party P,90006694,BARNET CARERS CENTRE,331.24,30/06/2017
Delivery Units,Adults and Communities,Other Agencies - Third Party P,90006695,BARNET CARERS CENTRE,422.12,30/06/2017
Delivery Units,Adults and Communities,Other Agencies - Third Party P,90006699,BARNET CARERS CENTRE,65.95,30/06/2017
Delivery Units,Adults and Communities,Other Agencies - Third Party P,90006700,BARNET CARERS CENTRE,291.64,30/06/2017
Delivery Units,Adults and Communities,Other Agencies - Third Party P,90006701,BARNET CARERS CENTRE,574.42,30/06/2017
Delivery Units,Adults and Communities,Other Agencies - Third Party P,90006702,BARNET CARERS CENTRE,87.90,30/06/2017
Delivery Units,Adults and Communities,Other Agencies - Third Party P,90006703,BARNET CARERS CENTRE,342.84,30/06/2017
Delivery Units,Adults and Communities,Other Agencies - Third Party P,90006704,BARNET CARERS CENTRE,284.35,30/06/2017
Delivery Units,Adults and Communities,Other Agencies - Third Party P,90006705,BARNET CARERS CENTRE,287.21,30/06/2017
Delivery Units,Adults and Communities,Other Agencies - Third Party P,90006706,BARNET CARERS CENTRE,369.32,30/06/2017
Delivery Units,Adults and Communities,Other Agencies - Third Party P,90006707,BARNET CARERS CENTRE,79.15,30/06/2017
Delivery Units,Adults and Communities,Other Agencies - Third Party P,90006708,BARNET CARERS CENTRE,331.24,30/06/2017
Delivery Units,Adults and Communities,Other Agencies - Third Party P,90006709,BARNET CARERS CENTRE,656.50,30/06/2017
Delivery Units,Adults and Communities,Other Agencies - Third Party P,90006710,BARNET CARERS CENTRE,43.95,30/06/2017
Delivery Units,Adults and Communities,Other Agencies - Third Party P,90006711,BARNET CARERS CENTRE,342.82,30/06/2017
Delivery Units,Adults and Communities,Other Agencies - Third Party P,90006712,BARNET CARERS CENTRE,316.57,30/06/2017
Delivery Units,Adults and Communities,Other Agencies - Third Party P,90006713,BARNET CARERS CENTRE,328.25,30/06/2017
Delivery Units,Adults and Communities,Other Agencies - Third Party P,90006714,BARNET CARERS CENTRE,422.12,30/06/2017
Delivery Units,Adults and Communities,Other Agencies - Third Party P,80010703,BARNET ENFIELD & HARINGEY MENTAL,"52,356.00",15/06/2017
Delivery Units,Adults and Communities,Other Agencies - Third Party P,90003922,BARNET EXECUTIVE CAR SERVICE,456.00,21/06/2017
Delivery Units,Adults and Communities,Other Agencies - Third Party P,90003923,BARNET EXECUTIVE CAR SERVICE,432.00,21/06/2017
Delivery Units,Adults and Communities,Other Agencies - Third Party P,90003942,BARNET EXECUTIVE CAR SERVICE,400.00,16/06/2017
Delivery Units,Adults and Communities,Other Agencies - Third Party P,90005303,BARNET EXECUTIVE CAR SERVICE,456.00,23/06/2017
Delivery Units,Adults and Communities,Other Agencies - Third Party P,90005437,BARNET EXECUTIVE CAR SERVICE,456.00,23/06/2017
Delivery Units,Adults and Communities,Other Agencies - Third Party P,90006186,BARNET EXECUTIVE CAR SERVICE,432.00,28/06/2017
Delivery Units,Adults and Communities,Other Agencies - Third Party P,30165302,BARNET MENCAP,131.60,01/06/2017
Delivery Units,Adults and Communities,Other Agencies - Third Party P,30165303,BARNET MENCAP,131.60,01/06/2017
Delivery Units,Adults and Communities,Other Agencies - Third Party P,90003097,BAYTREE COMMUNITY CARE (LONDON) LTD,"3,034.80",09/06/2017
Delivery Units,Adults and Communities,Other Agencies - Third Party P,90003727,BAYTREE COMMUNITY CARE (LONDON) LTD,"2,797.04",16/06/2017
Delivery Units,Adults and Communities,Other Agencies - Third Party P,90003728,BAYTREE COMMUNITY CARE (LONDON) LTD,"2,599.97",16/06/2017
Delivery Units,Adults and Communities,Other Agencies - Third Party P,90003729,BAYTREE COMMUNITY CARE (LONDON) LTD,"2,014.79",16/06/2017
Delivery Units,Adults and Communities,Other Agencies - Third Party P,90003730,BAYTREE COMMUNITY CARE (LONDON) LTD,"3,424.25",16/06/2017
Delivery Units,Adults and Communities,Other Agencies - Third Party P,90004078,BELMONT LODGE CARE CENTRE,"2,327.14",19/06/2017
Delivery Units,Adults and Communities,Other Agencies - Third Party P,30166108,BLUEBIRD CARE (BARNET),344.00,26/06/2017
Delivery Units,Adults and Communities,Other Agencies - Third Party P,30166110,BLUEBIRD CARE (BARNET),277.50,26/06/2017
Delivery Units,Adults and Communities,Other Agencies - Third Party P,30166111,BLUEBIRD CARE (BARNET),733.80,26/06/2017
Delivery Units,Adults and Communities,Other Agencies - Third Party P,90005465,BROOKDALE HEALTHCARE,"8,790.60",23/06/2017
Delivery Units,Adults and Communities,Other Agencies - Third Party P,90005467,BROOKDALE HEALTHCARE,"9,672.90",23/06/2017
Delivery Units,Adults and Communities,Other Agencies - Third Party P,90005468,BROOKDALE HEALTHCARE,"9,300.00",23/06/2017
Delivery Units,Adults and Communities,Other Agencies - Third Party P,90005469,BROOKDALE HEALTHCARE,"9,000.00",23/06/2017
Delivery Units,Adults and Communities,Other Agencies - Third Party P,90004066,BROOKVALE,"2,985.77",19/06/2017
Delivery Units,Adults and Communities,Other Agencies - Third Party P,90004067,BROOKVALE,"3,396.94",19/06/2017
Delivery Units,Adults and Communities,Other Agencies - Third Party P,90004068,BROOKVALE,"3,085.30",19/06/2017
Delivery Units,Adults and Communities,Other Agencies - Third Party P,90004178,BROOKVALE,"2,786.72",19/06/2017
Delivery Units,Adults and Communities,Other Agencies - Third Party P,90004179,BROOKVALE,"3,170.48",19/06/2017
Delivery Units,Adults and Communities,Other Agencies - Third Party P,90004180,BROOKVALE,"3,510.17",19/06/2017
Delivery Units,Adults and Communities,Other Agencies - Third Party P,90003953,BRUNSWICK SUPPORTED LIVING SERVICES,"1,412.68",16/06/2017
Delivery Units,Adults and Communities,Other Agencies - Third Party P,90003954,BRUNSWICK SUPPORTED LIVING SERVICES,"1,412.68",16/06/2017
Delivery Units,Adults and Communities,Other Agencies - Third Party P,90003955,BRUNSWICK SUPPORTED LIVING SERVICES,"2,153.92",16/06/2017
Delivery Units,Adults and Communities,Other Agencies - Third Party P,90003956,BRUNSWICK SUPPORTED LIVING SERVICES,"2,153.92",16/06/2017
Delivery Units,Adults and Communities,Other Agencies - Third Party P,90003683,BUPA CARE HOMES,"2,730.97",16/06/2017
Delivery Units,Adults and Communities,Other Agencies - Third Party P,90003687,BUPA CARE HOMES,"2,466.76",16/06/2017
Delivery Units,Adults and Communities,Other Agencies - Third Party P,90003688,BUPA CARE HOMES,"2,448.78",16/06/2017
Delivery Units,Adults and Communities,Other Agencies - Third Party P,90003689,BUPA CARE HOMES,"2,314.24",16/06/2017
Delivery Units,Adults and Communities,Other Agencies - Third Party P,90003742,BUPA CARE HOMES,"2,387.19",16/06/2017
Delivery Units,Adults and Communities,Other Agencies - Third Party P,90003743,BUPA CARE HOMES,"2,601.39",16/06/2017
Delivery Units,Adults and Communities,Other Agencies - Third Party P,90003966,BUPA CARE HOMES,"2,464.06",16/06/2017
Delivery Units,Adults and Communities,Other Agencies - Third Party P,90003967,BUPA CARE HOMES,"2,464.06",16/06/2017
Delivery Units,Adults and Communities,Other Agencies - Third Party P,90003968,BUPA CARE HOMES,"3,468.06",16/06/2017
Delivery Units,Adults and Communities,Other Agencies - Third Party P,90003993,BUPA CARE HOMES,"2,466.05",20/06/2017
Delivery Units,Adults and Communities,Other Agencies - Third Party P,90003994,BUPA CARE HOMES,"3,007.40",20/06/2017
Delivery Units,Adults and Communities,Other Agencies - Third Party P,90003995,BUPA CARE HOMES,"2,466.05",20/06/2017
Delivery Units,Adults and Communities,Other Agencies - Third Party P,90003996,BUPA CARE HOMES,"3,875.00",20/06/2017
Delivery Units,Adults and Communities,Other Agencies - Third Party P,90003997,BUPA CARE HOMES,"3,305.91",20/06/2017
Delivery Units,Adults and Communities,Other Agencies - Third Party P,90003998,BUPA CARE HOMES,"2,437.24",20/06/2017
Delivery Units,Adults and Communities,Other Agencies - Third Party P,90003999,BUPA CARE HOMES,"3,243.56",20/06/2017
Delivery Units,Adults and Communities,Other Agencies - Third Party P,90005472,BUPA CARE HOMES,"2,165.58",23/06/2017
Delivery Units,Adults and Communities,Other Agencies - Third Party P,90006010,BUPA CARE HOMES,"7,707.77",28/06/2017
Delivery Units,Adults and Communities,Other Agencies - Third Party P,90006196,BUPA CARE HOMES,"3,500.00",28/06/2017
Delivery Units,Adults and Communities,Other Agencies - Third Party P,90006375,BUPA CARE HOMES,"2,321.92",30/06/2017
Delivery Units,Adults and Communities,Other Agencies - Third Party P,90006376,BUPA CARE HOMES,"2,321.92",30/06/2017
Delivery Units,Adults and Communities,Other Agencies - Third Party P,90006395,BUPA CARE HOMES,"4,796.10",30/06/2017
Delivery Units,Adults and Communities,Other Agencies - Third Party P,30165502,BUPA NURSING HOMES LTD - ARKLEY,"2,227.52",06/06/2017
Delivery Units,Adults and Communities,Other Agencies - Third Party P,90001820,BUPA NURSING HOMES LTD - ARKLEY,"3,484.16",01/06/2017
Delivery Units,Adults and Communities,Other Agencies - Third Party P,90001821,BUPA NURSING HOMES LTD - ARKLEY,"2,227.52",01/06/2017
Delivery Units,Adults and Communities,Other Agencies - Third Party P,90001822,BUPA NURSING HOMES LTD - ARKLEY,"2,227.24",01/06/2017
Delivery Units,Adults and Communities,Other Agencies - Third Party P,90001823,BUPA NURSING HOMES LTD - ARKLEY,"2,227.24",01/06/2017
Delivery Units,Adults and Communities,Other Agencies - Third Party P,90001824,BUPA NURSING HOMES LTD - ARKLEY,"2,089.68",01/06/2017
Delivery Units,Adults and Communities,Other Agencies - Third Party P,90001825,BUPA NURSING HOMES LTD - ARKLEY,"2,227.40",01/06/2017
Delivery Units,Adults and Communities,Other Agencies - Third Party P,90001826,BUPA NURSING HOMES LTD - ARKLEY,"1,696.74",01/06/2017
Delivery Units,Adults and Communities,Other Agencies - Third Party P,90001827,BUPA NURSING HOMES LTD - ARKLEY,"2,214.76",01/06/2017
Delivery Units,Adults and Communities,Other Agencies - Third Party P,90001828,BUPA NURSING HOMES LTD - ARKLEY,"2,165.68",01/06/2017
Delivery Units,Adults and Communities,Other Agencies - Third Party P,90003738,BUPA NURSING HOMES LTD - ARKLEY,"2,545.11",16/06/2017
Delivery Units,Adults and Communities,Other Agencies - Third Party P,90003739,BUPA NURSING HOMES LTD - ARKLEY,"2,630.91",16/06/2017
Delivery Units,Adults and Communities,Other Agencies - Third Party P,90006433,BUPA NURSING HOMES LTD - ARKLEY,"3,484.16",30/06/2017
Delivery Units,Adults and Communities,Other Agencies - Third Party P,90006434,BUPA NURSING HOMES LTD - ARKLEY,"2,165.68",30/06/2017
Delivery Units,Adults and Communities,Other Agencies - Third Party P,90006435,BUPA NURSING HOMES LTD - ARKLEY,"2,165.68",30/06/2017
Delivery Units,Adults and Communities,Other Agencies - Third Party P,90006436,BUPA NURSING HOMES LTD - ARKLEY,"2,214.76",30/06/2017
Delivery Units,Adults and Communities,Other Agencies - Third Party P,90006437,BUPA NURSING HOMES LTD - ARKLEY,"2,227.40",30/06/2017
Delivery Units,Adults and Communities,Other Agencies - Third Party P,90006438,BUPA NURSING HOMES LTD - ARKLEY,"2,089.68",30/06/2017
Delivery Units,Adults and Communities,Other Agencies - Third Party P,90006439,BUPA NURSING HOMES LTD - ARKLEY,"2,227.24",30/06/2017
Delivery Units,Adults and Communities,Other Agencies - Third Party P,90006440,BUPA NURSING HOMES LTD - ARKLEY,"2,227.24",30/06/2017
Delivery Units,Adults and Communities,Other Agencies - Third Party P,90006441,BUPA NURSING HOMES LTD - ARKLEY,"2,227.52",30/06/2017
Delivery Units,Adults and Communities,Other Agencies - Third Party P,30166127,CAPITAL HOMECARE (UK) LIMITED,658.56,26/06/2017
Delivery Units,Adults and Communities,Other Agencies - Third Party P,30166128,CAPITAL HOMECARE (UK) LIMITED,658.56,26/06/2017
Delivery Units,Adults and Communities,Other Agencies - Third Party P,30166129,CAPITAL HOMECARE (UK) LIMITED,658.56,26/06/2017
Delivery Units,Adults and Communities,Other Agencies - Third Party P,30166130,CAPITAL HOMECARE (UK) LIMITED,164.64,26/06/2017
Delivery Units,Adults and Communities,Other Agencies - Third Party P,30166131,CAPITAL HOMECARE (UK) LIMITED,236.48,26/06/2017
Delivery Units,Adults and Communities,Other Agencies - Third Party P,30166132,CAPITAL HOMECARE (UK) LIMITED,701.56,26/06/2017
Delivery Units,Adults and Communities,Other Agencies - Third Party P,90005381,CAPITAL HOMECARE (UK) LIMITED,539.16,23/06/2017
Delivery Units,Adults and Communities,Other Agencies - Third Party P,90003355,CARE WORLDWIDE (LONDON) LTD,"2,952.35",09/06/2017
Delivery Units,Adults and Communities,Other Agencies - Third Party P,30164782,CARETECH COMMUNITY SERVICES LTD,(189.65),09/06/2017
Delivery Units,Adults and Communities,Other Agencies - Third Party P,30164783,CARETECH COMMUNITY SERVICES LTD,(195.97),09/06/2017
Delivery Units,Adults and Communities,Other Agencies - Third Party P,30164784,CARETECH COMMUNITY SERVICES LTD,(189.65),09/06/2017
Delivery Units,Adults and Communities,Other Agencies - Third Party P,30164785,CARETECH COMMUNITY SERVICES LTD,(195.97),09/06/2017
Delivery Units,Adults and Communities,Other Agencies - Third Party P,30164786,CARETECH COMMUNITY SERVICES LTD,(195.97),09/06/2017
Delivery Units,Adults and Communities,Other Agencies - Third Party P,30164787,CARETECH COMMUNITY SERVICES LTD,(189.65),09/06/2017
Delivery Units,Adults and Communities,Other Agencies - Third Party P,30164788,CARETECH COMMUNITY SERVICES LTD,(195.97),09/06/2017
Delivery Units,Adults and Communities,Other Agencies - Third Party P,30164789,CARETECH COMMUNITY SERVICES LTD,(189.65),09/06/2017
Delivery Units,Adults and Communities,Other Agencies - Third Party P,30164790,CARETECH COMMUNITY SERVICES LTD,(195.97),09/06/2017
Delivery Units,Adults and Communities,Other Agencies - Third Party P,30164791,CARETECH COMMUNITY SERVICES LTD,(195.97),09/06/2017
Delivery Units,Adults and Communities,Other Agencies - Third Party P,30164792,CARETECH COMMUNITY SERVICES LTD,(177.00),09/06/2017
Delivery Units,Adults and Communities,Other Agencies - Third Party P,30165719,CARETECH COMMUNITY SERVICES LTD,30.66,13/06/2017
Delivery Units,Adults and Communities,Other Agencies - Third Party P,30165720,CARETECH COMMUNITY SERVICES LTD,299.78,13/06/2017
Delivery Units,Adults and Communities,Other Agencies - Third Party P,30165722,CARETECH COMMUNITY SERVICES LTD,491.71,13/06/2017
Delivery Units,Adults and Communities,Other Agencies - Third Party P,30165724,CARETECH COMMUNITY SERVICES LTD,52.65,13/06/2017
Delivery Units,Adults and Communities,Other Agencies - Third Party P,30165727,CARETECH COMMUNITY SERVICES LTD,59.30,13/06/2017
Delivery Units,Adults and Communities,Other Agencies - Third Party P,30165730,CARETECH COMMUNITY SERVICES LTD,70.20,13/06/2017
Delivery Units,Adults and Communities,Other Agencies - Third Party P,30165736,CARETECH COMMUNITY SERVICES LTD,138.70,13/06/2017
Delivery Units,Adults and Communities,Other Agencies - Third Party P,30165737,CARETECH COMMUNITY SERVICES LTD,308.57,13/06/2017
Delivery Units,Adults and Communities,Other Agencies - Third Party P,30165739,CARETECH COMMUNITY SERVICES LTD,59.30,13/06/2017
Delivery Units,Adults and Communities,Other Agencies - Third Party P,30165741,CARETECH COMMUNITY SERVICES LTD,298.57,13/06/2017
Delivery Units,Adults and Communities,Other Agencies - Third Party P,90003211,CARETECH COMMUNITY SERVICES LTD,"4,180.16",09/06/2017
Delivery Units,Adults and Communities,Other Agencies - Third Party P,90003212,CARETECH COMMUNITY SERVICES LTD,"3,909.40",09/06/2017
Delivery Units,Adults and Communities,Other Agencies - Third Party P,90003213,CARETECH COMMUNITY SERVICES LTD,"4,180.00",09/06/2017
Delivery Units,Adults and Communities,Other Agencies - Third Party P,90003214,CARETECH COMMUNITY SERVICES LTD,"6,267.15",09/06/2017
Delivery Units,Adults and Communities,Other Agencies - Third Party P,90003501,CARETECH COMMUNITY SERVICES LTD,"4,502.90",14/06/2017
Delivery Units,Adults and Communities,Other Agencies - Third Party P,90003502,CARETECH COMMUNITY SERVICES LTD,"4,631.78",14/06/2017
Delivery Units,Adults and Communities,Other Agencies - Third Party P,90003503,CARETECH COMMUNITY SERVICES LTD,"5,956.86",14/06/2017
Delivery Units,Adults and Communities,Other Agencies - Third Party P,90003504,CARETECH COMMUNITY SERVICES LTD,"5,393.30",14/06/2017
Delivery Units,Adults and Communities,Other Agencies - Third Party P,90003505,CARETECH COMMUNITY SERVICES LTD,"4,320.00",14/06/2017
Delivery Units,Adults and Communities,Other Agencies - Third Party P,90003506,CARETECH COMMUNITY SERVICES LTD,982.84,14/06/2017
Delivery Units,Adults and Communities,Other Agencies - Third Party P,90003507,CARETECH COMMUNITY SERVICES LTD,"4,167.66",14/06/2017
Delivery Units,Adults and Communities,Other Agencies - Third Party P,90003512,CARETECH COMMUNITY SERVICES LTD,"6,257.30",14/06/2017
Delivery Units,Adults and Communities,Other Agencies - Third Party P,90003666,CARETECH COMMUNITY SERVICES LTD,"6,884.00",14/06/2017
Delivery Units,Adults and Communities,Other Agencies - Third Party P,90004049,CARETECH COMMUNITY SERVICES LTD,"6,361.89",29/06/2017
Delivery Units,Adults and Communities,Other Agencies - Third Party P,90004051,CARETECH COMMUNITY SERVICES LTD,"5,779.50",29/06/2017
Delivery Units,Adults and Communities,Other Agencies - Third Party P,90004052,CARETECH COMMUNITY SERVICES LTD,"5,027.87",29/06/2017
Delivery Units,Adults and Communities,Other Agencies - Third Party P,90004053,CARETECH COMMUNITY SERVICES LTD,"4,478.74",29/06/2017
Delivery Units,Adults and Communities,Other Agencies - Third Party P,90004054,CARETECH COMMUNITY SERVICES LTD,"5,168.14",29/06/2017
Delivery Units,Adults and Communities,Other Agencies - Third Party P,90004055,CARETECH COMMUNITY SERVICES LTD,"4,496.66",29/06/2017
Delivery Units,Adults and Communities,Other Agencies - Third Party P,90004057,CARETECH COMMUNITY SERVICES LTD,"4,478.57",29/06/2017
Delivery Units,Adults and Communities,Other Agencies - Third Party P,90004058,CARETECH COMMUNITY SERVICES LTD,"1,053.04",29/06/2017
Delivery Units,Adults and Communities,Other Agencies - Third Party P,90004060,CARETECH COMMUNITY SERVICES LTD,"7,375.71",29/06/2017
Delivery Units,Adults and Communities,Other Agencies - Third Party P,90004063,CARETECH COMMUNITY SERVICES LTD,"6,451.72",29/06/2017
